{"text_format":"1","workbook":"xlsx","n_sheets":33,"sheets":["Invoice overview","Expert sheet","Expert sheet (2)","Expert sheet (3)","Expert sheet (4)","Expert sheet (5)","Expert sheet (6)","Expert sheet (7)","Expert sheet (8)","Expert sheet (9)","Expert sheet (10)","Expert sheet (11)","Expert sheet (12)","Expert sheet (13)","Expert sheet (14)","Expert sheet (15)","Expert sheet (16)","Expert sheet (17)","Expert sheet (18)","Expert sheet (19)","Expert sheet (20)","Expert sheet (21)","Expert sheet (22)","Expert sheet (23)","Expert sheet (24)","Expert sheet (25)","Expert sheet (26)","Expert sheet (27)","Expert sheet (28)","Expert sheet (29)","Expert sheet (30)","5.17. Other costs","5.18. Flex. remun. item"],"not_rendered":{"charts":0,"images":30,"macros":1,"external_links":0,"defined_names":38,"comments":1,"pivot_tables":0},"unopened":[],"bounds":{"document_bytes":16777216,"sheet_cells":100000,"rows_first":2000,"rows_last":500,"rows_between":2000,"halvings":0,"cell_chars":16384,"cell_head_chars":4096},"cells_cut":0,"cells_raw":0,"read":"whole","date_system":"1900"}

{"sheet":"Invoice overview","index":0,"n_rows":61,"n_cols":13,"rows_kept":61,"cut":false,"hidden":false,"merged":[[55,1,55,3],[55,4,55,5],[42,4,42,5],[49,4,49,5],[50,4,50,5],[54,4,54,5],[53,4,53,5],[52,4,52,5],[51,4,51,5],[50,1,50,2],[49,1,49,2],[43,1,43,3],[45,2,45,3],[44,1,44,3],[37,3,37,5],[41,4,41,5],[32,3,32,5],[32,1,32,2],[48,4,48,5],[53,0,54,0],[53,1,53,2],[54,1,54,2],[51,0,52,0],[51,1,51,2],[52,1,52,2],[37,1,37,2],[36,3,36,5],[35,1,35,2],[35,3,35,5],[38,1,38,2],[38,3,38,5],[34,1,34,2],[29,6,29,8],[0,0,0,4],[0,5,0,9],[1,4,6,4],[7,0,7,9],[8,0,9,4],[21,5,21,9],[17,5,17,9],[10,0,15,3],[8,5,8,9],[9,5,9,9],[10,5,10,7],[19,0,19,1],[19,2,19,3],[6,5,6,6],[6,7,6,9],[20,0,22,3],[60,0,60,3],[11,5,11,7],[12,5,12,7],[15,5,15,9],[16,5,16,9],[22,5,22,9],[24,0,24,3],[24,5,24,9],[23,0,23,2],[23,5,23,9],[25,0,25,9],[26,2,26,3],[26,4,26,5],[57,0,57,1],[26,6,26,7],[27,4,27,5],[28,0,28,5],[28,6,28,7],[34,3,34,5],[29,0,29,5],[30,1,30,4],[33,1,33,2],[26,0,26,1],[48,0,49,0],[58,0,58,1],[6,0,6,3],[1,7,1,9],[2,7,2,9],[3,7,3,9],[4,7,4,9],[5,7,5,9],[1,5,1,6],[2,5,2,6],[3,5,3,6],[4,5,4,6],[5,5,5,6],[1,0,1,3],[2,0,2,3],[3,0,3,3],[4,0,4,3],[5,0,5,3],[33,3,33,5],[30,6,30,8],[31,3,31,4],[27,0,27,1],[27,2,27,3],[40,4,40,5],[47,4,47,5],[58,2,58,3],[58,4,58,6],[33,11,34,11],[23,11,24,11],[29,11,30,11],[36,11,41,11],[3,11,6,11],[14,11,19,11],[20,11,21,11],[12,11,13,11],[8,11,9,11],[10,11,11,11],[57,2,57,3],[57,4,57,6],[49,10,49,13],[40,1,40,2],[42,1,42,2],[47,1,47,2],[41,1,41,2],[36,1,36,2],[31,1,31,2],[39,3,39,5],[48,1,48,2],[39,1,39,2]]}
["Contractor (Please use the same address as in your contract)",null,null,null,null,"Bank details",null,null,null,null,null,null,"Rechnungsart:"]
[null,null,null,null,null,"Name of bank:",null,"Please enter your",null,null,null,null,0]
[null,null,null,null,null,"Account no.:",null,"bank details here",null,null,null,null,{"$f":"(M2=0)","v":true}]
[null,null,null,null,null,"Bank code:"]
[null,null,null,null,null,"IBAN:"]
[null,null,null,null,null,"BIC (Swift Code for foreign bank):"]
[null,null,null,null,null,"Tax/VAT ID No.:"]
[]
[null,null,null,null,null,"For GIZ use only"]
[null,null,null,null,null,null,null,null,null,null,null,null,"Währung"]
["Deutsche Gesellschaft für Internationale Zusammenarbeit (GIZ) GmbH\nFriedrich-Ebert-Allee 36\n53113 Bonn\nGermany",null,null,null,null,"VR",null,null,null,"1 1",null,null,"EUR"]
[null,null,null,null,null,"LR",null,null,null,"1 1",null,null,"USD"]
[null,null,null,null,null,"KR   4 7",null,null,null,null,null,null,"GBP"]
[]
[]
[null,null,null,null,null,"Received by OU 5230"]
[]
[null,null,null,null,null,"Basis"]
[null,null,null,null,null,"A/C",null,"C/U"]
["Sequential invoice number:"]
[null,null,null,null,null,null,null,"Gesamt"]
[null,null,null,null,null,"Confirmation of performance"]
[null,null,null,null,null,"OU                 Date                  Name"]
["Tag der Arbeitsaufnahme:",null,null,null,null,"Calc. tech. correct   (Approved)"]
["(bei erster Vorauszahlungsanforderung bitte angeben)",null,null,null,null,"OU                 Date                  Name"]
[]
["Contract number",null,"Project processing no./\nCost centre",null,"GIZ-OU",null,"Accounting period",null,null,"Date of invoice"]
[null,null,null,null,null,null,null,"until"]
["Brief project title",null,null,null,null,null,"Country",null,null,"Place of supply \n(acc. to contract)"]
[]
[null,null,null,null,null,null,"Reserved for GIZ",null,null,"Invoice complete:"]
["GIZ Gen. Conditions Section","Remuneration item (net amounts)",null,"Currency:",null,"EUR"]
[null,"Lump-sum price "]
["5.4","Fee",null,{"$f":"SUM('Expert sheet'!F21:F22)+SUM('Expert sheet (2)'!F21:F22)+SUM('Expert sheet (3)'!F21:F22)+SUM('Expert sheet (4)'!F21:F22)+SUM('Expert sheet (5)'!F21:F22)+SUM('Expert sheet (6)'!F21:F22)+SUM('Expert sheet (7)'!F21:F22)+SUM('Expert sheet (8)'!F21:F22)+SUM('Expert sheet (9)'!F21:F22)+SUM('Expert sheet (10)'!F21:F22)+SUM('Expert sheet (11)'!F21:F22)+SUM('Expert sheet (12)'!F21:F22)+SUM('Expert sheet (13)'!F21:F22)+SUM('Expert sheet (14)'!F21:F22)+SUM('Expert sheet (15)'!F21:F22)+SUM('Expert sheet (16)'!F21:F22)+SUM('Expert sheet (17)'!F21:F22)+SUM('Expert sheet (18)'!F21:F22)+SUM('Expert sheet (19)'!F21:F22)+SUM('Expert sheet (20)'!F21:F22)+SUM('Expert sheet (21)'!F21:F22)+SUM('Expert sheet (22)'!F21:F22)+SUM('Expert sheet (23)'!F21:F22)+SUM('Expert sheet (24)'!F21:F22)+SUM('Expert sheet (25)'!F21:F22)+SUM('Expert sheet (26)'!F21:F22)+SUM('Expert sheet (27)'!F21:F22)+SUM('Expert sheet (28)'!F21:F22)+SUM('Expert sheet (29)'!F21:F22)+SUM('Expert sheet (30)'!F21:F22)","v":0}]
["5.6","Per diem allowance",null,{"$f":"'Expert sheet'!F24+'Expert sheet (2)'!F24+'Expert sheet (3)'!F24+'Expert sheet (4)'!F24+'Expert sheet (5)'!F24+'Expert sheet (6)'!F24+'Expert sheet (7)'!F24+'Expert sheet (8)'!F24+'Expert sheet (9)'!F24+'Expert sheet (10)'!F24+'Expert sheet (11)'!F24+'Expert sheet (12)'!F24+'Expert sheet (13)'!F24+'Expert sheet (14)'!F24+'Expert sheet (15)'!F24+'Expert sheet (16)'!F24+'Expert sheet (17)'!F24+'Expert sheet (18)'!F24+'Expert sheet (19)'!F24+'Expert sheet (20)'!F24+'Expert sheet (21)'!F24+'Expert sheet (22)'!F24+'Expert sheet (23)'!F24+'Expert sheet (24)'!F24+'Expert sheet (25)'!F24+'Expert sheet (26)'!F24+'Expert sheet (27)'!F24+'Expert sheet (28)'!F24+'Expert sheet (29)'!F24+'Expert sheet (30)'!F24","v":0}]
["5.7","Overnight allowance",null,{"$f":"'Expert sheet'!F25+'Expert sheet (2)'!F25+'Expert sheet (3)'!F25+'Expert sheet (4)'!F25+'Expert sheet (5)'!F25+'Expert sheet (6)'!F25+'Expert sheet (7)'!F25+'Expert sheet (8)'!F25+'Expert sheet (9)'!F25+'Expert sheet (10)'!F25+'Expert sheet (11)'!F25+'Expert sheet (12)'!F25+'Expert sheet (13)'!F25+'Expert sheet (14)'!F25+'Expert sheet (15)'!F25+'Expert sheet (16)'!F25+'Expert sheet (17)'!F25+'Expert sheet (18)'!F25+'Expert sheet (19)'!F25+'Expert sheet (20)'!F25+'Expert sheet (21)'!F25+'Expert sheet (22)'!F25+'Expert sheet (23)'!F25+'Expert sheet (24)'!F25+'Expert sheet (25)'!F25+'Expert sheet (26)'!F25+'Expert sheet (27)'!F25+'Expert sheet (28)'!F25+'Expert sheet (29)'!F25+'Expert sheet (30)'!F25","v":0}]
["5.8","Air travel expenses",null,{"$f":"'Expert sheet'!K41+'Expert sheet (2)'!K41+'Expert sheet (3)'!K41+'Expert sheet (4)'!K41+'Expert sheet (5)'!K41+'Expert sheet (6)'!K41+'Expert sheet (7)'!K41+'Expert sheet (8)'!K41+'Expert sheet (9)'!K41+'Expert sheet (10)'!K41+'Expert sheet (11)'!K41+'Expert sheet (12)'!K41+'Expert sheet (13)'!K41+'Expert sheet (14)'!K41+'Expert sheet (15)'!K41+'Expert sheet (16)'!K41+'Expert sheet (17)'!K41+'Expert sheet (18)'!K41+'Expert sheet (19)'!K41+'Expert sheet (20)'!K41+'Expert sheet (21)'!K41+'Expert sheet (22)'!K41+'Expert sheet (23)'!K41+'Expert sheet (24)'!K41+'Expert sheet (25)'!K41+'Expert sheet (26)'!K41+'Expert sheet (27)'!K41+'Expert sheet (28)'!K41+'Expert sheet (29)'!K41+'Expert sheet (30)'!K41","v":0}]
["5.9","Other travel expenses",null,{"$f":"'Expert sheet'!M55+'Expert sheet (2)'!M55+'Expert sheet (3)'!M55+'Expert sheet (4)'!M55+'Expert sheet (5)'!M55+'Expert sheet (6)'!M55+'Expert sheet (7)'!M55+'Expert sheet (8)'!M55+'Expert sheet (9)'!M55+'Expert sheet (10)'!M55+'Expert sheet (11)'!M55+'Expert sheet (12)'!M55+'Expert sheet (13)'!M55+'Expert sheet (14)'!M55+'Expert sheet (15)'!M55+'Expert sheet (16)'!M55+'Expert sheet (17)'!M55+'Expert sheet (18)'!M55+'Expert sheet (19)'!M55+'Expert sheet (20)'!M55+'Expert sheet (21)'!M55+'Expert sheet (22)'!M55+'Expert sheet (23)'!M55+'Expert sheet (24)'!M55+'Expert sheet (25)'!M55+'Expert sheet (26)'!M55+'Expert sheet (27)'!M55+'Expert sheet (28)'!M55+'Expert sheet (29)'!M55+'Expert sheet (30)'!M55","v":0}]
["5.17","Other costs",null,{"$f":"'5.17. Other costs'!D64","v":0}]
["5.18","Flexible remuneration",null,{"$f":"'5.18. Flex. remun. item'!E18","v":0}]
[null,"Subtotal",null,"Net",{"$f":"D33+D34+D35+D36+D37+D38+D39+D40+D40","v":0}]
[null,"Amount for VAT"]
[null,"+ VAT (%) ",null,null,{"$f":"SUM(E42*D43)","v":0}]
[null,"If not subject to VAT, please state reason: ",null,null,null,null,null,null,null,null,null,null,0]
[]
[]
[]
[null,"Invoice amount",null,"Gross",{"$f":"E41+E43","v":0}]
["5.21.2","./. Retention of costs as security",null,"Net"]
[null,"./. VAT on costs retained (%)",null,null,{"$f":"SUM(E49*D50)","v":0}]
[null,"Subtotal",null,null,{"$f":"SUM(E48)-(E49)-(E50)","v":0}]
["5.20.2","+ Advance payment",null,"Net"]
[null,"+ VAT (%)",null,null,{"$f":"SUM(E52*D53)","v":0}]
["5.20.4","./.  Advance payment (repayment)",null,"Net"]
[null,"./. VAT  (%)",null,null,{"$f":"SUM(E54*D55)","v":0}]
[null,"PAYMENT AMOUNT",null,null,{"$f":"E51+E52+E53-E54-E55","v":0}]
[]
[]
["Contacts",null,"Phone",null,"E-mail"]
[]
["All information provided is accurate and the expenses and costs invoiced have not been and will not be claimed from or invoiced to a third party."]

{"sheet":"Expert sheet","index":1,"n_rows":134,"n_cols":40,"rows_kept":134,"cut":false,"hidden":false,"merged":[[43,14,43,16],[56,11,56,14],[33,15,33,16],[32,15,32,16],[31,15,31,16],[45,14,45,16],[46,14,46,16],[47,14,47,16],[48,14,48,16],[49,14,49,16],[39,11,39,14],[40,11,40,14],[53,14,53,16],[39,15,39,16],[40,15,40,16],[44,14,44,16],[38,15,38,16],[32,11,32,14],[33,11,33,14],[34,11,34,14],[36,15,36,16],[37,15,37,16],[29,15,29,16],[34,15,34,16],[35,15,35,16],[30,15,30,16],[23,6,23,9],[24,6,24,9],[30,11,30,14],[31,11,31,14],[54,14,54,16],[54,3,54,4],[54,12,54,13],[44,12,44,13],[45,12,45,13],[46,12,46,13],[47,12,47,13],[48,12,48,13],[49,12,49,13],[50,12,50,13],[51,12,51,13],[52,12,52,13],[53,12,53,13],[50,14,50,16],[51,14,51,16],[52,14,52,16],[16,20,16,21],[18,10,18,12],[19,10,19,12],[20,10,20,12],[22,10,22,12],[21,10,21,12],[1,3,1,4],[1,7,1,9],[5,6,5,13],[6,2,6,4],[6,11,7,12],[6,13,7,13],[7,2,7,4],[2,3,2,4],[2,1,2,2],[8,2,8,4],[9,2,9,4],[19,0,19,1],[29,11,29,14],[38,1,38,2],[35,1,35,2],[28,3,28,5],[14,11,14,12],[23,10,23,12],[24,10,24,12],[18,6,18,9],[19,6,19,9],[20,6,20,9],[22,6,22,9],[36,11,36,14],[35,11,35,14],[43,17,43,18],[40,3,40,4],[39,1,39,2],[43,12,43,13],[13,11,13,12],[36,1,36,2],[37,1,37,2],[28,1,29,2],[30,1,30,2],[31,1,31,2],[32,1,32,2],[33,1,33,2],[34,1,34,2],[21,6,21,9],[37,11,37,14],[38,11,38,14]]}
["Statement on personnel deployment"]
[null,"Contract number:",null,"Processing no./Cost centre:",null,null,null,"Accounting period:"]
[null,{"$f":"'Invoice overview'!A28","v":0},null,{"$f":"'Invoice overview'!$C$28","v":0},null,null,null,null,null,{"$f":"_xlfn.TEXTJOIN(\"   \",FALSE,IF('Invoice overview'!$G$28 > 0, TEXT('Invoice overview'!$G$28,\"TT.MM.JJJJ\"),\"\"),\"until\",IF('Invoice overview'!$I$28 > 0,TEXT('Invoice overview'!$I$28,\"TT.MM.JJJJ\"),\"\"))","v":"   until   "}]
[]
[]
["Personal data"]
["Family name, given name:"]
["Function:",null,"Please select"]
["Description of function:"]
["Expert no. per price schedule"]
[]
[]
[]
[]
[]
[]
[]
[]
["Personnel costs",null,null,null,null,null,"Remarks",null,null,null,"Reserved for GIZ"]
["Remuneration item",null,"Accounting unit ","Rate","Quantity","Amount"]
["Fee (No. 5.4 General Conditions)",null,"Please select",null,null,{"$f":"SUM(E21*D21)","v":0}]
["Fee (No. 5.4 General Conditions)",null,"Please select",null,null,{"$f":"SUM(E22*D22)","v":0}]
[null,null,null,"Daily rate\nacc. to contract","Days"]
["Per diem (No. 5.6. General Conditions)",null,null,null,null,{"$f":"SUM(E24*D24)","v":0}]
["Accommodation (No. 5.7 General Conditions)",null,null,null,null,{"$f":"SUM(E25*D25)","v":0}]
[]
["Travel expenses"]
["Air travel (No. 5.8 General Conditions)"]
[null,"Type of flight",null,"Travel dates"]
["No.",null,null,"Destination","Start\n (dd/mm/yy)","End \n(dd/mm/yy)","Reimbursement type\n\nacc. to contract","Amount\n (per voucher or lump sum)","Currency","Exchange rate*","Amount ","Remarks",null,null,null,"Reserved for GIZ"]
[1,"Please select",null,null,null,null,"Please select",null,null,null,{"$f":"H31*J31","v":0}]
[2,null,null,null,null,null,null,null,null,null,{"$f":"H32*J32","v":0}]
[3,null,null,null,null,null,null,null,null,null,0]
[4,null,null,null,null,null,null,null,null,null,0]
[5,null,null,null,null,null,null,null,null,null,0]
[6,null,null,null,null,null,null,null,null,null,0]
[7,null,null,null,null,null,null,null,null,null,0]
[8,null,null,null,null,null,null,null,null,null,0]
[9,null,null,null,null,null,null,null,null,null,0]
[10,null,null,null,null,null,null,null,null,null,0]
["TOTAL",null,null,null,null,null,null,null,null,{"$f":"'Invoice overview'!F32","v":"EUR"},{"$f":"SUM(K31:K40)","v":0}]
[]
["Other travel expenses (No. 5.9 General Conditions)"]
["No.","Country of travel","Nature of travel expenses","Start\n(dd/mm/yy)","End \n(dd/mm/yy)","Reason for travel","Reimbursement type\nacc. to contract","Amount\n (per voucher or lump sum)","Quantity"," ","Currency","Exchange rate*","Amount ",null,"Remarks",null,null,"Reserved for GIZ"]
[1,null,"Please select",null,null,null,"Please select",null,null,null,null,null,{"$f":"IF(G45=\"Against evidence\",H45*L45,IF(G45=\"Lump sum\",H45*I45*L45,\"0,00\"))","v":"0,00"}]
[2,null,null,null,null,null,null,null,null,null,null,null,{"$f":"IF(G46=\"Against evidence\",H46*L46,IF(G46=\"Lump sum\",H46*I46*L46,\"0,00\"))","v":"0,00"}]
[3,null,null,null,null,null,null,null,null,null,null,null,"0,00"]
[4,null,null,null,null,null,null,null,null,null,null,null,"0,00"]
[5,null,null,null,null,null,null,null,null,null,null,null,"0,00"]
[6,null,null,null,null,null,null,null,null,null,null,null,"0,00"]
[7,null,null,null,null,null,null,null,null,null,null,null,"0,00"]
[8,null,null,null,null,null,null,null,null,null,null,null,"0,00"]
[9,null,null,null,null,null,null,null,null,null,null,null,"0,00"]
[10,null,null,null,null,null,null,null,null,null,null,null,"0,00"]
["TOTAL",null,null,null,null,null,null,null,null,null,null,{"$f":"'Invoice overview'!F32","v":"EUR"},{"$f":"SUM(M45:N54)","v":0}]
[]
[null,null,null,null,null,null,null,null,null,null,null,"Total for expert/contractor",null,null,null,{"$f":"SUM(M55,K41,F25,F24,F21,F22,)","v":0}]
[]
[]
[]
[]
[]
[]
[]
[]
[]
[]
[]
[]
[]
[]
[]
[]
[]
[]
[]
[]
[]
[]
[]
[]
[]
[]
[]
[]
[]
[]
[]
[]
[]
[]
[]
[]
[]
[]
[]
[]
[]
[]
[null,null,null,null,null,null,null,null,null,null,null,null,null,null,null,null,null,null,null,null,null,null,null,null,null,null,null,null,null,null,null,null,null,null,null,null,null,null,null,"Please select"]
[null,null,null,null,null,null,null,null,null,null,null,null,null,null,null,null,null,null,null,null,null,null,null,null,null,null,null,null,null,null,null,null,null,null,null,null,null,null,null,"Outward and homeward journeys"]
[null,null,null,null,null,null,null,null,null,null,null,null,null,null,null,null,null,null,null,null,null,null,null,null,null,null,null,null,null,null,null,null,null,null,null,null,null,null,null,"Regional and national flights"]
[null,null,null,null,null,null,null,null,null,null,null,null,null,null,null,null,null,null,null,null,null,null,null,null,null,null,null,null,null,null,null,null,null,null,null,null,null,null,null,"Other flights"]
[]
[null,null,null,null,null,null,null,null,null,null,null,null,null,null,null,null,null,null,null,null,null,null,null,null,null,null,null,null,null,null,null,null,null,null,null,null,null,null,null,"Please select"]
[null,null,null,null,null,null,null,null,null,null,null,null,null,null,null,null,null,null,null,null,null,null,null,null,null,null,null,null,null,null,null,null,null,null,null,null,null,null,null,"Hours"]
[null,null,null,null,null,null,null,null,null,null,null,null,null,null,null,null,null,null,null,null,null,null,null,null,null,null,null,null,null,null,null,null,null,null,null,null,null,null,null,"Standard lines"]
[null,null,null,null,null,null,null,null,null,null,null,null,null,null,null,null,null,null,null,null,null,null,null,null,null,null,null,null,null,null,null,null,null,null,null,null,null,null,null,"Days"]
[]
[]
[]
[null,null,null,null,null,null,null,null,null,null,null,null,null,null,null,null,null,null,null,null,null,null,null,null,null,null,null,null,null,null,null,null,null,null,null,null,null,null,null,"Please select"]
[null,null,null,null,null,null,null,null,null,null,null,null,null,null,null,null,null,null,null,null,null,null,null,null,null,null,null,null,null,null,null,null,null,null,null,null,null,null,null,"Expert (outward and homeward journeys)"]
[null,null,null,null,null,null,null,null,null,null,null,null,null,null,null,null,null,null,null,null,null,null,null,null,null,null,null,null,null,null,null,null,null,null,null,null,null,null,null,"Dependants (outward and homeward journeys) "]
[null,null,null,null,null,null,null,null,null,null,null,null,null,null,null,null,null,null,null,null,null,null,null,null,null,null,null,null,null,null,null,null,null,null,null,null,null,null,null,"Vacation flights"]
[null,null,null,null,null,null,null,null,null,null,null,null,null,null,null,null,null,null,null,null,null,null,null,null,null,null,null,null,null,null,null,null,null,null,null,null,null,null,null,"Regional and national flights"]
[null,null,null,null,null,null,null,null,null,null,null,null,null,null,null,null,null,null,null,null,null,null,null,null,null,null,null,null,null,null,null,null,null,null,null,null,null,null,null,"Other flights"]
[]
[null,null,null,null,null,null,null,null,null,null,null,null,null,null,null,null,null,null,null,null,null,null,null,null,null,null,null,null,null,null,null,null,null,null,null,null,null,null,null,"Please select"]
[null,null,null,null,null,null,null,null,null,null,null,null,null,null,null,null,null,null,null,null,null,null,null,null,null,null,null,null,null,null,null,null,null,null,null,null,null,null,null,"Lump sum"]
[null,null,null,null,null,null,null,null,null,null,null,null,null,null,null,null,null,null,null,null,null,null,null,null,null,null,null,null,null,null,null,null,null,null,null,null,null,null,null,"Against evidence"]
[]
[null,null,null,null,null,null,null,null,null,null,null,null,null,null,null,null,null,null,null,null,null,null,null,null,null,null,null,null,null,null,null,null,null,null,null,null,null,null,null,"Please select"]
[null,null,null,null,null,null,null,null,null,null,null,null,null,null,null,null,null,null,null,null,null,null,null,null,null,null,null,null,null,null,null,null,null,null,null,null,null,null,null,"International short-term expert"]
[null,null,null,null,null,null,null,null,null,null,null,null,null,null,null,null,null,null,null,null,null,null,null,null,null,null,null,null,null,null,null,null,null,null,null,null,null,null,null,"Regional short-term expert"]
[null,null,null,null,null,null,null,null,null,null,null,null,null,null,null,null,null,null,null,null,null,null,null,null,null,null,null,null,null,null,null,null,null,null,null,null,null,null,null,"National short-term expert"]
[null,null,null,null,null,null,null,null,null,null,null,null,null,null,null,null,null,null,null,null,null,null,null,null,null,null,null,null,null,null,null,null,null,null,null,null,null,null,null,"Other (please define)"]
[]
[]
[]
[]
[null,null,null,null,null,null,null,null,null,null,null,null,null,null,null,null,null,null,null,null,null,null,null,null,null,null,null,null,null,null,null,null,null,null,null,null,null,null,null,"Please select"]
[null,null,null,null,null,null,null,null,null,null,null,null,null,null,null,null,null,null,null,null,null,null,null,null,null,null,null,null,null,null,null,null,null,null,null,null,null,null,null,"Travel expenses outside the country"]
[null,null,null,null,null,null,null,null,null,null,null,null,null,null,null,null,null,null,null,null,null,null,null,null,null,null,null,null,null,null,null,null,null,null,null,null,null,null,null,"Travel expenses in the country"]

{"sheet":"Expert sheet (2)","index":2,"n_rows":134,"n_cols":40,"rows_kept":134,"cut":false,"hidden":true,"merged":[[56,11,56,14],[52,12,52,13],[52,14,52,16],[53,12,53,13],[53,14,53,16],[47,12,47,13],[47,14,47,16],[48,12,48,13],[48,14,48,16],[54,3,54,4],[54,12,54,13],[54,14,54,16],[49,12,49,13],[49,14,49,16],[50,12,50,13],[50,14,50,16],[51,12,51,13],[51,14,51,16],[43,17,43,18],[44,12,44,13],[44,14,44,16],[46,12,46,13],[46,14,46,16],[45,12,45,13],[45,14,45,16],[43,12,43,13],[43,14,43,16],[39,1,39,2],[39,11,39,14],[39,15,39,16],[40,3,40,4],[40,11,40,14],[40,15,40,16],[37,1,37,2],[37,11,37,14],[37,15,37,16],[38,1,38,2],[38,11,38,14],[38,15,38,16],[35,1,35,2],[35,11,35,14],[35,15,35,16],[36,1,36,2],[36,11,36,14],[36,15,36,16],[33,1,33,2],[33,11,33,14],[33,15,33,16],[34,1,34,2],[34,11,34,14],[34,15,34,16],[31,1,31,2],[31,11,31,14],[31,15,31,16],[32,1,32,2],[32,11,32,14],[32,15,32,16],[28,1,29,2],[28,3,28,5],[29,11,29,14],[29,15,29,16],[30,1,30,2],[30,11,30,14],[30,15,30,16],[22,6,22,9],[22,10,22,12],[23,6,23,9],[23,10,23,12],[24,6,24,9],[24,10,24,12],[19,0,19,1],[19,6,19,9],[19,10,19,12],[20,6,20,9],[20,10,20,12],[21,6,21,9],[21,10,21,12],[8,2,8,4],[9,2,9,4],[13,11,13,12],[14,11,14,12],[16,20,16,21],[18,6,18,9],[18,10,18,12],[1,3,1,4],[1,7,1,9],[2,1,2,2],[2,3,2,4],[5,6,5,13],[6,2,6,4],[6,11,7,12],[6,13,7,13],[7,2,7,4]]}
["Statement on personnel deployment"]
[null,"Contract number:",null,"Processing no./Cost centre:",null,null,null,"Accounting period:"]
[null,{"$f":"'Invoice overview'!A28","v":0},null,{"$f":"'Invoice overview'!$C$28","v":0},null,null,null,null,null,{"$f":"_xlfn.TEXTJOIN(\"   \",FALSE,IF('Invoice overview'!$G$28 > 0, TEXT('Invoice overview'!$G$28,\"TT.MM.JJJJ\"),\"\"),\"until\",IF('Invoice overview'!$I$28 > 0,TEXT('Invoice overview'!$I$28,\"TT.MM.JJJJ\"),\"\"))","v":"   until   "}]
[]
[]
["Personal data"]
["Family name, given name:"]
["Function:",null,"Please select"]
["Description of function:"]
["Expert no. per price schedule"]
[]
[]
[]
[]
[]
[]
[]
[]
["Personnel costs",null,null,null,null,null,"Remarks",null,null,null,"Reserved for GIZ"]
["Remuneration item",null,"Accounting unit ","Rate","Quantity","Amount"]
["Fee (No. 5.4 General Conditions)",null,"Please select",null,null,{"$f":"SUM(E21*D21)","v":0}]
["Fee (No. 5.4 General Conditions)",null,"Please select",null,null,{"$f":"SUM(E22*D22)","v":0}]
[null,null,null,"Daily rate\nacc. to contract","Days"]
["Per diem (No. 5.6. General Conditions)",null,null,null,null,{"$f":"SUM(E24*D24)","v":0}]
["Accommodation (No. 5.7 General Conditions)",null,null,null,null,{"$f":"SUM(E25*D25)","v":0}]
[]
["Travel expenses"]
["Air travel (No. 5.8 General Conditions)"]
[null,"Type of flight",null,"Travel dates"]
["No.",null,null,"Destination","Start\n (dd/mm/yy)","End \n(dd/mm/yy)","Reimbursement type\n\nacc. to contract","Amount\n (per voucher or lump sum)","Currency","Exchange rate*","Amount ","Remarks",null,null,null,"Reserved for GIZ"]
[1,"Please select",null,null,null,null,"Please select",null,null,null,{"$f":"H31*J31","v":0}]
[2,null,null,null,null,null,null,null,null,null,{"$f":"H32*J32","v":0}]
[3,null,null,null,null,null,null,null,null,null,0]
[4,null,null,null,null,null,null,null,null,null,0]
[5,null,null,null,null,null,null,null,null,null,0]
[6,null,null,null,null,null,null,null,null,null,0]
[7,null,null,null,null,null,null,null,null,null,0]
[8,null,null,null,null,null,null,null,null,null,0]
[9,null,null,null,null,null,null,null,null,null,0]
[10,null,null,null,null,null,null,null,null,null,0]
["TOTAL",null,null,null,null,null,null,null,null,{"$f":"'Invoice overview'!F32","v":"EUR"},{"$f":"SUM(K31:K40)","v":0}]
[]
["Other travel expenses (No. 5.9 General Conditions)"]
["No.","Country of travel","Nature of travel expenses","Start\n(dd/mm/yy)","End \n(dd/mm/yy)","Reason for travel","Reimbursement type\nacc. to contract","Amount\n (per voucher or lump sum)","Quantity"," ","Currency","Exchange rate*","Amount ",null,"Remarks",null,null,"Reserved for GIZ"]
[1,null,"Please select",null,null,null,"Please select",null,null,null,null,null,{"$f":"IF(G45=\"Against evidence\",H45*L45,IF(G45=\"Lump sum\",H45*I45*L45,\"0,00\"))","v":"0,00"}]
[2,null,null,null,null,null,null,null,null,null,null,null,{"$f":"IF(G46=\"Against evidence\",H46*L46,IF(G46=\"Lump sum\",H46*I46*L46,\"0,00\"))","v":"0,00"}]
[3,null,null,null,null,null,null,null,null,null,null,null,"0,00"]
[4,null,null,null,null,null,null,null,null,null,null,null,"0,00"]
[5,null,null,null,null,null,null,null,null,null,null,null,"0,00"]
[6,null,null,null,null,null,null,null,null,null,null,null,"0,00"]
[7,null,null,null,null,null,null,null,null,null,null,null,"0,00"]
[8,null,null,null,null,null,null,null,null,null,null,null,"0,00"]
[9,null,null,null,null,null,null,null,null,null,null,null,"0,00"]
[10,null,null,null,null,null,null,null,null,null,null,null,"0,00"]
["TOTAL",null,null,null,null,null,null,null,null,null,null,{"$f":"'Invoice overview'!F32","v":"EUR"},{"$f":"SUM(M45:N54)","v":0}]
[]
[null,null,null,null,null,null,null,null,null,null,null,"Total for expert/contractor",null,null,null,{"$f":"SUM(M55,K41,F25,F24,F21,F22,)","v":0}]
[]
[]
[]
[]
[]
[]
[]
[]
[]
[]
[]
[]
[]
[]
[]
[]
[]
[]
[]
[]
[]
[]
[]
[]
[]
[]
[]
[]
[]
[]
[]
[]
[]
[]
[]
[]
[]
[]
[]
[]
[]
[]
[null,null,null,null,null,null,null,null,null,null,null,null,null,null,null,null,null,null,null,null,null,null,null,null,null,null,null,null,null,null,null,null,null,null,null,null,null,null,null,"Please select"]
[null,null,null,null,null,null,null,null,null,null,null,null,null,null,null,null,null,null,null,null,null,null,null,null,null,null,null,null,null,null,null,null,null,null,null,null,null,null,null,"Outward and homeward journeys"]
[null,null,null,null,null,null,null,null,null,null,null,null,null,null,null,null,null,null,null,null,null,null,null,null,null,null,null,null,null,null,null,null,null,null,null,null,null,null,null,"Regional and national flights"]
[null,null,null,null,null,null,null,null,null,null,null,null,null,null,null,null,null,null,null,null,null,null,null,null,null,null,null,null,null,null,null,null,null,null,null,null,null,null,null,"Other flights"]
[]
[null,null,null,null,null,null,null,null,null,null,null,null,null,null,null,null,null,null,null,null,null,null,null,null,null,null,null,null,null,null,null,null,null,null,null,null,null,null,null,"Please select"]
[null,null,null,null,null,null,null,null,null,null,null,null,null,null,null,null,null,null,null,null,null,null,null,null,null,null,null,null,null,null,null,null,null,null,null,null,null,null,null,"Hours"]
[null,null,null,null,null,null,null,null,null,null,null,null,null,null,null,null,null,null,null,null,null,null,null,null,null,null,null,null,null,null,null,null,null,null,null,null,null,null,null,"Standard lines"]
[null,null,null,null,null,null,null,null,null,null,null,null,null,null,null,null,null,null,null,null,null,null,null,null,null,null,null,null,null,null,null,null,null,null,null,null,null,null,null,"Days"]
[]
[]
[]
[null,null,null,null,null,null,null,null,null,null,null,null,null,null,null,null,null,null,null,null,null,null,null,null,null,null,null,null,null,null,null,null,null,null,null,null,null,null,null,"Please select"]
[null,null,null,null,null,null,null,null,null,null,null,null,null,null,null,null,null,null,null,null,null,null,null,null,null,null,null,null,null,null,null,null,null,null,null,null,null,null,null,"Expert (outward and homeward journeys)"]
[null,null,null,null,null,null,null,null,null,null,null,null,null,null,null,null,null,null,null,null,null,null,null,null,null,null,null,null,null,null,null,null,null,null,null,null,null,null,null,"Dependants (outward and homeward journeys) "]
[null,null,null,null,null,null,null,null,null,null,null,null,null,null,null,null,null,null,null,null,null,null,null,null,null,null,null,null,null,null,null,null,null,null,null,null,null,null,null,"Vacation flights"]
[null,null,null,null,null,null,null,null,null,null,null,null,null,null,null,null,null,null,null,null,null,null,null,null,null,null,null,null,null,null,null,null,null,null,null,null,null,null,null,"Regional and national flights"]
[null,null,null,null,null,null,null,null,null,null,null,null,null,null,null,null,null,null,null,null,null,null,null,null,null,null,null,null,null,null,null,null,null,null,null,null,null,null,null,"Other flights"]
[]
[null,null,null,null,null,null,null,null,null,null,null,null,null,null,null,null,null,null,null,null,null,null,null,null,null,null,null,null,null,null,null,null,null,null,null,null,null,null,null,"Please select"]
[null,null,null,null,null,null,null,null,null,null,null,null,null,null,null,null,null,null,null,null,null,null,null,null,null,null,null,null,null,null,null,null,null,null,null,null,null,null,null,"Lump sum"]
[null,null,null,null,null,null,null,null,null,null,null,null,null,null,null,null,null,null,null,null,null,null,null,null,null,null,null,null,null,null,null,null,null,null,null,null,null,null,null,"Against evidence"]
[]
[null,null,null,null,null,null,null,null,null,null,null,null,null,null,null,null,null,null,null,null,null,null,null,null,null,null,null,null,null,null,null,null,null,null,null,null,null,null,null,"Please select"]
[null,null,null,null,null,null,null,null,null,null,null,null,null,null,null,null,null,null,null,null,null,null,null,null,null,null,null,null,null,null,null,null,null,null,null,null,null,null,null,"International short-term expert"]
[null,null,null,null,null,null,null,null,null,null,null,null,null,null,null,null,null,null,null,null,null,null,null,null,null,null,null,null,null,null,null,null,null,null,null,null,null,null,null,"Regional short-term expert"]
[null,null,null,null,null,null,null,null,null,null,null,null,null,null,null,null,null,null,null,null,null,null,null,null,null,null,null,null,null,null,null,null,null,null,null,null,null,null,null,"National short-term expert"]
[null,null,null,null,null,null,null,null,null,null,null,null,null,null,null,null,null,null,null,null,null,null,null,null,null,null,null,null,null,null,null,null,null,null,null,null,null,null,null,"Other (please define)"]
[]
[]
[]
[]
[null,null,null,null,null,null,null,null,null,null,null,null,null,null,null,null,null,null,null,null,null,null,null,null,null,null,null,null,null,null,null,null,null,null,null,null,null,null,null,"Please select"]
[null,null,null,null,null,null,null,null,null,null,null,null,null,null,null,null,null,null,null,null,null,null,null,null,null,null,null,null,null,null,null,null,null,null,null,null,null,null,null,"Travel expenses outside the country"]
[null,null,null,null,null,null,null,null,null,null,null,null,null,null,null,null,null,null,null,null,null,null,null,null,null,null,null,null,null,null,null,null,null,null,null,null,null,null,null,"Travel expenses in the country"]

{"sheet":"Expert sheet (3)","index":3,"n_rows":134,"n_cols":40,"rows_kept":134,"cut":false,"hidden":true,"merged":[[54,3,54,4],[56,11,56,14],[52,12,52,13],[52,14,52,16],[53,12,53,13],[53,14,53,16],[54,12,54,13],[54,14,54,16],[49,12,49,13],[49,14,49,16],[50,12,50,13],[50,14,50,16],[51,12,51,13],[51,14,51,16],[48,12,48,13],[48,14,48,16],[43,12,43,13],[43,14,43,16],[46,12,46,13],[46,14,46,16],[47,12,47,13],[47,14,47,16],[39,1,39,2],[39,11,39,14],[39,15,39,16],[40,11,40,14],[40,15,40,16],[40,3,40,4],[37,1,37,2],[37,11,37,14],[37,15,37,16],[38,1,38,2],[38,11,38,14],[38,15,38,16],[35,1,35,2],[35,11,35,14],[35,15,35,16],[36,1,36,2],[36,11,36,14],[36,15,36,16],[33,1,33,2],[33,11,33,14],[33,15,33,16],[34,1,34,2],[34,11,34,14],[34,15,34,16],[32,1,32,2],[32,11,32,14],[32,15,32,16],[29,15,29,16],[30,15,30,16],[30,1,30,2],[30,11,30,14],[31,1,31,2],[31,11,31,14],[31,15,31,16],[16,20,16,21],[18,6,18,9],[18,10,18,12],[6,2,6,4],[6,11,7,12],[6,13,7,13],[7,2,7,4],[8,2,8,4],[9,2,9,4],[13,11,13,12],[14,11,14,12],[1,3,1,4],[1,7,1,9],[2,1,2,2],[2,3,2,4],[5,6,5,13],[19,0,19,1],[23,6,23,9],[23,10,23,12],[28,1,29,2],[28,3,28,5],[29,11,29,14],[22,6,22,9],[22,10,22,12],[21,6,21,9],[21,10,21,12],[24,6,24,9],[24,10,24,12],[19,6,19,9],[19,10,19,12],[20,6,20,9],[20,10,20,12],[43,17,43,18],[44,12,44,13],[44,14,44,16],[45,12,45,13],[45,14,45,16]]}
["Statement on personnel deployment"]
[null,"Contract number:",null,"Processing no./Cost centre:",null,null,null,"Accounting period:"]
[null,{"$f":"'Invoice overview'!A28","v":0},null,{"$f":"'Invoice overview'!$C$28","v":0},null,null,null,null,null,{"$f":"_xlfn.TEXTJOIN(\"   \",FALSE,IF('Invoice overview'!$G$28 > 0, TEXT('Invoice overview'!$G$28,\"TT.MM.JJJJ\"),\"\"),\"until\",IF('Invoice overview'!$I$28 > 0,TEXT('Invoice overview'!$I$28,\"TT.MM.JJJJ\"),\"\"))","v":"   until   "}]
[]
[]
["Personal data"]
["Family name, given name:"]
["Function:",null,"Please select"]
["Description of function:"]
["Expert no. per price schedule"]
[]
[]
[]
[]
[]
[]
[]
[]
["Personnel costs",null,null,null,null,null,"Remarks",null,null,null,"Reserved for GIZ"]
["Remuneration item",null,"Accounting unit ","Rate","Quantity","Amount"]
["Fee (No. 5.4 General Conditions)",null,"Please select",null,null,{"$f":"SUM(E21*D21)","v":0}]
["Fee (No. 5.4 General Conditions)",null,"Please select",null,null,{"$f":"SUM(E22*D22)","v":0}]
[null,null,null,"Daily rate\nacc. to contract","Days"]
["Per diem (No. 5.6. General Conditions)",null,null,null,null,{"$f":"SUM(E24*D24)","v":0}]
["Accommodation (No. 5.7 General Conditions)",null,null,null,null,{"$f":"SUM(E25*D25)","v":0}]
[]
["Travel expenses"]
["Air travel (No. 5.8 General Conditions)"]
[null,"Type of flight",null,"Travel dates"]
["No.",null,null,"Destination","Start\n (dd/mm/yy)","End \n(dd/mm/yy)","Reimbursement type\n\nacc. to contract","Amount\n (per voucher or lump sum)","Currency","Exchange rate*","Amount ","Remarks",null,null,null,"Reserved for GIZ"]
[1,"Please select",null,null,null,null,"Please select",null,null,null,{"$f":"H31*J31","v":0}]
[2,null,null,null,null,null,null,null,null,null,{"$f":"H32*J32","v":0}]
[3,null,null,null,null,null,null,null,null,null,0]
[4,null,null,null,null,null,null,null,null,null,0]
[5,null,null,null,null,null,null,null,null,null,0]
[6,null,null,null,null,null,null,null,null,null,0]
[7,null,null,null,null,null,null,null,null,null,0]
[8,null,null,null,null,null,null,null,null,null,0]
[9,null,null,null,null,null,null,null,null,null,0]
[10,null,null,null,null,null,null,null,null,null,0]
["TOTAL",null,null,null,null,null,null,null,null,{"$f":"'Invoice overview'!F32","v":"EUR"},{"$f":"SUM(K31:K40)","v":0}]
[]
["Other travel expenses (No. 5.9 General Conditions)"]
["No.","Country of travel","Nature of travel expenses","Start\n(dd/mm/yy)","End \n(dd/mm/yy)","Reason for travel","Reimbursement type\nacc. to contract","Amount\n (per voucher or lump sum)","Quantity"," ","Currency","Exchange rate*","Amount ",null,"Remarks",null,null,"Reserved for GIZ"]
[1,null,"Please select",null,null,null,"Please select",null,null,null,null,null,{"$f":"IF(G45=\"Against evidence\",H45*L45,IF(G45=\"Lump sum\",H45*I45*L45,\"0,00\"))","v":"0,00"}]
[2,null,null,null,null,null,null,null,null,null,null,null,{"$f":"IF(G46=\"Against evidence\",H46*L46,IF(G46=\"Lump sum\",H46*I46*L46,\"0,00\"))","v":"0,00"}]
[3,null,null,null,null,null,null,null,null,null,null,null,"0,00"]
[4,null,null,null,null,null,null,null,null,null,null,null,"0,00"]
[5,null,null,null,null,null,null,null,null,null,null,null,"0,00"]
[6,null,null,null,null,null,null,null,null,null,null,null,"0,00"]
[7,null,null,null,null,null,null,null,null,null,null,null,"0,00"]
[8,null,null,null,null,null,null,null,null,null,null,null,"0,00"]
[9,null,null,null,null,null,null,null,null,null,null,null,"0,00"]
[10,null,null,null,null,null,null,null,null,null,null,null,"0,00"]
["TOTAL",null,null,null,null,null,null,null,null,null,null,{"$f":"'Invoice overview'!F32","v":"EUR"},{"$f":"SUM(M45:N54)","v":0}]
[]
[null,null,null,null,null,null,null,null,null,null,null,"Total for expert/contractor",null,null,null,{"$f":"SUM(M55,K41,F25,F24,F21,F22,)","v":0}]
[]
[]
[]
[]
[]
[]
[]
[]
[]
[]
[]
[]
[]
[]
[]
[]
[]
[]
[]
[]
[]
[]
[]
[]
[]
[]
[]
[]
[]
[]
[]
[]
[]
[]
[]
[]
[]
[]
[]
[]
[]
[]
[null,null,null,null,null,null,null,null,null,null,null,null,null,null,null,null,null,null,null,null,null,null,null,null,null,null,null,null,null,null,null,null,null,null,null,null,null,null,null,"Please select"]
[null,null,null,null,null,null,null,null,null,null,null,null,null,null,null,null,null,null,null,null,null,null,null,null,null,null,null,null,null,null,null,null,null,null,null,null,null,null,null,"Outward and homeward journeys"]
[null,null,null,null,null,null,null,null,null,null,null,null,null,null,null,null,null,null,null,null,null,null,null,null,null,null,null,null,null,null,null,null,null,null,null,null,null,null,null,"Regional and national flights"]
[null,null,null,null,null,null,null,null,null,null,null,null,null,null,null,null,null,null,null,null,null,null,null,null,null,null,null,null,null,null,null,null,null,null,null,null,null,null,null,"Other flights"]
[]
[null,null,null,null,null,null,null,null,null,null,null,null,null,null,null,null,null,null,null,null,null,null,null,null,null,null,null,null,null,null,null,null,null,null,null,null,null,null,null,"Please select"]
[null,null,null,null,null,null,null,null,null,null,null,null,null,null,null,null,null,null,null,null,null,null,null,null,null,null,null,null,null,null,null,null,null,null,null,null,null,null,null,"Hours"]
[null,null,null,null,null,null,null,null,null,null,null,null,null,null,null,null,null,null,null,null,null,null,null,null,null,null,null,null,null,null,null,null,null,null,null,null,null,null,null,"Standard lines"]
[null,null,null,null,null,null,null,null,null,null,null,null,null,null,null,null,null,null,null,null,null,null,null,null,null,null,null,null,null,null,null,null,null,null,null,null,null,null,null,"Days"]
[]
[]
[]
[null,null,null,null,null,null,null,null,null,null,null,null,null,null,null,null,null,null,null,null,null,null,null,null,null,null,null,null,null,null,null,null,null,null,null,null,null,null,null,"Please select"]
[null,null,null,null,null,null,null,null,null,null,null,null,null,null,null,null,null,null,null,null,null,null,null,null,null,null,null,null,null,null,null,null,null,null,null,null,null,null,null,"Expert (outward and homeward journeys)"]
[null,null,null,null,null,null,null,null,null,null,null,null,null,null,null,null,null,null,null,null,null,null,null,null,null,null,null,null,null,null,null,null,null,null,null,null,null,null,null,"Dependants (outward and homeward journeys) "]
[null,null,null,null,null,null,null,null,null,null,null,null,null,null,null,null,null,null,null,null,null,null,null,null,null,null,null,null,null,null,null,null,null,null,null,null,null,null,null,"Vacation flights"]
[null,null,null,null,null,null,null,null,null,null,null,null,null,null,null,null,null,null,null,null,null,null,null,null,null,null,null,null,null,null,null,null,null,null,null,null,null,null,null,"Regional and national flights"]
[null,null,null,null,null,null,null,null,null,null,null,null,null,null,null,null,null,null,null,null,null,null,null,null,null,null,null,null,null,null,null,null,null,null,null,null,null,null,null,"Other flights"]
[]
[null,null,null,null,null,null,null,null,null,null,null,null,null,null,null,null,null,null,null,null,null,null,null,null,null,null,null,null,null,null,null,null,null,null,null,null,null,null,null,"Please select"]
[null,null,null,null,null,null,null,null,null,null,null,null,null,null,null,null,null,null,null,null,null,null,null,null,null,null,null,null,null,null,null,null,null,null,null,null,null,null,null,"Lump sum"]
[null,null,null,null,null,null,null,null,null,null,null,null,null,null,null,null,null,null,null,null,null,null,null,null,null,null,null,null,null,null,null,null,null,null,null,null,null,null,null,"Against evidence"]
[]
[null,null,null,null,null,null,null,null,null,null,null,null,null,null,null,null,null,null,null,null,null,null,null,null,null,null,null,null,null,null,null,null,null,null,null,null,null,null,null,"Please select"]
[null,null,null,null,null,null,null,null,null,null,null,null,null,null,null,null,null,null,null,null,null,null,null,null,null,null,null,null,null,null,null,null,null,null,null,null,null,null,null,"International short-term expert"]
[null,null,null,null,null,null,null,null,null,null,null,null,null,null,null,null,null,null,null,null,null,null,null,null,null,null,null,null,null,null,null,null,null,null,null,null,null,null,null,"Regional short-term expert"]
[null,null,null,null,null,null,null,null,null,null,null,null,null,null,null,null,null,null,null,null,null,null,null,null,null,null,null,null,null,null,null,null,null,null,null,null,null,null,null,"National short-term expert"]
[null,null,null,null,null,null,null,null,null,null,null,null,null,null,null,null,null,null,null,null,null,null,null,null,null,null,null,null,null,null,null,null,null,null,null,null,null,null,null,"Other (please define)"]
[]
[]
[]
[]
[null,null,null,null,null,null,null,null,null,null,null,null,null,null,null,null,null,null,null,null,null,null,null,null,null,null,null,null,null,null,null,null,null,null,null,null,null,null,null,"Please select"]
[null,null,null,null,null,null,null,null,null,null,null,null,null,null,null,null,null,null,null,null,null,null,null,null,null,null,null,null,null,null,null,null,null,null,null,null,null,null,null,"Travel expenses outside the country"]
[null,null,null,null,null,null,null,null,null,null,null,null,null,null,null,null,null,null,null,null,null,null,null,null,null,null,null,null,null,null,null,null,null,null,null,null,null,null,null,"Travel expenses in the country"]

{"sheet":"Expert sheet (4)","index":4,"n_rows":134,"n_cols":40,"rows_kept":134,"cut":false,"hidden":true,"merged":[[54,3,54,4],[56,11,56,14],[52,12,52,13],[52,14,52,16],[53,12,53,13],[53,14,53,16],[54,12,54,13],[54,14,54,16],[49,12,49,13],[49,14,49,16],[50,12,50,13],[50,14,50,16],[51,12,51,13],[51,14,51,16],[48,12,48,13],[48,14,48,16],[43,12,43,13],[43,14,43,16],[46,12,46,13],[46,14,46,16],[47,12,47,13],[47,14,47,16],[39,1,39,2],[39,11,39,14],[39,15,39,16],[40,11,40,14],[40,15,40,16],[40,3,40,4],[37,1,37,2],[37,11,37,14],[37,15,37,16],[38,1,38,2],[38,11,38,14],[38,15,38,16],[35,1,35,2],[35,11,35,14],[35,15,35,16],[36,1,36,2],[36,11,36,14],[36,15,36,16],[33,1,33,2],[33,11,33,14],[33,15,33,16],[34,1,34,2],[34,11,34,14],[34,15,34,16],[32,1,32,2],[32,11,32,14],[32,15,32,16],[29,15,29,16],[30,15,30,16],[30,1,30,2],[30,11,30,14],[31,1,31,2],[31,11,31,14],[31,15,31,16],[16,20,16,21],[18,6,18,9],[18,10,18,12],[6,2,6,4],[6,11,7,12],[6,13,7,13],[7,2,7,4],[8,2,8,4],[9,2,9,4],[13,11,13,12],[14,11,14,12],[1,3,1,4],[1,7,1,9],[2,1,2,2],[2,3,2,4],[5,6,5,13],[19,0,19,1],[23,6,23,9],[23,10,23,12],[28,1,29,2],[28,3,28,5],[29,11,29,14],[22,6,22,9],[22,10,22,12],[21,6,21,9],[21,10,21,12],[24,6,24,9],[24,10,24,12],[19,6,19,9],[19,10,19,12],[20,6,20,9],[20,10,20,12],[43,17,43,18],[44,12,44,13],[44,14,44,16],[45,12,45,13],[45,14,45,16]]}
["Statement on personnel deployment"]
[null,"Contract number:",null,"Processing no./Cost centre:",null,null,null,"Accounting period:"]
[null,{"$f":"'Invoice overview'!A28","v":0},null,{"$f":"'Invoice overview'!$C$28","v":0},null,null,null,null,null,{"$f":"_xlfn.TEXTJOIN(\"   \",FALSE,IF('Invoice overview'!$G$28 > 0, TEXT('Invoice overview'!$G$28,\"TT.MM.JJJJ\"),\"\"),\"until\",IF('Invoice overview'!$I$28 > 0,TEXT('Invoice overview'!$I$28,\"TT.MM.JJJJ\"),\"\"))","v":"   until   "}]
[]
[]
["Personal data"]
["Family name, given name:"]
["Function:",null,"Please select"]
["Description of function:"]
["Expert no. per price schedule"]
[]
[]
[]
[]
[]
[]
[]
[]
["Personnel costs",null,null,null,null,null,"Remarks",null,null,null,"Reserved for GIZ"]
["Remuneration item",null,"Accounting unit ","Rate","Quantity","Amount"]
["Fee (No. 5.4 General Conditions)",null,"Please select",null,null,{"$f":"SUM(E21*D21)","v":0}]
["Fee (No. 5.4 General Conditions)",null,"Please select",null,null,{"$f":"SUM(E22*D22)","v":0}]
[null,null,null,"Daily rate\nacc. to contract","Days"]
["Per diem (No. 5.6. General Conditions)",null,null,null,null,{"$f":"SUM(E24*D24)","v":0}]
["Accommodation (No. 5.7 General Conditions)",null,null,null,null,{"$f":"SUM(E25*D25)","v":0}]
[]
["Travel expenses"]
["Air travel (No. 5.8 General Conditions)"]
[null,"Type of flight",null,"Travel dates"]
["No.",null,null,"Destination","Start\n (dd/mm/yy)","End \n(dd/mm/yy)","Reimbursement type\n\nacc. to contract","Amount\n (per voucher or lump sum)","Currency","Exchange rate*","Amount ","Remarks",null,null,null,"Reserved for GIZ"]
[1,"Please select",null,null,null,null,"Please select",null,null,null,{"$f":"H31*J31","v":0}]
[2,null,null,null,null,null,null,null,null,null,{"$f":"H32*J32","v":0}]
[3,null,null,null,null,null,null,null,null,null,0]
[4,null,null,null,null,null,null,null,null,null,0]
[5,null,null,null,null,null,null,null,null,null,0]
[6,null,null,null,null,null,null,null,null,null,0]
[7,null,null,null,null,null,null,null,null,null,0]
[8,null,null,null,null,null,null,null,null,null,0]
[9,null,null,null,null,null,null,null,null,null,0]
[10,null,null,null,null,null,null,null,null,null,0]
["TOTAL",null,null,null,null,null,null,null,null,{"$f":"'Invoice overview'!F32","v":"EUR"},{"$f":"SUM(K31:K40)","v":0}]
[]
["Other travel expenses (No. 5.9 General Conditions)"]
["No.","Country of travel","Nature of travel expenses","Start\n(dd/mm/yy)","End \n(dd/mm/yy)","Reason for travel","Reimbursement type\nacc. to contract","Amount\n (per voucher or lump sum)","Quantity"," ","Currency","Exchange rate*","Amount ",null,"Remarks",null,null,"Reserved for GIZ"]
[1,null,"Please select",null,null,null,"Please select",null,null,null,null,null,{"$f":"IF(G45=\"Against evidence\",H45*L45,IF(G45=\"Lump sum\",H45*I45*L45,\"0,00\"))","v":"0,00"}]
[2,null,null,null,null,null,null,null,null,null,null,null,{"$f":"IF(G46=\"Against evidence\",H46*L46,IF(G46=\"Lump sum\",H46*I46*L46,\"0,00\"))","v":"0,00"}]
[3,null,null,null,null,null,null,null,null,null,null,null,"0,00"]
[4,null,null,null,null,null,null,null,null,null,null,null,"0,00"]
[5,null,null,null,null,null,null,null,null,null,null,null,"0,00"]
[6,null,null,null,null,null,null,null,null,null,null,null,"0,00"]
[7,null,null,null,null,null,null,null,null,null,null,null,"0,00"]
[8,null,null,null,null,null,null,null,null,null,null,null,"0,00"]
[9,null,null,null,null,null,null,null,null,null,null,null,"0,00"]
[10,null,null,null,null,null,null,null,null,null,null,null,"0,00"]
["TOTAL",null,null,null,null,null,null,null,null,null,null,{"$f":"'Invoice overview'!F32","v":"EUR"},{"$f":"SUM(M45:N54)","v":0}]
[]
[null,null,null,null,null,null,null,null,null,null,null,"Total for expert/contractor",null,null,null,{"$f":"SUM(M55,K41,F25,F24,F21,F22,)","v":0}]
[]
[]
[]
[]
[]
[]
[]
[]
[]
[]
[]
[]
[]
[]
[]
[]
[]
[]
[]
[]
[]
[]
[]
[]
[]
[]
[]
[]
[]
[]
[]
[]
[]
[]
[]
[]
[]
[]
[]
[]
[]
[]
[null,null,null,null,null,null,null,null,null,null,null,null,null,null,null,null,null,null,null,null,null,null,null,null,null,null,null,null,null,null,null,null,null,null,null,null,null,null,null,"Please select"]
[null,null,null,null,null,null,null,null,null,null,null,null,null,null,null,null,null,null,null,null,null,null,null,null,null,null,null,null,null,null,null,null,null,null,null,null,null,null,null,"Outward and homeward journeys"]
[null,null,null,null,null,null,null,null,null,null,null,null,null,null,null,null,null,null,null,null,null,null,null,null,null,null,null,null,null,null,null,null,null,null,null,null,null,null,null,"Regional and national flights"]
[null,null,null,null,null,null,null,null,null,null,null,null,null,null,null,null,null,null,null,null,null,null,null,null,null,null,null,null,null,null,null,null,null,null,null,null,null,null,null,"Other flights"]
[]
[null,null,null,null,null,null,null,null,null,null,null,null,null,null,null,null,null,null,null,null,null,null,null,null,null,null,null,null,null,null,null,null,null,null,null,null,null,null,null,"Please select"]
[null,null,null,null,null,null,null,null,null,null,null,null,null,null,null,null,null,null,null,null,null,null,null,null,null,null,null,null,null,null,null,null,null,null,null,null,null,null,null,"Hours"]
[null,null,null,null,null,null,null,null,null,null,null,null,null,null,null,null,null,null,null,null,null,null,null,null,null,null,null,null,null,null,null,null,null,null,null,null,null,null,null,"Standard lines"]
[null,null,null,null,null,null,null,null,null,null,null,null,null,null,null,null,null,null,null,null,null,null,null,null,null,null,null,null,null,null,null,null,null,null,null,null,null,null,null,"Days"]
[]
[]
[]
[null,null,null,null,null,null,null,null,null,null,null,null,null,null,null,null,null,null,null,null,null,null,null,null,null,null,null,null,null,null,null,null,null,null,null,null,null,null,null,"Please select"]
[null,null,null,null,null,null,null,null,null,null,null,null,null,null,null,null,null,null,null,null,null,null,null,null,null,null,null,null,null,null,null,null,null,null,null,null,null,null,null,"Expert (outward and homeward journeys)"]
[null,null,null,null,null,null,null,null,null,null,null,null,null,null,null,null,null,null,null,null,null,null,null,null,null,null,null,null,null,null,null,null,null,null,null,null,null,null,null,"Dependants (outward and homeward journeys) "]
[null,null,null,null,null,null,null,null,null,null,null,null,null,null,null,null,null,null,null,null,null,null,null,null,null,null,null,null,null,null,null,null,null,null,null,null,null,null,null,"Vacation flights"]
[null,null,null,null,null,null,null,null,null,null,null,null,null,null,null,null,null,null,null,null,null,null,null,null,null,null,null,null,null,null,null,null,null,null,null,null,null,null,null,"Regional and national flights"]
[null,null,null,null,null,null,null,null,null,null,null,null,null,null,null,null,null,null,null,null,null,null,null,null,null,null,null,null,null,null,null,null,null,null,null,null,null,null,null,"Other flights"]
[]
[null,null,null,null,null,null,null,null,null,null,null,null,null,null,null,null,null,null,null,null,null,null,null,null,null,null,null,null,null,null,null,null,null,null,null,null,null,null,null,"Please select"]
[null,null,null,null,null,null,null,null,null,null,null,null,null,null,null,null,null,null,null,null,null,null,null,null,null,null,null,null,null,null,null,null,null,null,null,null,null,null,null,"Lump sum"]
[null,null,null,null,null,null,null,null,null,null,null,null,null,null,null,null,null,null,null,null,null,null,null,null,null,null,null,null,null,null,null,null,null,null,null,null,null,null,null,"Against evidence"]
[]
[null,null,null,null,null,null,null,null,null,null,null,null,null,null,null,null,null,null,null,null,null,null,null,null,null,null,null,null,null,null,null,null,null,null,null,null,null,null,null,"Please select"]
[null,null,null,null,null,null,null,null,null,null,null,null,null,null,null,null,null,null,null,null,null,null,null,null,null,null,null,null,null,null,null,null,null,null,null,null,null,null,null,"International short-term expert"]
[null,null,null,null,null,null,null,null,null,null,null,null,null,null,null,null,null,null,null,null,null,null,null,null,null,null,null,null,null,null,null,null,null,null,null,null,null,null,null,"Regional short-term expert"]
[null,null,null,null,null,null,null,null,null,null,null,null,null,null,null,null,null,null,null,null,null,null,null,null,null,null,null,null,null,null,null,null,null,null,null,null,null,null,null,"National short-term expert"]
[null,null,null,null,null,null,null,null,null,null,null,null,null,null,null,null,null,null,null,null,null,null,null,null,null,null,null,null,null,null,null,null,null,null,null,null,null,null,null,"Other (please define)"]
[]
[]
[]
[]
[null,null,null,null,null,null,null,null,null,null,null,null,null,null,null,null,null,null,null,null,null,null,null,null,null,null,null,null,null,null,null,null,null,null,null,null,null,null,null,"Please select"]
[null,null,null,null,null,null,null,null,null,null,null,null,null,null,null,null,null,null,null,null,null,null,null,null,null,null,null,null,null,null,null,null,null,null,null,null,null,null,null,"Travel expenses outside the country"]
[null,null,null,null,null,null,null,null,null,null,null,null,null,null,null,null,null,null,null,null,null,null,null,null,null,null,null,null,null,null,null,null,null,null,null,null,null,null,null,"Travel expenses in the country"]

{"sheet":"Expert sheet (5)","index":5,"n_rows":134,"n_cols":40,"rows_kept":134,"cut":false,"hidden":true,"merged":[[43,17,43,18],[44,12,44,13],[44,14,44,16],[45,12,45,13],[45,14,45,16],[43,12,43,13],[43,14,43,16],[19,0,19,1],[23,6,23,9],[23,10,23,12],[28,1,29,2],[28,3,28,5],[29,11,29,14],[19,6,19,9],[19,10,19,12],[20,6,20,9],[20,10,20,12],[22,6,22,9],[22,10,22,12],[21,6,21,9],[21,10,21,12],[54,3,54,4],[56,11,56,14],[49,12,49,13],[49,14,49,16],[50,12,50,13],[50,14,50,16],[51,12,51,13],[51,14,51,16],[52,12,52,13],[52,14,52,16],[53,12,53,13],[53,14,53,16],[54,12,54,13],[54,14,54,16],[46,12,46,13],[46,14,46,16],[47,12,47,13],[47,14,47,16],[48,12,48,13],[48,14,48,16],[39,1,39,2],[39,11,39,14],[39,15,39,16],[40,11,40,14],[40,15,40,16],[40,3,40,4],[37,1,37,2],[37,11,37,14],[37,15,37,16],[38,1,38,2],[38,11,38,14],[38,15,38,16],[35,1,35,2],[35,11,35,14],[35,15,35,16],[36,1,36,2],[36,11,36,14],[36,15,36,16],[33,1,33,2],[33,11,33,14],[33,15,33,16],[34,1,34,2],[34,11,34,14],[34,15,34,16],[31,1,31,2],[31,11,31,14],[31,15,31,16],[32,1,32,2],[32,11,32,14],[32,15,32,16],[29,15,29,16],[30,1,30,2],[30,11,30,14],[30,15,30,16],[24,6,24,9],[24,10,24,12],[13,11,13,12],[14,11,14,12],[16,20,16,21],[18,6,18,9],[18,10,18,12],[8,2,8,4],[9,2,9,4],[6,2,6,4],[6,11,7,12],[6,13,7,13],[7,2,7,4],[1,3,1,4],[1,7,1,9],[2,1,2,2],[2,3,2,4],[5,6,5,13]]}
["Statement on personnel deployment"]
[null,"Contract number:",null,"Processing no./Cost centre:",null,null,null,"Accounting period:"]
[null,{"$f":"'Invoice overview'!A28","v":0},null,{"$f":"'Invoice overview'!$C$28","v":0},null,null,null,null,null,{"$f":"_xlfn.TEXTJOIN(\"   \",FALSE,IF('Invoice overview'!$G$28 > 0, TEXT('Invoice overview'!$G$28,\"TT.MM.JJJJ\"),\"\"),\"until\",IF('Invoice overview'!$I$28 > 0,TEXT('Invoice overview'!$I$28,\"TT.MM.JJJJ\"),\"\"))","v":"   until   "}]
[]
[]
["Personal data"]
["Family name, given name:"]
["Function:",null,"Please select"]
["Description of function:"]
["Expert no. per price schedule"]
[]
[]
[]
[]
[]
[]
[]
[]
["Personnel costs",null,null,null,null,null,"Remarks",null,null,null,"Reserved for GIZ"]
["Remuneration item",null,"Accounting unit ","Rate","Quantity","Amount"]
["Fee (No. 5.4 General Conditions)",null,"Please select",null,null,{"$f":"SUM(E21*D21)","v":0}]
["Fee (No. 5.4 General Conditions)",null,"Please select",null,null,{"$f":"SUM(E22*D22)","v":0}]
[null,null,null,"Daily rate\nacc. to contract","Days"]
["Per diem (No. 5.6. General Conditions)",null,null,null,null,{"$f":"SUM(E24*D24)","v":0}]
["Accommodation (No. 5.7 General Conditions)",null,null,null,null,{"$f":"SUM(E25*D25)","v":0}]
[]
["Travel expenses"]
["Air travel (No. 5.8 General Conditions)"]
[null,"Type of flight",null,"Travel dates"]
["No.",null,null,"Destination","Start\n (dd/mm/yy)","End \n(dd/mm/yy)","Reimbursement type\n\nacc. to contract","Amount\n (per voucher or lump sum)","Currency","Exchange rate*","Amount ","Remarks",null,null,null,"Reserved for GIZ"]
[1,"Please select",null,null,null,null,"Please select",null,null,null,{"$f":"H31*J31","v":0}]
[2,null,null,null,null,null,null,null,null,null,{"$f":"H32*J32","v":0}]
[3,null,null,null,null,null,null,null,null,null,0]
[4,null,null,null,null,null,null,null,null,null,0]
[5,null,null,null,null,null,null,null,null,null,0]
[6,null,null,null,null,null,null,null,null,null,0]
[7,null,null,null,null,null,null,null,null,null,0]
[8,null,null,null,null,null,null,null,null,null,0]
[9,null,null,null,null,null,null,null,null,null,0]
[10,null,null,null,null,null,null,null,null,null,0]
["TOTAL",null,null,null,null,null,null,null,null,{"$f":"'Invoice overview'!F32","v":"EUR"},{"$f":"SUM(K31:K40)","v":0}]
[]
["Other travel expenses (No. 5.9 General Conditions)"]
["No.","Country of travel","Nature of travel expenses","Start\n(dd/mm/yy)","End \n(dd/mm/yy)","Reason for travel","Reimbursement type\nacc. to contract","Amount\n (per voucher or lump sum)","Quantity"," ","Currency","Exchange rate*","Amount ",null,"Remarks",null,null,"Reserved for GIZ"]
[1,null,"Please select",null,null,null,"Please select",null,null,null,null,null,{"$f":"IF(G45=\"Against evidence\",H45*L45,IF(G45=\"Lump sum\",H45*I45*L45,\"0,00\"))","v":"0,00"}]
[2,null,null,null,null,null,null,null,null,null,null,null,{"$f":"IF(G46=\"Against evidence\",H46*L46,IF(G46=\"Lump sum\",H46*I46*L46,\"0,00\"))","v":"0,00"}]
[3,null,null,null,null,null,null,null,null,null,null,null,"0,00"]
[4,null,null,null,null,null,null,null,null,null,null,null,"0,00"]
[5,null,null,null,null,null,null,null,null,null,null,null,"0,00"]
[6,null,null,null,null,null,null,null,null,null,null,null,"0,00"]
[7,null,null,null,null,null,null,null,null,null,null,null,"0,00"]
[8,null,null,null,null,null,null,null,null,null,null,null,"0,00"]
[9,null,null,null,null,null,null,null,null,null,null,null,"0,00"]
[10,null,null,null,null,null,null,null,null,null,null,null,"0,00"]
["TOTAL",null,null,null,null,null,null,null,null,null,null,{"$f":"'Invoice overview'!F32","v":"EUR"},{"$f":"SUM(M45:N54)","v":0}]
[]
[null,null,null,null,null,null,null,null,null,null,null,"Total for expert/contractor",null,null,null,{"$f":"SUM(M55,K41,F25,F24,F21,F22,)","v":0}]
[]
[]
[]
[]
[]
[]
[]
[]
[]
[]
[]
[]
[]
[]
[]
[]
[]
[]
[]
[]
[]
[]
[]
[]
[]
[]
[]
[]
[]
[]
[]
[]
[]
[]
[]
[]
[]
[]
[]
[]
[]
[]
[null,null,null,null,null,null,null,null,null,null,null,null,null,null,null,null,null,null,null,null,null,null,null,null,null,null,null,null,null,null,null,null,null,null,null,null,null,null,null,"Please select"]
[null,null,null,null,null,null,null,null,null,null,null,null,null,null,null,null,null,null,null,null,null,null,null,null,null,null,null,null,null,null,null,null,null,null,null,null,null,null,null,"Outward and homeward journeys"]
[null,null,null,null,null,null,null,null,null,null,null,null,null,null,null,null,null,null,null,null,null,null,null,null,null,null,null,null,null,null,null,null,null,null,null,null,null,null,null,"Regional and national flights"]
[null,null,null,null,null,null,null,null,null,null,null,null,null,null,null,null,null,null,null,null,null,null,null,null,null,null,null,null,null,null,null,null,null,null,null,null,null,null,null,"Other flights"]
[]
[null,null,null,null,null,null,null,null,null,null,null,null,null,null,null,null,null,null,null,null,null,null,null,null,null,null,null,null,null,null,null,null,null,null,null,null,null,null,null,"Please select"]
[null,null,null,null,null,null,null,null,null,null,null,null,null,null,null,null,null,null,null,null,null,null,null,null,null,null,null,null,null,null,null,null,null,null,null,null,null,null,null,"Hours"]
[null,null,null,null,null,null,null,null,null,null,null,null,null,null,null,null,null,null,null,null,null,null,null,null,null,null,null,null,null,null,null,null,null,null,null,null,null,null,null,"Standard lines"]
[null,null,null,null,null,null,null,null,null,null,null,null,null,null,null,null,null,null,null,null,null,null,null,null,null,null,null,null,null,null,null,null,null,null,null,null,null,null,null,"Days"]
[]
[]
[]
[null,null,null,null,null,null,null,null,null,null,null,null,null,null,null,null,null,null,null,null,null,null,null,null,null,null,null,null,null,null,null,null,null,null,null,null,null,null,null,"Please select"]
[null,null,null,null,null,null,null,null,null,null,null,null,null,null,null,null,null,null,null,null,null,null,null,null,null,null,null,null,null,null,null,null,null,null,null,null,null,null,null,"Expert (outward and homeward journeys)"]
[null,null,null,null,null,null,null,null,null,null,null,null,null,null,null,null,null,null,null,null,null,null,null,null,null,null,null,null,null,null,null,null,null,null,null,null,null,null,null,"Dependants (outward and homeward journeys) "]
[null,null,null,null,null,null,null,null,null,null,null,null,null,null,null,null,null,null,null,null,null,null,null,null,null,null,null,null,null,null,null,null,null,null,null,null,null,null,null,"Vacation flights"]
[null,null,null,null,null,null,null,null,null,null,null,null,null,null,null,null,null,null,null,null,null,null,null,null,null,null,null,null,null,null,null,null,null,null,null,null,null,null,null,"Regional and national flights"]
[null,null,null,null,null,null,null,null,null,null,null,null,null,null,null,null,null,null,null,null,null,null,null,null,null,null,null,null,null,null,null,null,null,null,null,null,null,null,null,"Other flights"]
[]
[null,null,null,null,null,null,null,null,null,null,null,null,null,null,null,null,null,null,null,null,null,null,null,null,null,null,null,null,null,null,null,null,null,null,null,null,null,null,null,"Please select"]
[null,null,null,null,null,null,null,null,null,null,null,null,null,null,null,null,null,null,null,null,null,null,null,null,null,null,null,null,null,null,null,null,null,null,null,null,null,null,null,"Lump sum"]
[null,null,null,null,null,null,null,null,null,null,null,null,null,null,null,null,null,null,null,null,null,null,null,null,null,null,null,null,null,null,null,null,null,null,null,null,null,null,null,"Against evidence"]
[]
[null,null,null,null,null,null,null,null,null,null,null,null,null,null,null,null,null,null,null,null,null,null,null,null,null,null,null,null,null,null,null,null,null,null,null,null,null,null,null,"Please select"]
[null,null,null,null,null,null,null,null,null,null,null,null,null,null,null,null,null,null,null,null,null,null,null,null,null,null,null,null,null,null,null,null,null,null,null,null,null,null,null,"International short-term expert"]
[null,null,null,null,null,null,null,null,null,null,null,null,null,null,null,null,null,null,null,null,null,null,null,null,null,null,null,null,null,null,null,null,null,null,null,null,null,null,null,"Regional short-term expert"]
[null,null,null,null,null,null,null,null,null,null,null,null,null,null,null,null,null,null,null,null,null,null,null,null,null,null,null,null,null,null,null,null,null,null,null,null,null,null,null,"National short-term expert"]
[null,null,null,null,null,null,null,null,null,null,null,null,null,null,null,null,null,null,null,null,null,null,null,null,null,null,null,null,null,null,null,null,null,null,null,null,null,null,null,"Other (please define)"]
[]
[]
[]
[]
[null,null,null,null,null,null,null,null,null,null,null,null,null,null,null,null,null,null,null,null,null,null,null,null,null,null,null,null,null,null,null,null,null,null,null,null,null,null,null,"Please select"]
[null,null,null,null,null,null,null,null,null,null,null,null,null,null,null,null,null,null,null,null,null,null,null,null,null,null,null,null,null,null,null,null,null,null,null,null,null,null,null,"Travel expenses outside the country"]
[null,null,null,null,null,null,null,null,null,null,null,null,null,null,null,null,null,null,null,null,null,null,null,null,null,null,null,null,null,null,null,null,null,null,null,null,null,null,null,"Travel expenses in the country"]

{"sheet":"Expert sheet (6)","index":6,"n_rows":134,"n_cols":40,"rows_kept":134,"cut":false,"hidden":true,"merged":[[43,17,43,18],[44,12,44,13],[44,14,44,16],[45,12,45,13],[45,14,45,16],[43,12,43,13],[43,14,43,16],[19,0,19,1],[23,6,23,9],[23,10,23,12],[28,1,29,2],[28,3,28,5],[29,11,29,14],[19,6,19,9],[19,10,19,12],[20,6,20,9],[20,10,20,12],[22,6,22,9],[22,10,22,12],[21,6,21,9],[21,10,21,12],[54,3,54,4],[56,11,56,14],[49,12,49,13],[49,14,49,16],[50,12,50,13],[50,14,50,16],[51,12,51,13],[51,14,51,16],[52,12,52,13],[52,14,52,16],[53,12,53,13],[53,14,53,16],[54,12,54,13],[54,14,54,16],[46,12,46,13],[46,14,46,16],[47,12,47,13],[47,14,47,16],[48,12,48,13],[48,14,48,16],[39,1,39,2],[39,11,39,14],[39,15,39,16],[40,11,40,14],[40,15,40,16],[40,3,40,4],[37,1,37,2],[37,11,37,14],[37,15,37,16],[38,1,38,2],[38,11,38,14],[38,15,38,16],[35,1,35,2],[35,11,35,14],[35,15,35,16],[36,1,36,2],[36,11,36,14],[36,15,36,16],[33,1,33,2],[33,11,33,14],[33,15,33,16],[34,1,34,2],[34,11,34,14],[34,15,34,16],[31,1,31,2],[31,11,31,14],[31,15,31,16],[32,1,32,2],[32,11,32,14],[32,15,32,16],[29,15,29,16],[30,1,30,2],[30,11,30,14],[30,15,30,16],[24,6,24,9],[24,10,24,12],[13,11,13,12],[14,11,14,12],[16,20,16,21],[18,6,18,9],[18,10,18,12],[8,2,8,4],[9,2,9,4],[6,2,6,4],[6,11,7,12],[6,13,7,13],[7,2,7,4],[1,3,1,4],[1,7,1,9],[2,1,2,2],[2,3,2,4],[5,6,5,13]]}
["Statement on personnel deployment"]
[null,"Contract number:",null,"Processing no./Cost centre:",null,null,null,"Accounting period:"]
[null,{"$f":"'Invoice overview'!A28","v":0},null,{"$f":"'Invoice overview'!$C$28","v":0},null,null,null,null,null,{"$f":"_xlfn.TEXTJOIN(\"   \",FALSE,IF('Invoice overview'!$G$28 > 0, TEXT('Invoice overview'!$G$28,\"TT.MM.JJJJ\"),\"\"),\"until\",IF('Invoice overview'!$I$28 > 0,TEXT('Invoice overview'!$I$28,\"TT.MM.JJJJ\"),\"\"))","v":"   until   "}]
[]
[]
["Personal data"]
["Family name, given name:"]
["Function:",null,"Please select"]
["Description of function:"]
["Expert no. per price schedule"]
[]
[]
[]
[]
[]
[]
[]
[]
["Personnel costs",null,null,null,null,null,"Remarks",null,null,null,"Reserved for GIZ"]
["Remuneration item",null,"Accounting unit ","Rate","Quantity","Amount"]
["Fee (No. 5.4 General Conditions)",null,"Please select",null,null,{"$f":"SUM(E21*D21)","v":0}]
["Fee (No. 5.4 General Conditions)",null,"Please select",null,null,{"$f":"SUM(E22*D22)","v":0}]
[null,null,null,"Daily rate\nacc. to contract","Days"]
["Per diem (No. 5.6. General Conditions)",null,null,null,null,{"$f":"SUM(E24*D24)","v":0}]
["Accommodation (No. 5.7 General Conditions)",null,null,null,null,{"$f":"SUM(E25*D25)","v":0}]
[]
["Travel expenses"]
["Air travel (No. 5.8 General Conditions)"]
[null,"Type of flight",null,"Travel dates"]
["No.",null,null,"Destination","Start\n (dd/mm/yy)","End \n(dd/mm/yy)","Reimbursement type\n\nacc. to contract","Amount\n (per voucher or lump sum)","Currency","Exchange rate*","Amount ","Remarks",null,null,null,"Reserved for GIZ"]
[1,"Please select",null,null,null,null,"Please select",null,null,null,{"$f":"H31*J31","v":0}]
[2,null,null,null,null,null,null,null,null,null,{"$f":"H32*J32","v":0}]
[3,null,null,null,null,null,null,null,null,null,0]
[4,null,null,null,null,null,null,null,null,null,0]
[5,null,null,null,null,null,null,null,null,null,0]
[6,null,null,null,null,null,null,null,null,null,0]
[7,null,null,null,null,null,null,null,null,null,0]
[8,null,null,null,null,null,null,null,null,null,0]
[9,null,null,null,null,null,null,null,null,null,0]
[10,null,null,null,null,null,null,null,null,null,0]
["TOTAL",null,null,null,null,null,null,null,null,{"$f":"'Invoice overview'!F32","v":"EUR"},{"$f":"SUM(K31:K40)","v":0}]
[]
["Other travel expenses (No. 5.9 General Conditions)"]
["No.","Country of travel","Nature of travel expenses","Start\n(dd/mm/yy)","End \n(dd/mm/yy)","Reason for travel","Reimbursement type\nacc. to contract","Amount\n (per voucher or lump sum)","Quantity"," ","Currency","Exchange rate*","Amount ",null,"Remarks",null,null,"Reserved for GIZ"]
[1,null,"Please select",null,null,null,"Please select",null,null,null,null,null,{"$f":"IF(G45=\"Against evidence\",H45*L45,IF(G45=\"Lump sum\",H45*I45*L45,\"0,00\"))","v":"0,00"}]
[2,null,null,null,null,null,null,null,null,null,null,null,{"$f":"IF(G46=\"Against evidence\",H46*L46,IF(G46=\"Lump sum\",H46*I46*L46,\"0,00\"))","v":"0,00"}]
[3,null,null,null,null,null,null,null,null,null,null,null,"0,00"]
[4,null,null,null,null,null,null,null,null,null,null,null,"0,00"]
[5,null,null,null,null,null,null,null,null,null,null,null,"0,00"]
[6,null,null,null,null,null,null,null,null,null,null,null,"0,00"]
[7,null,null,null,null,null,null,null,null,null,null,null,"0,00"]
[8,null,null,null,null,null,null,null,null,null,null,null,"0,00"]
[9,null,null,null,null,null,null,null,null,null,null,null,"0,00"]
[10,null,null,null,null,null,null,null,null,null,null,null,"0,00"]
["TOTAL",null,null,null,null,null,null,null,null,null,null,{"$f":"'Invoice overview'!F32","v":"EUR"},{"$f":"SUM(M45:N54)","v":0}]
[]
[null,null,null,null,null,null,null,null,null,null,null,"Total for expert/contractor",null,null,null,{"$f":"SUM(M55,K41,F25,F24,F21,F22,)","v":0}]
[]
[]
[]
[]
[]
[]
[]
[]
[]
[]
[]
[]
[]
[]
[]
[]
[]
[]
[]
[]
[]
[]
[]
[]
[]
[]
[]
[]
[]
[]
[]
[]
[]
[]
[]
[]
[]
[]
[]
[]
[]
[]
[null,null,null,null,null,null,null,null,null,null,null,null,null,null,null,null,null,null,null,null,null,null,null,null,null,null,null,null,null,null,null,null,null,null,null,null,null,null,null,"Please select"]
[null,null,null,null,null,null,null,null,null,null,null,null,null,null,null,null,null,null,null,null,null,null,null,null,null,null,null,null,null,null,null,null,null,null,null,null,null,null,null,"Outward and homeward journeys"]
[null,null,null,null,null,null,null,null,null,null,null,null,null,null,null,null,null,null,null,null,null,null,null,null,null,null,null,null,null,null,null,null,null,null,null,null,null,null,null,"Regional and national flights"]
[null,null,null,null,null,null,null,null,null,null,null,null,null,null,null,null,null,null,null,null,null,null,null,null,null,null,null,null,null,null,null,null,null,null,null,null,null,null,null,"Other flights"]
[]
[null,null,null,null,null,null,null,null,null,null,null,null,null,null,null,null,null,null,null,null,null,null,null,null,null,null,null,null,null,null,null,null,null,null,null,null,null,null,null,"Please select"]
[null,null,null,null,null,null,null,null,null,null,null,null,null,null,null,null,null,null,null,null,null,null,null,null,null,null,null,null,null,null,null,null,null,null,null,null,null,null,null,"Hours"]
[null,null,null,null,null,null,null,null,null,null,null,null,null,null,null,null,null,null,null,null,null,null,null,null,null,null,null,null,null,null,null,null,null,null,null,null,null,null,null,"Standard lines"]
[null,null,null,null,null,null,null,null,null,null,null,null,null,null,null,null,null,null,null,null,null,null,null,null,null,null,null,null,null,null,null,null,null,null,null,null,null,null,null,"Days"]
[]
[]
[]
[null,null,null,null,null,null,null,null,null,null,null,null,null,null,null,null,null,null,null,null,null,null,null,null,null,null,null,null,null,null,null,null,null,null,null,null,null,null,null,"Please select"]
[null,null,null,null,null,null,null,null,null,null,null,null,null,null,null,null,null,null,null,null,null,null,null,null,null,null,null,null,null,null,null,null,null,null,null,null,null,null,null,"Expert (outward and homeward journeys)"]
[null,null,null,null,null,null,null,null,null,null,null,null,null,null,null,null,null,null,null,null,null,null,null,null,null,null,null,null,null,null,null,null,null,null,null,null,null,null,null,"Dependants (outward and homeward journeys) "]
[null,null,null,null,null,null,null,null,null,null,null,null,null,null,null,null,null,null,null,null,null,null,null,null,null,null,null,null,null,null,null,null,null,null,null,null,null,null,null,"Vacation flights"]
[null,null,null,null,null,null,null,null,null,null,null,null,null,null,null,null,null,null,null,null,null,null,null,null,null,null,null,null,null,null,null,null,null,null,null,null,null,null,null,"Regional and national flights"]
[null,null,null,null,null,null,null,null,null,null,null,null,null,null,null,null,null,null,null,null,null,null,null,null,null,null,null,null,null,null,null,null,null,null,null,null,null,null,null,"Other flights"]
[]
[null,null,null,null,null,null,null,null,null,null,null,null,null,null,null,null,null,null,null,null,null,null,null,null,null,null,null,null,null,null,null,null,null,null,null,null,null,null,null,"Please select"]
[null,null,null,null,null,null,null,null,null,null,null,null,null,null,null,null,null,null,null,null,null,null,null,null,null,null,null,null,null,null,null,null,null,null,null,null,null,null,null,"Lump sum"]
[null,null,null,null,null,null,null,null,null,null,null,null,null,null,null,null,null,null,null,null,null,null,null,null,null,null,null,null,null,null,null,null,null,null,null,null,null,null,null,"Against evidence"]
[]
[null,null,null,null,null,null,null,null,null,null,null,null,null,null,null,null,null,null,null,null,null,null,null,null,null,null,null,null,null,null,null,null,null,null,null,null,null,null,null,"Please select"]
[null,null,null,null,null,null,null,null,null,null,null,null,null,null,null,null,null,null,null,null,null,null,null,null,null,null,null,null,null,null,null,null,null,null,null,null,null,null,null,"International short-term expert"]
[null,null,null,null,null,null,null,null,null,null,null,null,null,null,null,null,null,null,null,null,null,null,null,null,null,null,null,null,null,null,null,null,null,null,null,null,null,null,null,"Regional short-term expert"]
[null,null,null,null,null,null,null,null,null,null,null,null,null,null,null,null,null,null,null,null,null,null,null,null,null,null,null,null,null,null,null,null,null,null,null,null,null,null,null,"National short-term expert"]
[null,null,null,null,null,null,null,null,null,null,null,null,null,null,null,null,null,null,null,null,null,null,null,null,null,null,null,null,null,null,null,null,null,null,null,null,null,null,null,"Other (please define)"]
[]
[]
[]
[]
[null,null,null,null,null,null,null,null,null,null,null,null,null,null,null,null,null,null,null,null,null,null,null,null,null,null,null,null,null,null,null,null,null,null,null,null,null,null,null,"Please select"]
[null,null,null,null,null,null,null,null,null,null,null,null,null,null,null,null,null,null,null,null,null,null,null,null,null,null,null,null,null,null,null,null,null,null,null,null,null,null,null,"Travel expenses outside the country"]
[null,null,null,null,null,null,null,null,null,null,null,null,null,null,null,null,null,null,null,null,null,null,null,null,null,null,null,null,null,null,null,null,null,null,null,null,null,null,null,"Travel expenses in the country"]

{"sheet":"Expert sheet (7)","index":7,"n_rows":134,"n_cols":40,"rows_kept":134,"cut":false,"hidden":true,"merged":[[43,17,43,18],[44,12,44,13],[44,14,44,16],[45,12,45,13],[45,14,45,16],[43,12,43,13],[43,14,43,16],[19,0,19,1],[23,6,23,9],[23,10,23,12],[28,1,29,2],[28,3,28,5],[29,11,29,14],[19,6,19,9],[19,10,19,12],[20,6,20,9],[20,10,20,12],[22,6,22,9],[22,10,22,12],[21,6,21,9],[21,10,21,12],[54,3,54,4],[56,11,56,14],[49,12,49,13],[49,14,49,16],[50,12,50,13],[50,14,50,16],[51,12,51,13],[51,14,51,16],[52,12,52,13],[52,14,52,16],[53,12,53,13],[53,14,53,16],[54,12,54,13],[54,14,54,16],[46,12,46,13],[46,14,46,16],[47,12,47,13],[47,14,47,16],[48,12,48,13],[48,14,48,16],[39,1,39,2],[39,11,39,14],[39,15,39,16],[40,11,40,14],[40,15,40,16],[40,3,40,4],[37,1,37,2],[37,11,37,14],[37,15,37,16],[38,1,38,2],[38,11,38,14],[38,15,38,16],[35,1,35,2],[35,11,35,14],[35,15,35,16],[36,1,36,2],[36,11,36,14],[36,15,36,16],[33,1,33,2],[33,11,33,14],[33,15,33,16],[34,1,34,2],[34,11,34,14],[34,15,34,16],[31,1,31,2],[31,11,31,14],[31,15,31,16],[32,1,32,2],[32,11,32,14],[32,15,32,16],[29,15,29,16],[30,1,30,2],[30,11,30,14],[30,15,30,16],[24,6,24,9],[24,10,24,12],[13,11,13,12],[14,11,14,12],[16,20,16,21],[18,6,18,9],[18,10,18,12],[8,2,8,4],[9,2,9,4],[6,2,6,4],[6,11,7,12],[6,13,7,13],[7,2,7,4],[1,3,1,4],[1,7,1,9],[2,1,2,2],[2,3,2,4],[5,6,5,13]]}
["Statement on personnel deployment"]
[null,"Contract number:",null,"Processing no./Cost centre:",null,null,null,"Accounting period:"]
[null,{"$f":"'Invoice overview'!A28","v":0},null,{"$f":"'Invoice overview'!$C$28","v":0},null,null,null,null,null,{"$f":"_xlfn.TEXTJOIN(\"   \",FALSE,IF('Invoice overview'!$G$28 > 0, TEXT('Invoice overview'!$G$28,\"TT.MM.JJJJ\"),\"\"),\"until\",IF('Invoice overview'!$I$28 > 0,TEXT('Invoice overview'!$I$28,\"TT.MM.JJJJ\"),\"\"))","v":"   until   "}]
[]
[]
["Personal data"]
["Family name, given name:"]
["Function:",null,"Please select"]
["Description of function:"]
["Expert no. per price schedule"]
[]
[]
[]
[]
[]
[]
[]
[]
["Personnel costs",null,null,null,null,null,"Remarks",null,null,null,"Reserved for GIZ"]
["Remuneration item",null,"Accounting unit ","Rate","Quantity","Amount"]
["Fee (No. 5.4 General Conditions)",null,"Please select",null,null,{"$f":"SUM(E21*D21)","v":0}]
["Fee (No. 5.4 General Conditions)",null,"Please select",null,null,{"$f":"SUM(E22*D22)","v":0}]
[null,null,null,"Daily rate\nacc. to contract","Days"]
["Per diem (No. 5.6. General Conditions)",null,null,null,null,{"$f":"SUM(E24*D24)","v":0}]
["Accommodation (No. 5.7 General Conditions)",null,null,null,null,{"$f":"SUM(E25*D25)","v":0}]
[]
["Travel expenses"]
["Air travel (No. 5.8 General Conditions)"]
[null,"Type of flight",null,"Travel dates"]
["No.",null,null,"Destination","Start\n (dd/mm/yy)","End \n(dd/mm/yy)","Reimbursement type\n\nacc. to contract","Amount\n (per voucher or lump sum)","Currency","Exchange rate*","Amount ","Remarks",null,null,null,"Reserved for GIZ"]
[1,"Please select",null,null,null,null,"Please select",null,null,null,{"$f":"H31*J31","v":0}]
[2,null,null,null,null,null,null,null,null,null,{"$f":"H32*J32","v":0}]
[3,null,null,null,null,null,null,null,null,null,0]
[4,null,null,null,null,null,null,null,null,null,0]
[5,null,null,null,null,null,null,null,null,null,0]
[6,null,null,null,null,null,null,null,null,null,0]
[7,null,null,null,null,null,null,null,null,null,0]
[8,null,null,null,null,null,null,null,null,null,0]
[9,null,null,null,null,null,null,null,null,null,0]
[10,null,null,null,null,null,null,null,null,null,0]
["TOTAL",null,null,null,null,null,null,null,null,{"$f":"'Invoice overview'!F32","v":"EUR"},{"$f":"SUM(K31:K40)","v":0}]
[]
["Other travel expenses (No. 5.9 General Conditions)"]
["No.","Country of travel","Nature of travel expenses","Start\n(dd/mm/yy)","End \n(dd/mm/yy)","Reason for travel","Reimbursement type\nacc. to contract","Amount\n (per voucher or lump sum)","Quantity"," ","Currency","Exchange rate*","Amount ",null,"Remarks",null,null,"Reserved for GIZ"]
[1,null,"Please select",null,null,null,"Please select",null,null,null,null,null,{"$f":"IF(G45=\"Against evidence\",H45*L45,IF(G45=\"Lump sum\",H45*I45*L45,\"0,00\"))","v":"0,00"}]
[2,null,null,null,null,null,null,null,null,null,null,null,{"$f":"IF(G46=\"Against evidence\",H46*L46,IF(G46=\"Lump sum\",H46*I46*L46,\"0,00\"))","v":"0,00"}]
[3,null,null,null,null,null,null,null,null,null,null,null,"0,00"]
[4,null,null,null,null,null,null,null,null,null,null,null,"0,00"]
[5,null,null,null,null,null,null,null,null,null,null,null,"0,00"]
[6,null,null,null,null,null,null,null,null,null,null,null,"0,00"]
[7,null,null,null,null,null,null,null,null,null,null,null,"0,00"]
[8,null,null,null,null,null,null,null,null,null,null,null,"0,00"]
[9,null,null,null,null,null,null,null,null,null,null,null,"0,00"]
[10,null,null,null,null,null,null,null,null,null,null,null,"0,00"]
["TOTAL",null,null,null,null,null,null,null,null,null,null,{"$f":"'Invoice overview'!F32","v":"EUR"},{"$f":"SUM(M45:N54)","v":0}]
[]
[null,null,null,null,null,null,null,null,null,null,null,"Total for expert/contractor",null,null,null,{"$f":"SUM(M55,K41,F25,F24,F21,F22,)","v":0}]
[]
[]
[]
[]
[]
[]
[]
[]
[]
[]
[]
[]
[]
[]
[]
[]
[]
[]
[]
[]
[]
[]
[]
[]
[]
[]
[]
[]
[]
[]
[]
[]
[]
[]
[]
[]
[]
[]
[]
[]
[]
[]
[null,null,null,null,null,null,null,null,null,null,null,null,null,null,null,null,null,null,null,null,null,null,null,null,null,null,null,null,null,null,null,null,null,null,null,null,null,null,null,"Please select"]
[null,null,null,null,null,null,null,null,null,null,null,null,null,null,null,null,null,null,null,null,null,null,null,null,null,null,null,null,null,null,null,null,null,null,null,null,null,null,null,"Outward and homeward journeys"]
[null,null,null,null,null,null,null,null,null,null,null,null,null,null,null,null,null,null,null,null,null,null,null,null,null,null,null,null,null,null,null,null,null,null,null,null,null,null,null,"Regional and national flights"]
[null,null,null,null,null,null,null,null,null,null,null,null,null,null,null,null,null,null,null,null,null,null,null,null,null,null,null,null,null,null,null,null,null,null,null,null,null,null,null,"Other flights"]
[]
[null,null,null,null,null,null,null,null,null,null,null,null,null,null,null,null,null,null,null,null,null,null,null,null,null,null,null,null,null,null,null,null,null,null,null,null,null,null,null,"Please select"]
[null,null,null,null,null,null,null,null,null,null,null,null,null,null,null,null,null,null,null,null,null,null,null,null,null,null,null,null,null,null,null,null,null,null,null,null,null,null,null,"Hours"]
[null,null,null,null,null,null,null,null,null,null,null,null,null,null,null,null,null,null,null,null,null,null,null,null,null,null,null,null,null,null,null,null,null,null,null,null,null,null,null,"Standard lines"]
[null,null,null,null,null,null,null,null,null,null,null,null,null,null,null,null,null,null,null,null,null,null,null,null,null,null,null,null,null,null,null,null,null,null,null,null,null,null,null,"Days"]
[]
[]
[]
[null,null,null,null,null,null,null,null,null,null,null,null,null,null,null,null,null,null,null,null,null,null,null,null,null,null,null,null,null,null,null,null,null,null,null,null,null,null,null,"Please select"]
[null,null,null,null,null,null,null,null,null,null,null,null,null,null,null,null,null,null,null,null,null,null,null,null,null,null,null,null,null,null,null,null,null,null,null,null,null,null,null,"Expert (outward and homeward journeys)"]
[null,null,null,null,null,null,null,null,null,null,null,null,null,null,null,null,null,null,null,null,null,null,null,null,null,null,null,null,null,null,null,null,null,null,null,null,null,null,null,"Dependants (outward and homeward journeys) "]
[null,null,null,null,null,null,null,null,null,null,null,null,null,null,null,null,null,null,null,null,null,null,null,null,null,null,null,null,null,null,null,null,null,null,null,null,null,null,null,"Vacation flights"]
[null,null,null,null,null,null,null,null,null,null,null,null,null,null,null,null,null,null,null,null,null,null,null,null,null,null,null,null,null,null,null,null,null,null,null,null,null,null,null,"Regional and national flights"]
[null,null,null,null,null,null,null,null,null,null,null,null,null,null,null,null,null,null,null,null,null,null,null,null,null,null,null,null,null,null,null,null,null,null,null,null,null,null,null,"Other flights"]
[]
[null,null,null,null,null,null,null,null,null,null,null,null,null,null,null,null,null,null,null,null,null,null,null,null,null,null,null,null,null,null,null,null,null,null,null,null,null,null,null,"Please select"]
[null,null,null,null,null,null,null,null,null,null,null,null,null,null,null,null,null,null,null,null,null,null,null,null,null,null,null,null,null,null,null,null,null,null,null,null,null,null,null,"Lump sum"]
[null,null,null,null,null,null,null,null,null,null,null,null,null,null,null,null,null,null,null,null,null,null,null,null,null,null,null,null,null,null,null,null,null,null,null,null,null,null,null,"Against evidence"]
[]
[null,null,null,null,null,null,null,null,null,null,null,null,null,null,null,null,null,null,null,null,null,null,null,null,null,null,null,null,null,null,null,null,null,null,null,null,null,null,null,"Please select"]
[null,null,null,null,null,null,null,null,null,null,null,null,null,null,null,null,null,null,null,null,null,null,null,null,null,null,null,null,null,null,null,null,null,null,null,null,null,null,null,"International short-term expert"]
[null,null,null,null,null,null,null,null,null,null,null,null,null,null,null,null,null,null,null,null,null,null,null,null,null,null,null,null,null,null,null,null,null,null,null,null,null,null,null,"Regional short-term expert"]
[null,null,null,null,null,null,null,null,null,null,null,null,null,null,null,null,null,null,null,null,null,null,null,null,null,null,null,null,null,null,null,null,null,null,null,null,null,null,null,"National short-term expert"]
[null,null,null,null,null,null,null,null,null,null,null,null,null,null,null,null,null,null,null,null,null,null,null,null,null,null,null,null,null,null,null,null,null,null,null,null,null,null,null,"Other (please define)"]
[]
[]
[]
[]
[null,null,null,null,null,null,null,null,null,null,null,null,null,null,null,null,null,null,null,null,null,null,null,null,null,null,null,null,null,null,null,null,null,null,null,null,null,null,null,"Please select"]
[null,null,null,null,null,null,null,null,null,null,null,null,null,null,null,null,null,null,null,null,null,null,null,null,null,null,null,null,null,null,null,null,null,null,null,null,null,null,null,"Travel expenses outside the country"]
[null,null,null,null,null,null,null,null,null,null,null,null,null,null,null,null,null,null,null,null,null,null,null,null,null,null,null,null,null,null,null,null,null,null,null,null,null,null,null,"Travel expenses in the country"]

{"sheet":"Expert sheet (8)","index":8,"n_rows":134,"n_cols":40,"rows_kept":134,"cut":false,"hidden":true,"merged":[[43,17,43,18],[44,12,44,13],[44,14,44,16],[45,12,45,13],[45,14,45,16],[43,12,43,13],[43,14,43,16],[19,0,19,1],[23,6,23,9],[23,10,23,12],[28,1,29,2],[28,3,28,5],[29,11,29,14],[19,6,19,9],[19,10,19,12],[20,6,20,9],[20,10,20,12],[22,6,22,9],[22,10,22,12],[21,6,21,9],[21,10,21,12],[54,3,54,4],[56,11,56,14],[49,12,49,13],[49,14,49,16],[50,12,50,13],[50,14,50,16],[51,12,51,13],[51,14,51,16],[52,12,52,13],[52,14,52,16],[53,12,53,13],[53,14,53,16],[54,12,54,13],[54,14,54,16],[46,12,46,13],[46,14,46,16],[47,12,47,13],[47,14,47,16],[48,12,48,13],[48,14,48,16],[39,1,39,2],[39,11,39,14],[39,15,39,16],[40,11,40,14],[40,15,40,16],[40,3,40,4],[37,1,37,2],[37,11,37,14],[37,15,37,16],[38,1,38,2],[38,11,38,14],[38,15,38,16],[35,1,35,2],[35,11,35,14],[35,15,35,16],[36,1,36,2],[36,11,36,14],[36,15,36,16],[33,1,33,2],[33,11,33,14],[33,15,33,16],[34,1,34,2],[34,11,34,14],[34,15,34,16],[31,1,31,2],[31,11,31,14],[31,15,31,16],[32,1,32,2],[32,11,32,14],[32,15,32,16],[29,15,29,16],[30,1,30,2],[30,11,30,14],[30,15,30,16],[24,6,24,9],[24,10,24,12],[13,11,13,12],[14,11,14,12],[16,20,16,21],[18,6,18,9],[18,10,18,12],[8,2,8,4],[9,2,9,4],[6,2,6,4],[6,11,7,12],[6,13,7,13],[7,2,7,4],[1,3,1,4],[1,7,1,9],[2,1,2,2],[2,3,2,4],[5,6,5,13]]}
["Statement on personnel deployment"]
[null,"Contract number:",null,"Processing no./Cost centre:",null,null,null,"Accounting period:"]
[null,{"$f":"'Invoice overview'!A28","v":0},null,{"$f":"'Invoice overview'!$C$28","v":0},null,null,null,null,null,{"$f":"_xlfn.TEXTJOIN(\"   \",FALSE,IF('Invoice overview'!$G$28 > 0, TEXT('Invoice overview'!$G$28,\"TT.MM.JJJJ\"),\"\"),\"until\",IF('Invoice overview'!$I$28 > 0,TEXT('Invoice overview'!$I$28,\"TT.MM.JJJJ\"),\"\"))","v":"   until   "}]
[]
[]
["Personal data"]
["Family name, given name:"]
["Function:",null,"Please select"]
["Description of function:"]
["Expert no. per price schedule"]
[]
[]
[]
[]
[]
[]
[]
[]
["Personnel costs",null,null,null,null,null,"Remarks",null,null,null,"Reserved for GIZ"]
["Remuneration item",null,"Accounting unit ","Rate","Quantity","Amount"]
["Fee (No. 5.4 General Conditions)",null,"Please select",null,null,{"$f":"SUM(E21*D21)","v":0}]
["Fee (No. 5.4 General Conditions)",null,"Please select",null,null,{"$f":"SUM(E22*D22)","v":0}]
[null,null,null,"Daily rate\nacc. to contract","Days"]
["Per diem (No. 5.6. General Conditions)",null,null,null,null,{"$f":"SUM(E24*D24)","v":0}]
["Accommodation (No. 5.7 General Conditions)",null,null,null,null,{"$f":"SUM(E25*D25)","v":0}]
[]
["Travel expenses"]
["Air travel (No. 5.8 General Conditions)"]
[null,"Type of flight",null,"Travel dates"]
["No.",null,null,"Destination","Start\n (dd/mm/yy)","End \n(dd/mm/yy)","Reimbursement type\n\nacc. to contract","Amount\n (per voucher or lump sum)","Currency","Exchange rate*","Amount ","Remarks",null,null,null,"Reserved for GIZ"]
[1,"Please select",null,null,null,null,"Please select",null,null,null,{"$f":"H31*J31","v":0}]
[2,null,null,null,null,null,null,null,null,null,{"$f":"H32*J32","v":0}]
[3,null,null,null,null,null,null,null,null,null,0]
[4,null,null,null,null,null,null,null,null,null,0]
[5,null,null,null,null,null,null,null,null,null,0]
[6,null,null,null,null,null,null,null,null,null,0]
[7,null,null,null,null,null,null,null,null,null,0]
[8,null,null,null,null,null,null,null,null,null,0]
[9,null,null,null,null,null,null,null,null,null,0]
[10,null,null,null,null,null,null,null,null,null,0]
["TOTAL",null,null,null,null,null,null,null,null,{"$f":"'Invoice overview'!F32","v":"EUR"},{"$f":"SUM(K31:K40)","v":0}]
[]
["Other travel expenses (No. 5.9 General Conditions)"]
["No.","Country of travel","Nature of travel expenses","Start\n(dd/mm/yy)","End \n(dd/mm/yy)","Reason for travel","Reimbursement type\nacc. to contract","Amount\n (per voucher or lump sum)","Quantity"," ","Currency","Exchange rate*","Amount ",null,"Remarks",null,null,"Reserved for GIZ"]
[1,null,"Please select",null,null,null,"Please select",null,null,null,null,null,{"$f":"IF(G45=\"Against evidence\",H45*L45,IF(G45=\"Lump sum\",H45*I45*L45,\"0,00\"))","v":"0,00"}]
[2,null,null,null,null,null,null,null,null,null,null,null,{"$f":"IF(G46=\"Against evidence\",H46*L46,IF(G46=\"Lump sum\",H46*I46*L46,\"0,00\"))","v":"0,00"}]
[3,null,null,null,null,null,null,null,null,null,null,null,"0,00"]
[4,null,null,null,null,null,null,null,null,null,null,null,"0,00"]
[5,null,null,null,null,null,null,null,null,null,null,null,"0,00"]
[6,null,null,null,null,null,null,null,null,null,null,null,"0,00"]
[7,null,null,null,null,null,null,null,null,null,null,null,"0,00"]
[8,null,null,null,null,null,null,null,null,null,null,null,"0,00"]
[9,null,null,null,null,null,null,null,null,null,null,null,"0,00"]
[10,null,null,null,null,null,null,null,null,null,null,null,"0,00"]
["TOTAL",null,null,null,null,null,null,null,null,null,null,{"$f":"'Invoice overview'!F32","v":"EUR"},{"$f":"SUM(M45:N54)","v":0}]
[]
[null,null,null,null,null,null,null,null,null,null,null,"Total for expert/contractor",null,null,null,{"$f":"SUM(M55,K41,F25,F24,F21,F22,)","v":0}]
[]
[]
[]
[]
[]
[]
[]
[]
[]
[]
[]
[]
[]
[]
[]
[]
[]
[]
[]
[]
[]
[]
[]
[]
[]
[]
[]
[]
[]
[]
[]
[]
[]
[]
[]
[]
[]
[]
[]
[]
[]
[]
[null,null,null,null,null,null,null,null,null,null,null,null,null,null,null,null,null,null,null,null,null,null,null,null,null,null,null,null,null,null,null,null,null,null,null,null,null,null,null,"Please select"]
[null,null,null,null,null,null,null,null,null,null,null,null,null,null,null,null,null,null,null,null,null,null,null,null,null,null,null,null,null,null,null,null,null,null,null,null,null,null,null,"Outward and homeward journeys"]
[null,null,null,null,null,null,null,null,null,null,null,null,null,null,null,null,null,null,null,null,null,null,null,null,null,null,null,null,null,null,null,null,null,null,null,null,null,null,null,"Regional and national flights"]
[null,null,null,null,null,null,null,null,null,null,null,null,null,null,null,null,null,null,null,null,null,null,null,null,null,null,null,null,null,null,null,null,null,null,null,null,null,null,null,"Other flights"]
[]
[null,null,null,null,null,null,null,null,null,null,null,null,null,null,null,null,null,null,null,null,null,null,null,null,null,null,null,null,null,null,null,null,null,null,null,null,null,null,null,"Please select"]
[null,null,null,null,null,null,null,null,null,null,null,null,null,null,null,null,null,null,null,null,null,null,null,null,null,null,null,null,null,null,null,null,null,null,null,null,null,null,null,"Hours"]
[null,null,null,null,null,null,null,null,null,null,null,null,null,null,null,null,null,null,null,null,null,null,null,null,null,null,null,null,null,null,null,null,null,null,null,null,null,null,null,"Standard lines"]
[null,null,null,null,null,null,null,null,null,null,null,null,null,null,null,null,null,null,null,null,null,null,null,null,null,null,null,null,null,null,null,null,null,null,null,null,null,null,null,"Days"]
[]
[]
[]
[null,null,null,null,null,null,null,null,null,null,null,null,null,null,null,null,null,null,null,null,null,null,null,null,null,null,null,null,null,null,null,null,null,null,null,null,null,null,null,"Please select"]
[null,null,null,null,null,null,null,null,null,null,null,null,null,null,null,null,null,null,null,null,null,null,null,null,null,null,null,null,null,null,null,null,null,null,null,null,null,null,null,"Expert (outward and homeward journeys)"]
[null,null,null,null,null,null,null,null,null,null,null,null,null,null,null,null,null,null,null,null,null,null,null,null,null,null,null,null,null,null,null,null,null,null,null,null,null,null,null,"Dependants (outward and homeward journeys) "]
[null,null,null,null,null,null,null,null,null,null,null,null,null,null,null,null,null,null,null,null,null,null,null,null,null,null,null,null,null,null,null,null,null,null,null,null,null,null,null,"Vacation flights"]
[null,null,null,null,null,null,null,null,null,null,null,null,null,null,null,null,null,null,null,null,null,null,null,null,null,null,null,null,null,null,null,null,null,null,null,null,null,null,null,"Regional and national flights"]
[null,null,null,null,null,null,null,null,null,null,null,null,null,null,null,null,null,null,null,null,null,null,null,null,null,null,null,null,null,null,null,null,null,null,null,null,null,null,null,"Other flights"]
[]
[null,null,null,null,null,null,null,null,null,null,null,null,null,null,null,null,null,null,null,null,null,null,null,null,null,null,null,null,null,null,null,null,null,null,null,null,null,null,null,"Please select"]
[null,null,null,null,null,null,null,null,null,null,null,null,null,null,null,null,null,null,null,null,null,null,null,null,null,null,null,null,null,null,null,null,null,null,null,null,null,null,null,"Lump sum"]
[null,null,null,null,null,null,null,null,null,null,null,null,null,null,null,null,null,null,null,null,null,null,null,null,null,null,null,null,null,null,null,null,null,null,null,null,null,null,null,"Against evidence"]
[]
[null,null,null,null,null,null,null,null,null,null,null,null,null,null,null,null,null,null,null,null,null,null,null,null,null,null,null,null,null,null,null,null,null,null,null,null,null,null,null,"Please select"]
[null,null,null,null,null,null,null,null,null,null,null,null,null,null,null,null,null,null,null,null,null,null,null,null,null,null,null,null,null,null,null,null,null,null,null,null,null,null,null,"International short-term expert"]
[null,null,null,null,null,null,null,null,null,null,null,null,null,null,null,null,null,null,null,null,null,null,null,null,null,null,null,null,null,null,null,null,null,null,null,null,null,null,null,"Regional short-term expert"]
[null,null,null,null,null,null,null,null,null,null,null,null,null,null,null,null,null,null,null,null,null,null,null,null,null,null,null,null,null,null,null,null,null,null,null,null,null,null,null,"National short-term expert"]
[null,null,null,null,null,null,null,null,null,null,null,null,null,null,null,null,null,null,null,null,null,null,null,null,null,null,null,null,null,null,null,null,null,null,null,null,null,null,null,"Other (please define)"]
[]
[]
[]
[]
[null,null,null,null,null,null,null,null,null,null,null,null,null,null,null,null,null,null,null,null,null,null,null,null,null,null,null,null,null,null,null,null,null,null,null,null,null,null,null,"Please select"]
[null,null,null,null,null,null,null,null,null,null,null,null,null,null,null,null,null,null,null,null,null,null,null,null,null,null,null,null,null,null,null,null,null,null,null,null,null,null,null,"Travel expenses outside the country"]
[null,null,null,null,null,null,null,null,null,null,null,null,null,null,null,null,null,null,null,null,null,null,null,null,null,null,null,null,null,null,null,null,null,null,null,null,null,null,null,"Travel expenses in the country"]

{"sheet":"Expert sheet (9)","index":9,"n_rows":134,"n_cols":40,"rows_kept":134,"cut":false,"hidden":true,"merged":[[43,17,43,18],[44,12,44,13],[44,14,44,16],[45,12,45,13],[45,14,45,16],[43,12,43,13],[43,14,43,16],[19,0,19,1],[23,6,23,9],[23,10,23,12],[28,1,29,2],[28,3,28,5],[29,11,29,14],[19,6,19,9],[19,10,19,12],[20,6,20,9],[20,10,20,12],[22,6,22,9],[22,10,22,12],[21,6,21,9],[21,10,21,12],[54,3,54,4],[56,11,56,14],[49,12,49,13],[49,14,49,16],[50,12,50,13],[50,14,50,16],[51,12,51,13],[51,14,51,16],[52,12,52,13],[52,14,52,16],[53,12,53,13],[53,14,53,16],[54,12,54,13],[54,14,54,16],[46,12,46,13],[46,14,46,16],[47,12,47,13],[47,14,47,16],[48,12,48,13],[48,14,48,16],[39,1,39,2],[39,11,39,14],[39,15,39,16],[40,11,40,14],[40,15,40,16],[40,3,40,4],[37,1,37,2],[37,11,37,14],[37,15,37,16],[38,1,38,2],[38,11,38,14],[38,15,38,16],[35,1,35,2],[35,11,35,14],[35,15,35,16],[36,1,36,2],[36,11,36,14],[36,15,36,16],[33,1,33,2],[33,11,33,14],[33,15,33,16],[34,1,34,2],[34,11,34,14],[34,15,34,16],[31,1,31,2],[31,11,31,14],[31,15,31,16],[32,1,32,2],[32,11,32,14],[32,15,32,16],[29,15,29,16],[30,1,30,2],[30,11,30,14],[30,15,30,16],[24,6,24,9],[24,10,24,12],[13,11,13,12],[14,11,14,12],[16,20,16,21],[18,6,18,9],[18,10,18,12],[8,2,8,4],[9,2,9,4],[6,2,6,4],[6,11,7,12],[6,13,7,13],[7,2,7,4],[1,3,1,4],[1,7,1,9],[2,1,2,2],[2,3,2,4],[5,6,5,13]]}
["Statement on personnel deployment"]
[null,"Contract number:",null,"Processing no./Cost centre:",null,null,null,"Accounting period:"]
[null,{"$f":"'Invoice overview'!A28","v":0},null,{"$f":"'Invoice overview'!$C$28","v":0},null,null,null,null,null,{"$f":"_xlfn.TEXTJOIN(\"   \",FALSE,IF('Invoice overview'!$G$28 > 0, TEXT('Invoice overview'!$G$28,\"TT.MM.JJJJ\"),\"\"),\"until\",IF('Invoice overview'!$I$28 > 0,TEXT('Invoice overview'!$I$28,\"TT.MM.JJJJ\"),\"\"))","v":"   until   "}]
[]
[]
["Personal data"]
["Family name, given name:"]
["Function:",null,"Please select"]
["Description of function:"]
["Expert no. per price schedule"]
[]
[]
[]
[]
[]
[]
[]
[]
["Personnel costs",null,null,null,null,null,"Remarks",null,null,null,"Reserved for GIZ"]
["Remuneration item",null,"Accounting unit ","Rate","Quantity","Amount"]
["Fee (No. 5.4 General Conditions)",null,"Please select",null,null,{"$f":"SUM(E21*D21)","v":0}]
["Fee (No. 5.4 General Conditions)",null,"Please select",null,null,{"$f":"SUM(E22*D22)","v":0}]
[null,null,null,"Daily rate\nacc. to contract","Days"]
["Per diem (No. 5.6. General Conditions)",null,null,null,null,{"$f":"SUM(E24*D24)","v":0}]
["Accommodation (No. 5.7 General Conditions)",null,null,null,null,{"$f":"SUM(E25*D25)","v":0}]
[]
["Travel expenses"]
["Air travel (No. 5.8 General Conditions)"]
[null,"Type of flight",null,"Travel dates"]
["No.",null,null,"Destination","Start\n (dd/mm/yy)","End \n(dd/mm/yy)","Reimbursement type\n\nacc. to contract","Amount\n (per voucher or lump sum)","Currency","Exchange rate*","Amount ","Remarks",null,null,null,"Reserved for GIZ"]
[1,"Please select",null,null,null,null,"Please select",null,null,null,{"$f":"H31*J31","v":0}]
[2,null,null,null,null,null,null,null,null,null,{"$f":"H32*J32","v":0}]
[3,null,null,null,null,null,null,null,null,null,0]
[4,null,null,null,null,null,null,null,null,null,0]
[5,null,null,null,null,null,null,null,null,null,0]
[6,null,null,null,null,null,null,null,null,null,0]
[7,null,null,null,null,null,null,null,null,null,0]
[8,null,null,null,null,null,null,null,null,null,0]
[9,null,null,null,null,null,null,null,null,null,0]
[10,null,null,null,null,null,null,null,null,null,0]
["TOTAL",null,null,null,null,null,null,null,null,{"$f":"'Invoice overview'!F32","v":"EUR"},{"$f":"SUM(K31:K40)","v":0}]
[]
["Other travel expenses (No. 5.9 General Conditions)"]
["No.","Country of travel","Nature of travel expenses","Start\n(dd/mm/yy)","End \n(dd/mm/yy)","Reason for travel","Reimbursement type\nacc. to contract","Amount\n (per voucher or lump sum)","Quantity"," ","Currency","Exchange rate*","Amount ",null,"Remarks",null,null,"Reserved for GIZ"]
[1,null,"Please select",null,null,null,"Please select",null,null,null,null,null,{"$f":"IF(G45=\"Against evidence\",H45*L45,IF(G45=\"Lump sum\",H45*I45*L45,\"0,00\"))","v":"0,00"}]
[2,null,null,null,null,null,null,null,null,null,null,null,{"$f":"IF(G46=\"Against evidence\",H46*L46,IF(G46=\"Lump sum\",H46*I46*L46,\"0,00\"))","v":"0,00"}]
[3,null,null,null,null,null,null,null,null,null,null,null,"0,00"]
[4,null,null,null,null,null,null,null,null,null,null,null,"0,00"]
[5,null,null,null,null,null,null,null,null,null,null,null,"0,00"]
[6,null,null,null,null,null,null,null,null,null,null,null,"0,00"]
[7,null,null,null,null,null,null,null,null,null,null,null,"0,00"]
[8,null,null,null,null,null,null,null,null,null,null,null,"0,00"]
[9,null,null,null,null,null,null,null,null,null,null,null,"0,00"]
[10,null,null,null,null,null,null,null,null,null,null,null,"0,00"]
["TOTAL",null,null,null,null,null,null,null,null,null,null,{"$f":"'Invoice overview'!F32","v":"EUR"},{"$f":"SUM(M45:N54)","v":0}]
[]
[null,null,null,null,null,null,null,null,null,null,null,"Total for expert/contractor",null,null,null,{"$f":"SUM(M55,K41,F25,F24,F21,F22,)","v":0}]
[]
[]
[]
[]
[]
[]
[]
[]
[]
[]
[]
[]
[]
[]
[]
[]
[]
[]
[]
[]
[]
[]
[]
[]
[]
[]
[]
[]
[]
[]
[]
[]
[]
[]
[]
[]
[]
[]
[]
[]
[]
[]
[null,null,null,null,null,null,null,null,null,null,null,null,null,null,null,null,null,null,null,null,null,null,null,null,null,null,null,null,null,null,null,null,null,null,null,null,null,null,null,"Please select"]
[null,null,null,null,null,null,null,null,null,null,null,null,null,null,null,null,null,null,null,null,null,null,null,null,null,null,null,null,null,null,null,null,null,null,null,null,null,null,null,"Outward and homeward journeys"]
[null,null,null,null,null,null,null,null,null,null,null,null,null,null,null,null,null,null,null,null,null,null,null,null,null,null,null,null,null,null,null,null,null,null,null,null,null,null,null,"Regional and national flights"]
[null,null,null,null,null,null,null,null,null,null,null,null,null,null,null,null,null,null,null,null,null,null,null,null,null,null,null,null,null,null,null,null,null,null,null,null,null,null,null,"Other flights"]
[]
[null,null,null,null,null,null,null,null,null,null,null,null,null,null,null,null,null,null,null,null,null,null,null,null,null,null,null,null,null,null,null,null,null,null,null,null,null,null,null,"Please select"]
[null,null,null,null,null,null,null,null,null,null,null,null,null,null,null,null,null,null,null,null,null,null,null,null,null,null,null,null,null,null,null,null,null,null,null,null,null,null,null,"Hours"]
[null,null,null,null,null,null,null,null,null,null,null,null,null,null,null,null,null,null,null,null,null,null,null,null,null,null,null,null,null,null,null,null,null,null,null,null,null,null,null,"Standard lines"]
[null,null,null,null,null,null,null,null,null,null,null,null,null,null,null,null,null,null,null,null,null,null,null,null,null,null,null,null,null,null,null,null,null,null,null,null,null,null,null,"Days"]
[]
[]
[]
[null,null,null,null,null,null,null,null,null,null,null,null,null,null,null,null,null,null,null,null,null,null,null,null,null,null,null,null,null,null,null,null,null,null,null,null,null,null,null,"Please select"]
[null,null,null,null,null,null,null,null,null,null,null,null,null,null,null,null,null,null,null,null,null,null,null,null,null,null,null,null,null,null,null,null,null,null,null,null,null,null,null,"Expert (outward and homeward journeys)"]
[null,null,null,null,null,null,null,null,null,null,null,null,null,null,null,null,null,null,null,null,null,null,null,null,null,null,null,null,null,null,null,null,null,null,null,null,null,null,null,"Dependants (outward and homeward journeys) "]
[null,null,null,null,null,null,null,null,null,null,null,null,null,null,null,null,null,null,null,null,null,null,null,null,null,null,null,null,null,null,null,null,null,null,null,null,null,null,null,"Vacation flights"]
[null,null,null,null,null,null,null,null,null,null,null,null,null,null,null,null,null,null,null,null,null,null,null,null,null,null,null,null,null,null,null,null,null,null,null,null,null,null,null,"Regional and national flights"]
[null,null,null,null,null,null,null,null,null,null,null,null,null,null,null,null,null,null,null,null,null,null,null,null,null,null,null,null,null,null,null,null,null,null,null,null,null,null,null,"Other flights"]
[]
[null,null,null,null,null,null,null,null,null,null,null,null,null,null,null,null,null,null,null,null,null,null,null,null,null,null,null,null,null,null,null,null,null,null,null,null,null,null,null,"Please select"]
[null,null,null,null,null,null,null,null,null,null,null,null,null,null,null,null,null,null,null,null,null,null,null,null,null,null,null,null,null,null,null,null,null,null,null,null,null,null,null,"Lump sum"]
[null,null,null,null,null,null,null,null,null,null,null,null,null,null,null,null,null,null,null,null,null,null,null,null,null,null,null,null,null,null,null,null,null,null,null,null,null,null,null,"Against evidence"]
[]
[null,null,null,null,null,null,null,null,null,null,null,null,null,null,null,null,null,null,null,null,null,null,null,null,null,null,null,null,null,null,null,null,null,null,null,null,null,null,null,"Please select"]
[null,null,null,null,null,null,null,null,null,null,null,null,null,null,null,null,null,null,null,null,null,null,null,null,null,null,null,null,null,null,null,null,null,null,null,null,null,null,null,"International short-term expert"]
[null,null,null,null,null,null,null,null,null,null,null,null,null,null,null,null,null,null,null,null,null,null,null,null,null,null,null,null,null,null,null,null,null,null,null,null,null,null,null,"Regional short-term expert"]
[null,null,null,null,null,null,null,null,null,null,null,null,null,null,null,null,null,null,null,null,null,null,null,null,null,null,null,null,null,null,null,null,null,null,null,null,null,null,null,"National short-term expert"]
[null,null,null,null,null,null,null,null,null,null,null,null,null,null,null,null,null,null,null,null,null,null,null,null,null,null,null,null,null,null,null,null,null,null,null,null,null,null,null,"Other (please define)"]
[]
[]
[]
[]
[null,null,null,null,null,null,null,null,null,null,null,null,null,null,null,null,null,null,null,null,null,null,null,null,null,null,null,null,null,null,null,null,null,null,null,null,null,null,null,"Please select"]
[null,null,null,null,null,null,null,null,null,null,null,null,null,null,null,null,null,null,null,null,null,null,null,null,null,null,null,null,null,null,null,null,null,null,null,null,null,null,null,"Travel expenses outside the country"]
[null,null,null,null,null,null,null,null,null,null,null,null,null,null,null,null,null,null,null,null,null,null,null,null,null,null,null,null,null,null,null,null,null,null,null,null,null,null,null,"Travel expenses in the country"]

{"sheet":"Expert sheet (10)","index":10,"n_rows":134,"n_cols":40,"rows_kept":134,"cut":false,"hidden":true,"merged":[[43,17,43,18],[44,12,44,13],[44,14,44,16],[45,12,45,13],[45,14,45,16],[43,12,43,13],[43,14,43,16],[19,0,19,1],[23,6,23,9],[23,10,23,12],[28,1,29,2],[28,3,28,5],[29,11,29,14],[19,6,19,9],[19,10,19,12],[20,6,20,9],[20,10,20,12],[22,6,22,9],[22,10,22,12],[21,6,21,9],[21,10,21,12],[54,3,54,4],[56,11,56,14],[49,12,49,13],[49,14,49,16],[50,12,50,13],[50,14,50,16],[51,12,51,13],[51,14,51,16],[52,12,52,13],[52,14,52,16],[53,12,53,13],[53,14,53,16],[54,12,54,13],[54,14,54,16],[46,12,46,13],[46,14,46,16],[47,12,47,13],[47,14,47,16],[48,12,48,13],[48,14,48,16],[39,1,39,2],[39,11,39,14],[39,15,39,16],[40,11,40,14],[40,15,40,16],[40,3,40,4],[37,1,37,2],[37,11,37,14],[37,15,37,16],[38,1,38,2],[38,11,38,14],[38,15,38,16],[35,1,35,2],[35,11,35,14],[35,15,35,16],[36,1,36,2],[36,11,36,14],[36,15,36,16],[33,1,33,2],[33,11,33,14],[33,15,33,16],[34,1,34,2],[34,11,34,14],[34,15,34,16],[31,1,31,2],[31,11,31,14],[31,15,31,16],[32,1,32,2],[32,11,32,14],[32,15,32,16],[29,15,29,16],[30,1,30,2],[30,11,30,14],[30,15,30,16],[24,6,24,9],[24,10,24,12],[13,11,13,12],[14,11,14,12],[16,20,16,21],[18,6,18,9],[18,10,18,12],[8,2,8,4],[9,2,9,4],[6,2,6,4],[6,11,7,12],[6,13,7,13],[7,2,7,4],[1,3,1,4],[1,7,1,9],[2,1,2,2],[2,3,2,4],[5,6,5,13]]}
["Statement on personnel deployment"]
[null,"Contract number:",null,"Processing no./Cost centre:",null,null,null,"Accounting period:"]
[null,{"$f":"'Invoice overview'!A28","v":0},null,{"$f":"'Invoice overview'!$C$28","v":0},null,null,null,null,null,{"$f":"_xlfn.TEXTJOIN(\"   \",FALSE,IF('Invoice overview'!$G$28 > 0, TEXT('Invoice overview'!$G$28,\"TT.MM.JJJJ\"),\"\"),\"until\",IF('Invoice overview'!$I$28 > 0,TEXT('Invoice overview'!$I$28,\"TT.MM.JJJJ\"),\"\"))","v":"   until   "}]
[]
[]
["Personal data"]
["Family name, given name:"]
["Function:",null,"Please select"]
["Description of function:"]
["Expert no. per price schedule"]
[]
[]
[]
[]
[]
[]
[]
[]
["Personnel costs",null,null,null,null,null,"Remarks",null,null,null,"Reserved for GIZ"]
["Remuneration item",null,"Accounting unit ","Rate","Quantity","Amount"]
["Fee (No. 5.4 General Conditions)",null,"Please select",null,null,{"$f":"SUM(E21*D21)","v":0}]
["Fee (No. 5.4 General Conditions)",null,"Please select",null,null,{"$f":"SUM(E22*D22)","v":0}]
[null,null,null,"Daily rate\nacc. to contract","Days"]
["Per diem (No. 5.6. General Conditions)",null,null,null,null,{"$f":"SUM(E24*D24)","v":0}]
["Accommodation (No. 5.7 General Conditions)",null,null,null,null,{"$f":"SUM(E25*D25)","v":0}]
[]
["Travel expenses"]
["Air travel (No. 5.8 General Conditions)"]
[null,"Type of flight",null,"Travel dates"]
["No.",null,null,"Destination","Start\n (dd/mm/yy)","End \n(dd/mm/yy)","Reimbursement type\n\nacc. to contract","Amount\n (per voucher or lump sum)","Currency","Exchange rate*","Amount ","Remarks",null,null,null,"Reserved for GIZ"]
[1,"Please select",null,null,null,null,"Please select",null,null,null,{"$f":"H31*J31","v":0}]
[2,null,null,null,null,null,null,null,null,null,{"$f":"H32*J32","v":0}]
[3,null,null,null,null,null,null,null,null,null,0]
[4,null,null,null,null,null,null,null,null,null,0]
[5,null,null,null,null,null,null,null,null,null,0]
[6,null,null,null,null,null,null,null,null,null,0]
[7,null,null,null,null,null,null,null,null,null,0]
[8,null,null,null,null,null,null,null,null,null,0]
[9,null,null,null,null,null,null,null,null,null,0]
[10,null,null,null,null,null,null,null,null,null,0]
["TOTAL",null,null,null,null,null,null,null,null,{"$f":"'Invoice overview'!F32","v":"EUR"},{"$f":"SUM(K31:K40)","v":0}]
[]
["Other travel expenses (No. 5.9 General Conditions)"]
["No.","Country of travel","Nature of travel expenses","Start\n(dd/mm/yy)","End \n(dd/mm/yy)","Reason for travel","Reimbursement type\nacc. to contract","Amount\n (per voucher or lump sum)","Quantity"," ","Currency","Exchange rate*","Amount ",null,"Remarks",null,null,"Reserved for GIZ"]
[1,null,"Please select",null,null,null,"Please select",null,null,null,null,null,{"$f":"IF(G45=\"Against evidence\",H45*L45,IF(G45=\"Lump sum\",H45*I45*L45,\"0,00\"))","v":"0,00"}]
[2,null,null,null,null,null,null,null,null,null,null,null,{"$f":"IF(G46=\"Against evidence\",H46*L46,IF(G46=\"Lump sum\",H46*I46*L46,\"0,00\"))","v":"0,00"}]
[3,null,null,null,null,null,null,null,null,null,null,null,"0,00"]
[4,null,null,null,null,null,null,null,null,null,null,null,"0,00"]
[5,null,null,null,null,null,null,null,null,null,null,null,"0,00"]
[6,null,null,null,null,null,null,null,null,null,null,null,"0,00"]
[7,null,null,null,null,null,null,null,null,null,null,null,"0,00"]
[8,null,null,null,null,null,null,null,null,null,null,null,"0,00"]
[9,null,null,null,null,null,null,null,null,null,null,null,"0,00"]
[10,null,null,null,null,null,null,null,null,null,null,null,"0,00"]
["TOTAL",null,null,null,null,null,null,null,null,null,null,{"$f":"'Invoice overview'!F32","v":"EUR"},{"$f":"SUM(M45:N54)","v":0}]
[]
[null,null,null,null,null,null,null,null,null,null,null,"Total for expert/contractor",null,null,null,{"$f":"SUM(M55,K41,F25,F24,F21,F22,)","v":0}]
[]
[]
[]
[]
[]
[]
[]
[]
[]
[]
[]
[]
[]
[]
[]
[]
[]
[]
[]
[]
[]
[]
[]
[]
[]
[]
[]
[]
[]
[]
[]
[]
[]
[]
[]
[]
[]
[]
[]
[]
[]
[]
[null,null,null,null,null,null,null,null,null,null,null,null,null,null,null,null,null,null,null,null,null,null,null,null,null,null,null,null,null,null,null,null,null,null,null,null,null,null,null,"Please select"]
[null,null,null,null,null,null,null,null,null,null,null,null,null,null,null,null,null,null,null,null,null,null,null,null,null,null,null,null,null,null,null,null,null,null,null,null,null,null,null,"Outward and homeward journeys"]
[null,null,null,null,null,null,null,null,null,null,null,null,null,null,null,null,null,null,null,null,null,null,null,null,null,null,null,null,null,null,null,null,null,null,null,null,null,null,null,"Regional and national flights"]
[null,null,null,null,null,null,null,null,null,null,null,null,null,null,null,null,null,null,null,null,null,null,null,null,null,null,null,null,null,null,null,null,null,null,null,null,null,null,null,"Other flights"]
[]
[null,null,null,null,null,null,null,null,null,null,null,null,null,null,null,null,null,null,null,null,null,null,null,null,null,null,null,null,null,null,null,null,null,null,null,null,null,null,null,"Please select"]
[null,null,null,null,null,null,null,null,null,null,null,null,null,null,null,null,null,null,null,null,null,null,null,null,null,null,null,null,null,null,null,null,null,null,null,null,null,null,null,"Hours"]
[null,null,null,null,null,null,null,null,null,null,null,null,null,null,null,null,null,null,null,null,null,null,null,null,null,null,null,null,null,null,null,null,null,null,null,null,null,null,null,"Standard lines"]
[null,null,null,null,null,null,null,null,null,null,null,null,null,null,null,null,null,null,null,null,null,null,null,null,null,null,null,null,null,null,null,null,null,null,null,null,null,null,null,"Days"]
[]
[]
[]
[null,null,null,null,null,null,null,null,null,null,null,null,null,null,null,null,null,null,null,null,null,null,null,null,null,null,null,null,null,null,null,null,null,null,null,null,null,null,null,"Please select"]
[null,null,null,null,null,null,null,null,null,null,null,null,null,null,null,null,null,null,null,null,null,null,null,null,null,null,null,null,null,null,null,null,null,null,null,null,null,null,null,"Expert (outward and homeward journeys)"]
[null,null,null,null,null,null,null,null,null,null,null,null,null,null,null,null,null,null,null,null,null,null,null,null,null,null,null,null,null,null,null,null,null,null,null,null,null,null,null,"Dependants (outward and homeward journeys) "]
[null,null,null,null,null,null,null,null,null,null,null,null,null,null,null,null,null,null,null,null,null,null,null,null,null,null,null,null,null,null,null,null,null,null,null,null,null,null,null,"Vacation flights"]
[null,null,null,null,null,null,null,null,null,null,null,null,null,null,null,null,null,null,null,null,null,null,null,null,null,null,null,null,null,null,null,null,null,null,null,null,null,null,null,"Regional and national flights"]
[null,null,null,null,null,null,null,null,null,null,null,null,null,null,null,null,null,null,null,null,null,null,null,null,null,null,null,null,null,null,null,null,null,null,null,null,null,null,null,"Other flights"]
[]
[null,null,null,null,null,null,null,null,null,null,null,null,null,null,null,null,null,null,null,null,null,null,null,null,null,null,null,null,null,null,null,null,null,null,null,null,null,null,null,"Please select"]
[null,null,null,null,null,null,null,null,null,null,null,null,null,null,null,null,null,null,null,null,null,null,null,null,null,null,null,null,null,null,null,null,null,null,null,null,null,null,null,"Lump sum"]
[null,null,null,null,null,null,null,null,null,null,null,null,null,null,null,null,null,null,null,null,null,null,null,null,null,null,null,null,null,null,null,null,null,null,null,null,null,null,null,"Against evidence"]
[]
[null,null,null,null,null,null,null,null,null,null,null,null,null,null,null,null,null,null,null,null,null,null,null,null,null,null,null,null,null,null,null,null,null,null,null,null,null,null,null,"Please select"]
[null,null,null,null,null,null,null,null,null,null,null,null,null,null,null,null,null,null,null,null,null,null,null,null,null,null,null,null,null,null,null,null,null,null,null,null,null,null,null,"International short-term expert"]
[null,null,null,null,null,null,null,null,null,null,null,null,null,null,null,null,null,null,null,null,null,null,null,null,null,null,null,null,null,null,null,null,null,null,null,null,null,null,null,"Regional short-term expert"]
[null,null,null,null,null,null,null,null,null,null,null,null,null,null,null,null,null,null,null,null,null,null,null,null,null,null,null,null,null,null,null,null,null,null,null,null,null,null,null,"National short-term expert"]
[null,null,null,null,null,null,null,null,null,null,null,null,null,null,null,null,null,null,null,null,null,null,null,null,null,null,null,null,null,null,null,null,null,null,null,null,null,null,null,"Other (please define)"]
[]
[]
[]
[]
[null,null,null,null,null,null,null,null,null,null,null,null,null,null,null,null,null,null,null,null,null,null,null,null,null,null,null,null,null,null,null,null,null,null,null,null,null,null,null,"Please select"]
[null,null,null,null,null,null,null,null,null,null,null,null,null,null,null,null,null,null,null,null,null,null,null,null,null,null,null,null,null,null,null,null,null,null,null,null,null,null,null,"Travel expenses outside the country"]
[null,null,null,null,null,null,null,null,null,null,null,null,null,null,null,null,null,null,null,null,null,null,null,null,null,null,null,null,null,null,null,null,null,null,null,null,null,null,null,"Travel expenses in the country"]

{"sheet":"Expert sheet (11)","index":11,"n_rows":134,"n_cols":40,"rows_kept":134,"cut":false,"hidden":true,"merged":[[43,17,43,18],[44,12,44,13],[44,14,44,16],[45,12,45,13],[45,14,45,16],[43,12,43,13],[43,14,43,16],[19,0,19,1],[23,6,23,9],[23,10,23,12],[28,1,29,2],[28,3,28,5],[29,11,29,14],[19,6,19,9],[19,10,19,12],[20,6,20,9],[20,10,20,12],[22,6,22,9],[22,10,22,12],[21,6,21,9],[21,10,21,12],[54,3,54,4],[56,11,56,14],[49,12,49,13],[49,14,49,16],[50,12,50,13],[50,14,50,16],[51,12,51,13],[51,14,51,16],[52,12,52,13],[52,14,52,16],[53,12,53,13],[53,14,53,16],[54,12,54,13],[54,14,54,16],[46,12,46,13],[46,14,46,16],[47,12,47,13],[47,14,47,16],[48,12,48,13],[48,14,48,16],[39,1,39,2],[39,11,39,14],[39,15,39,16],[40,11,40,14],[40,15,40,16],[40,3,40,4],[37,1,37,2],[37,11,37,14],[37,15,37,16],[38,1,38,2],[38,11,38,14],[38,15,38,16],[35,1,35,2],[35,11,35,14],[35,15,35,16],[36,1,36,2],[36,11,36,14],[36,15,36,16],[33,1,33,2],[33,11,33,14],[33,15,33,16],[34,1,34,2],[34,11,34,14],[34,15,34,16],[31,1,31,2],[31,11,31,14],[31,15,31,16],[32,1,32,2],[32,11,32,14],[32,15,32,16],[29,15,29,16],[30,1,30,2],[30,11,30,14],[30,15,30,16],[24,6,24,9],[24,10,24,12],[13,11,13,12],[14,11,14,12],[16,20,16,21],[18,6,18,9],[18,10,18,12],[8,2,8,4],[9,2,9,4],[6,2,6,4],[6,11,7,12],[6,13,7,13],[7,2,7,4],[1,3,1,4],[1,7,1,9],[2,1,2,2],[2,3,2,4],[5,6,5,13]]}
["Statement on personnel deployment"]
[null,"Contract number:",null,"Processing no./Cost centre:",null,null,null,"Accounting period:"]
[null,{"$f":"'Invoice overview'!A28","v":0},null,{"$f":"'Invoice overview'!$C$28","v":0},null,null,null,null,null,{"$f":"_xlfn.TEXTJOIN(\"   \",FALSE,IF('Invoice overview'!$G$28 > 0, TEXT('Invoice overview'!$G$28,\"TT.MM.JJJJ\"),\"\"),\"until\",IF('Invoice overview'!$I$28 > 0,TEXT('Invoice overview'!$I$28,\"TT.MM.JJJJ\"),\"\"))","v":"   until   "}]
[]
[]
["Personal data"]
["Family name, given name:"]
["Function:",null,"Please select"]
["Description of function:"]
["Expert no. per price schedule"]
[]
[]
[]
[]
[]
[]
[]
[]
["Personnel costs",null,null,null,null,null,"Remarks",null,null,null,"Reserved for GIZ"]
["Remuneration item",null,"Accounting unit ","Rate","Quantity","Amount"]
["Fee (No. 5.4 General Conditions)",null,"Please select",null,null,{"$f":"SUM(E21*D21)","v":0}]
["Fee (No. 5.4 General Conditions)",null,"Please select",null,null,{"$f":"SUM(E22*D22)","v":0}]
[null,null,null,"Daily rate\nacc. to contract","Days"]
["Per diem (No. 5.6. General Conditions)",null,null,null,null,{"$f":"SUM(E24*D24)","v":0}]
["Accommodation (No. 5.7 General Conditions)",null,null,null,null,{"$f":"SUM(E25*D25)","v":0}]
[]
["Travel expenses"]
["Air travel (No. 5.8 General Conditions)"]
[null,"Type of flight",null,"Travel dates"]
["No.",null,null,"Destination","Start\n (dd/mm/yy)","End \n(dd/mm/yy)","Reimbursement type\n\nacc. to contract","Amount\n (per voucher or lump sum)","Currency","Exchange rate*","Amount ","Remarks",null,null,null,"Reserved for GIZ"]
[1,"Please select",null,null,null,null,"Please select",null,null,null,{"$f":"H31*J31","v":0}]
[2,null,null,null,null,null,null,null,null,null,{"$f":"H32*J32","v":0}]
[3,null,null,null,null,null,null,null,null,null,0]
[4,null,null,null,null,null,null,null,null,null,0]
[5,null,null,null,null,null,null,null,null,null,0]
[6,null,null,null,null,null,null,null,null,null,0]
[7,null,null,null,null,null,null,null,null,null,0]
[8,null,null,null,null,null,null,null,null,null,0]
[9,null,null,null,null,null,null,null,null,null,0]
[10,null,null,null,null,null,null,null,null,null,0]
["TOTAL",null,null,null,null,null,null,null,null,{"$f":"'Invoice overview'!F32","v":"EUR"},{"$f":"SUM(K31:K40)","v":0}]
[]
["Other travel expenses (No. 5.9 General Conditions)"]
["No.","Country of travel","Nature of travel expenses","Start\n(dd/mm/yy)","End \n(dd/mm/yy)","Reason for travel","Reimbursement type\nacc. to contract","Amount\n (per voucher or lump sum)","Quantity"," ","Currency","Exchange rate*","Amount ",null,"Remarks",null,null,"Reserved for GIZ"]
[1,null,"Please select",null,null,null,"Please select",null,null,null,null,null,{"$f":"IF(G45=\"Against evidence\",H45*L45,IF(G45=\"Lump sum\",H45*I45*L45,\"0,00\"))","v":"0,00"}]
[2,null,null,null,null,null,null,null,null,null,null,null,{"$f":"IF(G46=\"Against evidence\",H46*L46,IF(G46=\"Lump sum\",H46*I46*L46,\"0,00\"))","v":"0,00"}]
[3,null,null,null,null,null,null,null,null,null,null,null,"0,00"]
[4,null,null,null,null,null,null,null,null,null,null,null,"0,00"]
[5,null,null,null,null,null,null,null,null,null,null,null,"0,00"]
[6,null,null,null,null,null,null,null,null,null,null,null,"0,00"]
[7,null,null,null,null,null,null,null,null,null,null,null,"0,00"]
[8,null,null,null,null,null,null,null,null,null,null,null,"0,00"]
[9,null,null,null,null,null,null,null,null,null,null,null,"0,00"]
[10,null,null,null,null,null,null,null,null,null,null,null,"0,00"]
["TOTAL",null,null,null,null,null,null,null,null,null,null,{"$f":"'Invoice overview'!F32","v":"EUR"},{"$f":"SUM(M45:N54)","v":0}]
[]
[null,null,null,null,null,null,null,null,null,null,null,"Total for expert/contractor",null,null,null,{"$f":"SUM(M55,K41,F25,F24,F21,F22,)","v":0}]
[]
[]
[]
[]
[]
[]
[]
[]
[]
[]
[]
[]
[]
[]
[]
[]
[]
[]
[]
[]
[]
[]
[]
[]
[]
[]
[]
[]
[]
[]
[]
[]
[]
[]
[]
[]
[]
[]
[]
[]
[]
[]
[null,null,null,null,null,null,null,null,null,null,null,null,null,null,null,null,null,null,null,null,null,null,null,null,null,null,null,null,null,null,null,null,null,null,null,null,null,null,null,"Please select"]
[null,null,null,null,null,null,null,null,null,null,null,null,null,null,null,null,null,null,null,null,null,null,null,null,null,null,null,null,null,null,null,null,null,null,null,null,null,null,null,"Outward and homeward journeys"]
[null,null,null,null,null,null,null,null,null,null,null,null,null,null,null,null,null,null,null,null,null,null,null,null,null,null,null,null,null,null,null,null,null,null,null,null,null,null,null,"Regional and national flights"]
[null,null,null,null,null,null,null,null,null,null,null,null,null,null,null,null,null,null,null,null,null,null,null,null,null,null,null,null,null,null,null,null,null,null,null,null,null,null,null,"Other flights"]
[]
[null,null,null,null,null,null,null,null,null,null,null,null,null,null,null,null,null,null,null,null,null,null,null,null,null,null,null,null,null,null,null,null,null,null,null,null,null,null,null,"Please select"]
[null,null,null,null,null,null,null,null,null,null,null,null,null,null,null,null,null,null,null,null,null,null,null,null,null,null,null,null,null,null,null,null,null,null,null,null,null,null,null,"Hours"]
[null,null,null,null,null,null,null,null,null,null,null,null,null,null,null,null,null,null,null,null,null,null,null,null,null,null,null,null,null,null,null,null,null,null,null,null,null,null,null,"Standard lines"]
[null,null,null,null,null,null,null,null,null,null,null,null,null,null,null,null,null,null,null,null,null,null,null,null,null,null,null,null,null,null,null,null,null,null,null,null,null,null,null,"Days"]
[]
[]
[]
[null,null,null,null,null,null,null,null,null,null,null,null,null,null,null,null,null,null,null,null,null,null,null,null,null,null,null,null,null,null,null,null,null,null,null,null,null,null,null,"Please select"]
[null,null,null,null,null,null,null,null,null,null,null,null,null,null,null,null,null,null,null,null,null,null,null,null,null,null,null,null,null,null,null,null,null,null,null,null,null,null,null,"Expert (outward and homeward journeys)"]
[null,null,null,null,null,null,null,null,null,null,null,null,null,null,null,null,null,null,null,null,null,null,null,null,null,null,null,null,null,null,null,null,null,null,null,null,null,null,null,"Dependants (outward and homeward journeys) "]
[null,null,null,null,null,null,null,null,null,null,null,null,null,null,null,null,null,null,null,null,null,null,null,null,null,null,null,null,null,null,null,null,null,null,null,null,null,null,null,"Vacation flights"]
[null,null,null,null,null,null,null,null,null,null,null,null,null,null,null,null,null,null,null,null,null,null,null,null,null,null,null,null,null,null,null,null,null,null,null,null,null,null,null,"Regional and national flights"]
[null,null,null,null,null,null,null,null,null,null,null,null,null,null,null,null,null,null,null,null,null,null,null,null,null,null,null,null,null,null,null,null,null,null,null,null,null,null,null,"Other flights"]
[]
[null,null,null,null,null,null,null,null,null,null,null,null,null,null,null,null,null,null,null,null,null,null,null,null,null,null,null,null,null,null,null,null,null,null,null,null,null,null,null,"Please select"]
[null,null,null,null,null,null,null,null,null,null,null,null,null,null,null,null,null,null,null,null,null,null,null,null,null,null,null,null,null,null,null,null,null,null,null,null,null,null,null,"Lump sum"]
[null,null,null,null,null,null,null,null,null,null,null,null,null,null,null,null,null,null,null,null,null,null,null,null,null,null,null,null,null,null,null,null,null,null,null,null,null,null,null,"Against evidence"]
[]
[null,null,null,null,null,null,null,null,null,null,null,null,null,null,null,null,null,null,null,null,null,null,null,null,null,null,null,null,null,null,null,null,null,null,null,null,null,null,null,"Please select"]
[null,null,null,null,null,null,null,null,null,null,null,null,null,null,null,null,null,null,null,null,null,null,null,null,null,null,null,null,null,null,null,null,null,null,null,null,null,null,null,"International short-term expert"]
[null,null,null,null,null,null,null,null,null,null,null,null,null,null,null,null,null,null,null,null,null,null,null,null,null,null,null,null,null,null,null,null,null,null,null,null,null,null,null,"Regional short-term expert"]
[null,null,null,null,null,null,null,null,null,null,null,null,null,null,null,null,null,null,null,null,null,null,null,null,null,null,null,null,null,null,null,null,null,null,null,null,null,null,null,"National short-term expert"]
[null,null,null,null,null,null,null,null,null,null,null,null,null,null,null,null,null,null,null,null,null,null,null,null,null,null,null,null,null,null,null,null,null,null,null,null,null,null,null,"Other (please define)"]
[]
[]
[]
[]
[null,null,null,null,null,null,null,null,null,null,null,null,null,null,null,null,null,null,null,null,null,null,null,null,null,null,null,null,null,null,null,null,null,null,null,null,null,null,null,"Please select"]
[null,null,null,null,null,null,null,null,null,null,null,null,null,null,null,null,null,null,null,null,null,null,null,null,null,null,null,null,null,null,null,null,null,null,null,null,null,null,null,"Travel expenses outside the country"]
[null,null,null,null,null,null,null,null,null,null,null,null,null,null,null,null,null,null,null,null,null,null,null,null,null,null,null,null,null,null,null,null,null,null,null,null,null,null,null,"Travel expenses in the country"]

{"sheet":"Expert sheet (12)","index":12,"n_rows":134,"n_cols":40,"rows_kept":134,"cut":false,"hidden":true,"merged":[[43,17,43,18],[44,12,44,13],[44,14,44,16],[45,12,45,13],[45,14,45,16],[43,12,43,13],[43,14,43,16],[19,0,19,1],[23,6,23,9],[23,10,23,12],[28,1,29,2],[28,3,28,5],[29,11,29,14],[19,6,19,9],[19,10,19,12],[20,6,20,9],[20,10,20,12],[22,6,22,9],[22,10,22,12],[21,6,21,9],[21,10,21,12],[54,3,54,4],[56,11,56,14],[49,12,49,13],[49,14,49,16],[50,12,50,13],[50,14,50,16],[51,12,51,13],[51,14,51,16],[52,12,52,13],[52,14,52,16],[53,12,53,13],[53,14,53,16],[54,12,54,13],[54,14,54,16],[46,12,46,13],[46,14,46,16],[47,12,47,13],[47,14,47,16],[48,12,48,13],[48,14,48,16],[39,1,39,2],[39,11,39,14],[39,15,39,16],[40,11,40,14],[40,15,40,16],[40,3,40,4],[37,1,37,2],[37,11,37,14],[37,15,37,16],[38,1,38,2],[38,11,38,14],[38,15,38,16],[35,1,35,2],[35,11,35,14],[35,15,35,16],[36,1,36,2],[36,11,36,14],[36,15,36,16],[33,1,33,2],[33,11,33,14],[33,15,33,16],[34,1,34,2],[34,11,34,14],[34,15,34,16],[31,1,31,2],[31,11,31,14],[31,15,31,16],[32,1,32,2],[32,11,32,14],[32,15,32,16],[29,15,29,16],[30,1,30,2],[30,11,30,14],[30,15,30,16],[24,6,24,9],[24,10,24,12],[13,11,13,12],[14,11,14,12],[16,20,16,21],[18,6,18,9],[18,10,18,12],[8,2,8,4],[9,2,9,4],[6,2,6,4],[6,11,7,12],[6,13,7,13],[7,2,7,4],[1,3,1,4],[1,7,1,9],[2,1,2,2],[2,3,2,4],[5,6,5,13]]}
["Statement on personnel deployment"]
[null,"Contract number:",null,"Processing no./Cost centre:",null,null,null,"Accounting period:"]
[null,{"$f":"'Invoice overview'!A28","v":0},null,{"$f":"'Invoice overview'!$C$28","v":0},null,null,null,null,null,{"$f":"_xlfn.TEXTJOIN(\"   \",FALSE,IF('Invoice overview'!$G$28 > 0, TEXT('Invoice overview'!$G$28,\"TT.MM.JJJJ\"),\"\"),\"until\",IF('Invoice overview'!$I$28 > 0,TEXT('Invoice overview'!$I$28,\"TT.MM.JJJJ\"),\"\"))","v":"   until   "}]
[]
[]
["Personal data"]
["Family name, given name:"]
["Function:",null,"Please select"]
["Description of function:"]
["Expert no. per price schedule"]
[]
[]
[]
[]
[]
[]
[]
[]
["Personnel costs",null,null,null,null,null,"Remarks",null,null,null,"Reserved for GIZ"]
["Remuneration item",null,"Accounting unit ","Rate","Quantity","Amount"]
["Fee (No. 5.4 General Conditions)",null,"Please select",null,null,{"$f":"SUM(E21*D21)","v":0}]
["Fee (No. 5.4 General Conditions)",null,"Please select",null,null,{"$f":"SUM(E22*D22)","v":0}]
[null,null,null,"Daily rate\nacc. to contract","Days"]
["Per diem (No. 5.6. General Conditions)",null,null,null,null,{"$f":"SUM(E24*D24)","v":0}]
["Accommodation (No. 5.7 General Conditions)",null,null,null,null,{"$f":"SUM(E25*D25)","v":0}]
[]
["Travel expenses"]
["Air travel (No. 5.8 General Conditions)"]
[null,"Type of flight",null,"Travel dates"]
["No.",null,null,"Destination","Start\n (dd/mm/yy)","End \n(dd/mm/yy)","Reimbursement type\n\nacc. to contract","Amount\n (per voucher or lump sum)","Currency","Exchange rate*","Amount ","Remarks",null,null,null,"Reserved for GIZ"]
[1,"Please select",null,null,null,null,"Please select",null,null,null,{"$f":"H31*J31","v":0}]
[2,null,null,null,null,null,null,null,null,null,{"$f":"H32*J32","v":0}]
[3,null,null,null,null,null,null,null,null,null,0]
[4,null,null,null,null,null,null,null,null,null,0]
[5,null,null,null,null,null,null,null,null,null,0]
[6,null,null,null,null,null,null,null,null,null,0]
[7,null,null,null,null,null,null,null,null,null,0]
[8,null,null,null,null,null,null,null,null,null,0]
[9,null,null,null,null,null,null,null,null,null,0]
[10,null,null,null,null,null,null,null,null,null,0]
["TOTAL",null,null,null,null,null,null,null,null,{"$f":"'Invoice overview'!F32","v":"EUR"},{"$f":"SUM(K31:K40)","v":0}]
[]
["Other travel expenses (No. 5.9 General Conditions)"]
["No.","Country of travel","Nature of travel expenses","Start\n(dd/mm/yy)","End \n(dd/mm/yy)","Reason for travel","Reimbursement type\nacc. to contract","Amount\n (per voucher or lump sum)","Quantity"," ","Currency","Exchange rate*","Amount ",null,"Remarks",null,null,"Reserved for GIZ"]
[1,null,"Please select",null,null,null,"Please select",null,null,null,null,null,{"$f":"IF(G45=\"Against evidence\",H45*L45,IF(G45=\"Lump sum\",H45*I45*L45,\"0,00\"))","v":"0,00"}]
[2,null,null,null,null,null,null,null,null,null,null,null,{"$f":"IF(G46=\"Against evidence\",H46*L46,IF(G46=\"Lump sum\",H46*I46*L46,\"0,00\"))","v":"0,00"}]
[3,null,null,null,null,null,null,null,null,null,null,null,"0,00"]
[4,null,null,null,null,null,null,null,null,null,null,null,"0,00"]
[5,null,null,null,null,null,null,null,null,null,null,null,"0,00"]
[6,null,null,null,null,null,null,null,null,null,null,null,"0,00"]
[7,null,null,null,null,null,null,null,null,null,null,null,"0,00"]
[8,null,null,null,null,null,null,null,null,null,null,null,"0,00"]
[9,null,null,null,null,null,null,null,null,null,null,null,"0,00"]
[10,null,null,null,null,null,null,null,null,null,null,null,"0,00"]
["TOTAL",null,null,null,null,null,null,null,null,null,null,{"$f":"'Invoice overview'!F32","v":"EUR"},{"$f":"SUM(M45:N54)","v":0}]
[]
[null,null,null,null,null,null,null,null,null,null,null,"Total for expert/contractor",null,null,null,{"$f":"SUM(M55,K41,F25,F24,F21,F22,)","v":0}]
[]
[]
[]
[]
[]
[]
[]
[]
[]
[]
[]
[]
[]
[]
[]
[]
[]
[]
[]
[]
[]
[]
[]
[]
[]
[]
[]
[]
[]
[]
[]
[]
[]
[]
[]
[]
[]
[]
[]
[]
[]
[]
[null,null,null,null,null,null,null,null,null,null,null,null,null,null,null,null,null,null,null,null,null,null,null,null,null,null,null,null,null,null,null,null,null,null,null,null,null,null,null,"Please select"]
[null,null,null,null,null,null,null,null,null,null,null,null,null,null,null,null,null,null,null,null,null,null,null,null,null,null,null,null,null,null,null,null,null,null,null,null,null,null,null,"Outward and homeward journeys"]
[null,null,null,null,null,null,null,null,null,null,null,null,null,null,null,null,null,null,null,null,null,null,null,null,null,null,null,null,null,null,null,null,null,null,null,null,null,null,null,"Regional and national flights"]
[null,null,null,null,null,null,null,null,null,null,null,null,null,null,null,null,null,null,null,null,null,null,null,null,null,null,null,null,null,null,null,null,null,null,null,null,null,null,null,"Other flights"]
[]
[null,null,null,null,null,null,null,null,null,null,null,null,null,null,null,null,null,null,null,null,null,null,null,null,null,null,null,null,null,null,null,null,null,null,null,null,null,null,null,"Please select"]
[null,null,null,null,null,null,null,null,null,null,null,null,null,null,null,null,null,null,null,null,null,null,null,null,null,null,null,null,null,null,null,null,null,null,null,null,null,null,null,"Hours"]
[null,null,null,null,null,null,null,null,null,null,null,null,null,null,null,null,null,null,null,null,null,null,null,null,null,null,null,null,null,null,null,null,null,null,null,null,null,null,null,"Standard lines"]
[null,null,null,null,null,null,null,null,null,null,null,null,null,null,null,null,null,null,null,null,null,null,null,null,null,null,null,null,null,null,null,null,null,null,null,null,null,null,null,"Days"]
[]
[]
[]
[null,null,null,null,null,null,null,null,null,null,null,null,null,null,null,null,null,null,null,null,null,null,null,null,null,null,null,null,null,null,null,null,null,null,null,null,null,null,null,"Please select"]
[null,null,null,null,null,null,null,null,null,null,null,null,null,null,null,null,null,null,null,null,null,null,null,null,null,null,null,null,null,null,null,null,null,null,null,null,null,null,null,"Expert (outward and homeward journeys)"]
[null,null,null,null,null,null,null,null,null,null,null,null,null,null,null,null,null,null,null,null,null,null,null,null,null,null,null,null,null,null,null,null,null,null,null,null,null,null,null,"Dependants (outward and homeward journeys) "]
[null,null,null,null,null,null,null,null,null,null,null,null,null,null,null,null,null,null,null,null,null,null,null,null,null,null,null,null,null,null,null,null,null,null,null,null,null,null,null,"Vacation flights"]
[null,null,null,null,null,null,null,null,null,null,null,null,null,null,null,null,null,null,null,null,null,null,null,null,null,null,null,null,null,null,null,null,null,null,null,null,null,null,null,"Regional and national flights"]
[null,null,null,null,null,null,null,null,null,null,null,null,null,null,null,null,null,null,null,null,null,null,null,null,null,null,null,null,null,null,null,null,null,null,null,null,null,null,null,"Other flights"]
[]
[null,null,null,null,null,null,null,null,null,null,null,null,null,null,null,null,null,null,null,null,null,null,null,null,null,null,null,null,null,null,null,null,null,null,null,null,null,null,null,"Please select"]
[null,null,null,null,null,null,null,null,null,null,null,null,null,null,null,null,null,null,null,null,null,null,null,null,null,null,null,null,null,null,null,null,null,null,null,null,null,null,null,"Lump sum"]
[null,null,null,null,null,null,null,null,null,null,null,null,null,null,null,null,null,null,null,null,null,null,null,null,null,null,null,null,null,null,null,null,null,null,null,null,null,null,null,"Against evidence"]
[]
[null,null,null,null,null,null,null,null,null,null,null,null,null,null,null,null,null,null,null,null,null,null,null,null,null,null,null,null,null,null,null,null,null,null,null,null,null,null,null,"Please select"]
[null,null,null,null,null,null,null,null,null,null,null,null,null,null,null,null,null,null,null,null,null,null,null,null,null,null,null,null,null,null,null,null,null,null,null,null,null,null,null,"International short-term expert"]
[null,null,null,null,null,null,null,null,null,null,null,null,null,null,null,null,null,null,null,null,null,null,null,null,null,null,null,null,null,null,null,null,null,null,null,null,null,null,null,"Regional short-term expert"]
[null,null,null,null,null,null,null,null,null,null,null,null,null,null,null,null,null,null,null,null,null,null,null,null,null,null,null,null,null,null,null,null,null,null,null,null,null,null,null,"National short-term expert"]
[null,null,null,null,null,null,null,null,null,null,null,null,null,null,null,null,null,null,null,null,null,null,null,null,null,null,null,null,null,null,null,null,null,null,null,null,null,null,null,"Other (please define)"]
[]
[]
[]
[]
[null,null,null,null,null,null,null,null,null,null,null,null,null,null,null,null,null,null,null,null,null,null,null,null,null,null,null,null,null,null,null,null,null,null,null,null,null,null,null,"Please select"]
[null,null,null,null,null,null,null,null,null,null,null,null,null,null,null,null,null,null,null,null,null,null,null,null,null,null,null,null,null,null,null,null,null,null,null,null,null,null,null,"Travel expenses outside the country"]
[null,null,null,null,null,null,null,null,null,null,null,null,null,null,null,null,null,null,null,null,null,null,null,null,null,null,null,null,null,null,null,null,null,null,null,null,null,null,null,"Travel expenses in the country"]

{"sheet":"Expert sheet (13)","index":13,"n_rows":134,"n_cols":40,"rows_kept":134,"cut":false,"hidden":true,"merged":[[43,17,43,18],[44,12,44,13],[44,14,44,16],[45,12,45,13],[45,14,45,16],[43,12,43,13],[43,14,43,16],[19,0,19,1],[23,6,23,9],[23,10,23,12],[28,1,29,2],[28,3,28,5],[29,11,29,14],[19,6,19,9],[19,10,19,12],[20,6,20,9],[20,10,20,12],[22,6,22,9],[22,10,22,12],[21,6,21,9],[21,10,21,12],[54,3,54,4],[56,11,56,14],[49,12,49,13],[49,14,49,16],[50,12,50,13],[50,14,50,16],[51,12,51,13],[51,14,51,16],[52,12,52,13],[52,14,52,16],[53,12,53,13],[53,14,53,16],[54,12,54,13],[54,14,54,16],[46,12,46,13],[46,14,46,16],[47,12,47,13],[47,14,47,16],[48,12,48,13],[48,14,48,16],[39,1,39,2],[39,11,39,14],[39,15,39,16],[40,11,40,14],[40,15,40,16],[40,3,40,4],[37,1,37,2],[37,11,37,14],[37,15,37,16],[38,1,38,2],[38,11,38,14],[38,15,38,16],[35,1,35,2],[35,11,35,14],[35,15,35,16],[36,1,36,2],[36,11,36,14],[36,15,36,16],[33,1,33,2],[33,11,33,14],[33,15,33,16],[34,1,34,2],[34,11,34,14],[34,15,34,16],[31,1,31,2],[31,11,31,14],[31,15,31,16],[32,1,32,2],[32,11,32,14],[32,15,32,16],[29,15,29,16],[30,1,30,2],[30,11,30,14],[30,15,30,16],[24,6,24,9],[24,10,24,12],[13,11,13,12],[14,11,14,12],[16,20,16,21],[18,6,18,9],[18,10,18,12],[8,2,8,4],[9,2,9,4],[6,2,6,4],[6,11,7,12],[6,13,7,13],[7,2,7,4],[1,3,1,4],[1,7,1,9],[2,1,2,2],[2,3,2,4],[5,6,5,13]]}
["Statement on personnel deployment"]
[null,"Contract number:",null,"Processing no./Cost centre:",null,null,null,"Accounting period:"]
[null,{"$f":"'Invoice overview'!A28","v":0},null,{"$f":"'Invoice overview'!$C$28","v":0},null,null,null,null,null,{"$f":"_xlfn.TEXTJOIN(\"   \",FALSE,IF('Invoice overview'!$G$28 > 0, TEXT('Invoice overview'!$G$28,\"TT.MM.JJJJ\"),\"\"),\"until\",IF('Invoice overview'!$I$28 > 0,TEXT('Invoice overview'!$I$28,\"TT.MM.JJJJ\"),\"\"))","v":"   until   "}]
[]
[]
["Personal data"]
["Family name, given name:"]
["Function:",null,"Please select"]
["Description of function:"]
["Expert no. per price schedule"]
[]
[]
[]
[]
[]
[]
[]
[]
["Personnel costs",null,null,null,null,null,"Remarks",null,null,null,"Reserved for GIZ"]
["Remuneration item",null,"Accounting unit ","Rate","Quantity","Amount"]
["Fee (No. 5.4 General Conditions)",null,"Please select",null,null,{"$f":"SUM(E21*D21)","v":0}]
["Fee (No. 5.4 General Conditions)",null,"Please select",null,null,{"$f":"SUM(E22*D22)","v":0}]
[null,null,null,"Daily rate\nacc. to contract","Days"]
["Per diem (No. 5.6. General Conditions)",null,null,null,null,{"$f":"SUM(E24*D24)","v":0}]
["Accommodation (No. 5.7 General Conditions)",null,null,null,null,{"$f":"SUM(E25*D25)","v":0}]
[]
["Travel expenses"]
["Air travel (No. 5.8 General Conditions)"]
[null,"Type of flight",null,"Travel dates"]
["No.",null,null,"Destination","Start\n (dd/mm/yy)","End \n(dd/mm/yy)","Reimbursement type\n\nacc. to contract","Amount\n (per voucher or lump sum)","Currency","Exchange rate*","Amount ","Remarks",null,null,null,"Reserved for GIZ"]
[1,"Please select",null,null,null,null,"Please select",null,null,null,{"$f":"H31*J31","v":0}]
[2,null,null,null,null,null,null,null,null,null,{"$f":"H32*J32","v":0}]
[3,null,null,null,null,null,null,null,null,null,0]
[4,null,null,null,null,null,null,null,null,null,0]
[5,null,null,null,null,null,null,null,null,null,0]
[6,null,null,null,null,null,null,null,null,null,0]
[7,null,null,null,null,null,null,null,null,null,0]
[8,null,null,null,null,null,null,null,null,null,0]
[9,null,null,null,null,null,null,null,null,null,0]
[10,null,null,null,null,null,null,null,null,null,0]
["TOTAL",null,null,null,null,null,null,null,null,{"$f":"'Invoice overview'!F32","v":"EUR"},{"$f":"SUM(K31:K40)","v":0}]
[]
["Other travel expenses (No. 5.9 General Conditions)"]
["No.","Country of travel","Nature of travel expenses","Start\n(dd/mm/yy)","End \n(dd/mm/yy)","Reason for travel","Reimbursement type\nacc. to contract","Amount\n (per voucher or lump sum)","Quantity"," ","Currency","Exchange rate*","Amount ",null,"Remarks",null,null,"Reserved for GIZ"]
[1,null,"Please select",null,null,null,"Please select",null,null,null,null,null,{"$f":"IF(G45=\"Against evidence\",H45*L45,IF(G45=\"Lump sum\",H45*I45*L45,\"0,00\"))","v":"0,00"}]
[2,null,null,null,null,null,null,null,null,null,null,null,{"$f":"IF(G46=\"Against evidence\",H46*L46,IF(G46=\"Lump sum\",H46*I46*L46,\"0,00\"))","v":"0,00"}]
[3,null,null,null,null,null,null,null,null,null,null,null,"0,00"]
[4,null,null,null,null,null,null,null,null,null,null,null,"0,00"]
[5,null,null,null,null,null,null,null,null,null,null,null,"0,00"]
[6,null,null,null,null,null,null,null,null,null,null,null,"0,00"]
[7,null,null,null,null,null,null,null,null,null,null,null,"0,00"]
[8,null,null,null,null,null,null,null,null,null,null,null,"0,00"]
[9,null,null,null,null,null,null,null,null,null,null,null,"0,00"]
[10,null,null,null,null,null,null,null,null,null,null,null,"0,00"]
["TOTAL",null,null,null,null,null,null,null,null,null,null,{"$f":"'Invoice overview'!F32","v":"EUR"},{"$f":"SUM(M45:N54)","v":0}]
[]
[null,null,null,null,null,null,null,null,null,null,null,"Total for expert/contractor",null,null,null,{"$f":"SUM(M55,K41,F25,F24,F21,F22,)","v":0}]
[]
[]
[]
[]
[]
[]
[]
[]
[]
[]
[]
[]
[]
[]
[]
[]
[]
[]
[]
[]
[]
[]
[]
[]
[]
[]
[]
[]
[]
[]
[]
[]
[]
[]
[]
[]
[]
[]
[]
[]
[]
[]
[null,null,null,null,null,null,null,null,null,null,null,null,null,null,null,null,null,null,null,null,null,null,null,null,null,null,null,null,null,null,null,null,null,null,null,null,null,null,null,"Please select"]
[null,null,null,null,null,null,null,null,null,null,null,null,null,null,null,null,null,null,null,null,null,null,null,null,null,null,null,null,null,null,null,null,null,null,null,null,null,null,null,"Outward and homeward journeys"]
[null,null,null,null,null,null,null,null,null,null,null,null,null,null,null,null,null,null,null,null,null,null,null,null,null,null,null,null,null,null,null,null,null,null,null,null,null,null,null,"Regional and national flights"]
[null,null,null,null,null,null,null,null,null,null,null,null,null,null,null,null,null,null,null,null,null,null,null,null,null,null,null,null,null,null,null,null,null,null,null,null,null,null,null,"Other flights"]
[]
[null,null,null,null,null,null,null,null,null,null,null,null,null,null,null,null,null,null,null,null,null,null,null,null,null,null,null,null,null,null,null,null,null,null,null,null,null,null,null,"Please select"]
[null,null,null,null,null,null,null,null,null,null,null,null,null,null,null,null,null,null,null,null,null,null,null,null,null,null,null,null,null,null,null,null,null,null,null,null,null,null,null,"Hours"]
[null,null,null,null,null,null,null,null,null,null,null,null,null,null,null,null,null,null,null,null,null,null,null,null,null,null,null,null,null,null,null,null,null,null,null,null,null,null,null,"Standard lines"]
[null,null,null,null,null,null,null,null,null,null,null,null,null,null,null,null,null,null,null,null,null,null,null,null,null,null,null,null,null,null,null,null,null,null,null,null,null,null,null,"Days"]
[]
[]
[]
[null,null,null,null,null,null,null,null,null,null,null,null,null,null,null,null,null,null,null,null,null,null,null,null,null,null,null,null,null,null,null,null,null,null,null,null,null,null,null,"Please select"]
[null,null,null,null,null,null,null,null,null,null,null,null,null,null,null,null,null,null,null,null,null,null,null,null,null,null,null,null,null,null,null,null,null,null,null,null,null,null,null,"Expert (outward and homeward journeys)"]
[null,null,null,null,null,null,null,null,null,null,null,null,null,null,null,null,null,null,null,null,null,null,null,null,null,null,null,null,null,null,null,null,null,null,null,null,null,null,null,"Dependants (outward and homeward journeys) "]
[null,null,null,null,null,null,null,null,null,null,null,null,null,null,null,null,null,null,null,null,null,null,null,null,null,null,null,null,null,null,null,null,null,null,null,null,null,null,null,"Vacation flights"]
[null,null,null,null,null,null,null,null,null,null,null,null,null,null,null,null,null,null,null,null,null,null,null,null,null,null,null,null,null,null,null,null,null,null,null,null,null,null,null,"Regional and national flights"]
[null,null,null,null,null,null,null,null,null,null,null,null,null,null,null,null,null,null,null,null,null,null,null,null,null,null,null,null,null,null,null,null,null,null,null,null,null,null,null,"Other flights"]
[]
[null,null,null,null,null,null,null,null,null,null,null,null,null,null,null,null,null,null,null,null,null,null,null,null,null,null,null,null,null,null,null,null,null,null,null,null,null,null,null,"Please select"]
[null,null,null,null,null,null,null,null,null,null,null,null,null,null,null,null,null,null,null,null,null,null,null,null,null,null,null,null,null,null,null,null,null,null,null,null,null,null,null,"Lump sum"]
[null,null,null,null,null,null,null,null,null,null,null,null,null,null,null,null,null,null,null,null,null,null,null,null,null,null,null,null,null,null,null,null,null,null,null,null,null,null,null,"Against evidence"]
[]
[null,null,null,null,null,null,null,null,null,null,null,null,null,null,null,null,null,null,null,null,null,null,null,null,null,null,null,null,null,null,null,null,null,null,null,null,null,null,null,"Please select"]
[null,null,null,null,null,null,null,null,null,null,null,null,null,null,null,null,null,null,null,null,null,null,null,null,null,null,null,null,null,null,null,null,null,null,null,null,null,null,null,"International short-term expert"]
[null,null,null,null,null,null,null,null,null,null,null,null,null,null,null,null,null,null,null,null,null,null,null,null,null,null,null,null,null,null,null,null,null,null,null,null,null,null,null,"Regional short-term expert"]
[null,null,null,null,null,null,null,null,null,null,null,null,null,null,null,null,null,null,null,null,null,null,null,null,null,null,null,null,null,null,null,null,null,null,null,null,null,null,null,"National short-term expert"]
[null,null,null,null,null,null,null,null,null,null,null,null,null,null,null,null,null,null,null,null,null,null,null,null,null,null,null,null,null,null,null,null,null,null,null,null,null,null,null,"Other (please define)"]
[]
[]
[]
[]
[null,null,null,null,null,null,null,null,null,null,null,null,null,null,null,null,null,null,null,null,null,null,null,null,null,null,null,null,null,null,null,null,null,null,null,null,null,null,null,"Please select"]
[null,null,null,null,null,null,null,null,null,null,null,null,null,null,null,null,null,null,null,null,null,null,null,null,null,null,null,null,null,null,null,null,null,null,null,null,null,null,null,"Travel expenses outside the country"]
[null,null,null,null,null,null,null,null,null,null,null,null,null,null,null,null,null,null,null,null,null,null,null,null,null,null,null,null,null,null,null,null,null,null,null,null,null,null,null,"Travel expenses in the country"]

{"sheet":"Expert sheet (14)","index":14,"n_rows":134,"n_cols":40,"rows_kept":134,"cut":false,"hidden":true,"merged":[[43,17,43,18],[44,12,44,13],[44,14,44,16],[45,12,45,13],[45,14,45,16],[43,12,43,13],[43,14,43,16],[19,0,19,1],[23,6,23,9],[23,10,23,12],[28,1,29,2],[28,3,28,5],[29,11,29,14],[19,6,19,9],[19,10,19,12],[20,6,20,9],[20,10,20,12],[22,6,22,9],[22,10,22,12],[21,6,21,9],[21,10,21,12],[54,3,54,4],[56,11,56,14],[49,12,49,13],[49,14,49,16],[50,12,50,13],[50,14,50,16],[51,12,51,13],[51,14,51,16],[52,12,52,13],[52,14,52,16],[53,12,53,13],[53,14,53,16],[54,12,54,13],[54,14,54,16],[46,12,46,13],[46,14,46,16],[47,12,47,13],[47,14,47,16],[48,12,48,13],[48,14,48,16],[39,1,39,2],[39,11,39,14],[39,15,39,16],[40,11,40,14],[40,15,40,16],[40,3,40,4],[37,1,37,2],[37,11,37,14],[37,15,37,16],[38,1,38,2],[38,11,38,14],[38,15,38,16],[35,1,35,2],[35,11,35,14],[35,15,35,16],[36,1,36,2],[36,11,36,14],[36,15,36,16],[33,1,33,2],[33,11,33,14],[33,15,33,16],[34,1,34,2],[34,11,34,14],[34,15,34,16],[31,1,31,2],[31,11,31,14],[31,15,31,16],[32,1,32,2],[32,11,32,14],[32,15,32,16],[29,15,29,16],[30,1,30,2],[30,11,30,14],[30,15,30,16],[24,6,24,9],[24,10,24,12],[13,11,13,12],[14,11,14,12],[16,20,16,21],[18,6,18,9],[18,10,18,12],[8,2,8,4],[9,2,9,4],[6,2,6,4],[6,11,7,12],[6,13,7,13],[7,2,7,4],[1,3,1,4],[1,7,1,9],[2,1,2,2],[2,3,2,4],[5,6,5,13]]}
["Statement on personnel deployment"]
[null,"Contract number:",null,"Processing no./Cost centre:",null,null,null,"Accounting period:"]
[null,{"$f":"'Invoice overview'!A28","v":0},null,{"$f":"'Invoice overview'!$C$28","v":0},null,null,null,null,null,{"$f":"_xlfn.TEXTJOIN(\"   \",FALSE,IF('Invoice overview'!$G$28 > 0, TEXT('Invoice overview'!$G$28,\"TT.MM.JJJJ\"),\"\"),\"until\",IF('Invoice overview'!$I$28 > 0,TEXT('Invoice overview'!$I$28,\"TT.MM.JJJJ\"),\"\"))","v":"   until   "}]
[]
[]
["Personal data"]
["Family name, given name:"]
["Function:",null,"Please select"]
["Description of function:"]
["Expert no. per price schedule"]
[]
[]
[]
[]
[]
[]
[]
[]
["Personnel costs",null,null,null,null,null,"Remarks",null,null,null,"Reserved for GIZ"]
["Remuneration item",null,"Accounting unit ","Rate","Quantity","Amount"]
["Fee (No. 5.4 General Conditions)",null,"Please select",null,null,{"$f":"SUM(E21*D21)","v":0}]
["Fee (No. 5.4 General Conditions)",null,"Please select",null,null,{"$f":"SUM(E22*D22)","v":0}]
[null,null,null,"Daily rate\nacc. to contract","Days"]
["Per diem (No. 5.6. General Conditions)",null,null,null,null,{"$f":"SUM(E24*D24)","v":0}]
["Accommodation (No. 5.7 General Conditions)",null,null,null,null,{"$f":"SUM(E25*D25)","v":0}]
[]
["Travel expenses"]
["Air travel (No. 5.8 General Conditions)"]
[null,"Type of flight",null,"Travel dates"]
["No.",null,null,"Destination","Start\n (dd/mm/yy)","End \n(dd/mm/yy)","Reimbursement type\n\nacc. to contract","Amount\n (per voucher or lump sum)","Currency","Exchange rate*","Amount ","Remarks",null,null,null,"Reserved for GIZ"]
[1,"Please select",null,null,null,null,"Please select",null,null,null,{"$f":"H31*J31","v":0}]
[2,null,null,null,null,null,null,null,null,null,{"$f":"H32*J32","v":0}]
[3,null,null,null,null,null,null,null,null,null,0]
[4,null,null,null,null,null,null,null,null,null,0]
[5,null,null,null,null,null,null,null,null,null,0]
[6,null,null,null,null,null,null,null,null,null,0]
[7,null,null,null,null,null,null,null,null,null,0]
[8,null,null,null,null,null,null,null,null,null,0]
[9,null,null,null,null,null,null,null,null,null,0]
[10,null,null,null,null,null,null,null,null,null,0]
["TOTAL",null,null,null,null,null,null,null,null,{"$f":"'Invoice overview'!F32","v":"EUR"},{"$f":"SUM(K31:K40)","v":0}]
[]
["Other travel expenses (No. 5.9 General Conditions)"]
["No.","Country of travel","Nature of travel expenses","Start\n(dd/mm/yy)","End \n(dd/mm/yy)","Reason for travel","Reimbursement type\nacc. to contract","Amount\n (per voucher or lump sum)","Quantity"," ","Currency","Exchange rate*","Amount ",null,"Remarks",null,null,"Reserved for GIZ"]
[1,null,"Please select",null,null,null,"Please select",null,null,null,null,null,{"$f":"IF(G45=\"Against evidence\",H45*L45,IF(G45=\"Lump sum\",H45*I45*L45,\"0,00\"))","v":"0,00"}]
[2,null,null,null,null,null,null,null,null,null,null,null,{"$f":"IF(G46=\"Against evidence\",H46*L46,IF(G46=\"Lump sum\",H46*I46*L46,\"0,00\"))","v":"0,00"}]
[3,null,null,null,null,null,null,null,null,null,null,null,"0,00"]
[4,null,null,null,null,null,null,null,null,null,null,null,"0,00"]
[5,null,null,null,null,null,null,null,null,null,null,null,"0,00"]
[6,null,null,null,null,null,null,null,null,null,null,null,"0,00"]
[7,null,null,null,null,null,null,null,null,null,null,null,"0,00"]
[8,null,null,null,null,null,null,null,null,null,null,null,"0,00"]
[9,null,null,null,null,null,null,null,null,null,null,null,"0,00"]
[10,null,null,null,null,null,null,null,null,null,null,null,"0,00"]
["TOTAL",null,null,null,null,null,null,null,null,null,null,{"$f":"'Invoice overview'!F32","v":"EUR"},{"$f":"SUM(M45:N54)","v":0}]
[]
[null,null,null,null,null,null,null,null,null,null,null,"Total for expert/contractor",null,null,null,{"$f":"SUM(M55,K41,F25,F24,F21,F22,)","v":0}]
[]
[]
[]
[]
[]
[]
[]
[]
[]
[]
[]
[]
[]
[]
[]
[]
[]
[]
[]
[]
[]
[]
[]
[]
[]
[]
[]
[]
[]
[]
[]
[]
[]
[]
[]
[]
[]
[]
[]
[]
[]
[]
[null,null,null,null,null,null,null,null,null,null,null,null,null,null,null,null,null,null,null,null,null,null,null,null,null,null,null,null,null,null,null,null,null,null,null,null,null,null,null,"Please select"]
[null,null,null,null,null,null,null,null,null,null,null,null,null,null,null,null,null,null,null,null,null,null,null,null,null,null,null,null,null,null,null,null,null,null,null,null,null,null,null,"Outward and homeward journeys"]
[null,null,null,null,null,null,null,null,null,null,null,null,null,null,null,null,null,null,null,null,null,null,null,null,null,null,null,null,null,null,null,null,null,null,null,null,null,null,null,"Regional and national flights"]
[null,null,null,null,null,null,null,null,null,null,null,null,null,null,null,null,null,null,null,null,null,null,null,null,null,null,null,null,null,null,null,null,null,null,null,null,null,null,null,"Other flights"]
[]
[null,null,null,null,null,null,null,null,null,null,null,null,null,null,null,null,null,null,null,null,null,null,null,null,null,null,null,null,null,null,null,null,null,null,null,null,null,null,null,"Please select"]
[null,null,null,null,null,null,null,null,null,null,null,null,null,null,null,null,null,null,null,null,null,null,null,null,null,null,null,null,null,null,null,null,null,null,null,null,null,null,null,"Hours"]
[null,null,null,null,null,null,null,null,null,null,null,null,null,null,null,null,null,null,null,null,null,null,null,null,null,null,null,null,null,null,null,null,null,null,null,null,null,null,null,"Standard lines"]
[null,null,null,null,null,null,null,null,null,null,null,null,null,null,null,null,null,null,null,null,null,null,null,null,null,null,null,null,null,null,null,null,null,null,null,null,null,null,null,"Days"]
[]
[]
[]
[null,null,null,null,null,null,null,null,null,null,null,null,null,null,null,null,null,null,null,null,null,null,null,null,null,null,null,null,null,null,null,null,null,null,null,null,null,null,null,"Please select"]
[null,null,null,null,null,null,null,null,null,null,null,null,null,null,null,null,null,null,null,null,null,null,null,null,null,null,null,null,null,null,null,null,null,null,null,null,null,null,null,"Expert (outward and homeward journeys)"]
[null,null,null,null,null,null,null,null,null,null,null,null,null,null,null,null,null,null,null,null,null,null,null,null,null,null,null,null,null,null,null,null,null,null,null,null,null,null,null,"Dependants (outward and homeward journeys) "]
[null,null,null,null,null,null,null,null,null,null,null,null,null,null,null,null,null,null,null,null,null,null,null,null,null,null,null,null,null,null,null,null,null,null,null,null,null,null,null,"Vacation flights"]
[null,null,null,null,null,null,null,null,null,null,null,null,null,null,null,null,null,null,null,null,null,null,null,null,null,null,null,null,null,null,null,null,null,null,null,null,null,null,null,"Regional and national flights"]
[null,null,null,null,null,null,null,null,null,null,null,null,null,null,null,null,null,null,null,null,null,null,null,null,null,null,null,null,null,null,null,null,null,null,null,null,null,null,null,"Other flights"]
[]
[null,null,null,null,null,null,null,null,null,null,null,null,null,null,null,null,null,null,null,null,null,null,null,null,null,null,null,null,null,null,null,null,null,null,null,null,null,null,null,"Please select"]
[null,null,null,null,null,null,null,null,null,null,null,null,null,null,null,null,null,null,null,null,null,null,null,null,null,null,null,null,null,null,null,null,null,null,null,null,null,null,null,"Lump sum"]
[null,null,null,null,null,null,null,null,null,null,null,null,null,null,null,null,null,null,null,null,null,null,null,null,null,null,null,null,null,null,null,null,null,null,null,null,null,null,null,"Against evidence"]
[]
[null,null,null,null,null,null,null,null,null,null,null,null,null,null,null,null,null,null,null,null,null,null,null,null,null,null,null,null,null,null,null,null,null,null,null,null,null,null,null,"Please select"]
[null,null,null,null,null,null,null,null,null,null,null,null,null,null,null,null,null,null,null,null,null,null,null,null,null,null,null,null,null,null,null,null,null,null,null,null,null,null,null,"International short-term expert"]
[null,null,null,null,null,null,null,null,null,null,null,null,null,null,null,null,null,null,null,null,null,null,null,null,null,null,null,null,null,null,null,null,null,null,null,null,null,null,null,"Regional short-term expert"]
[null,null,null,null,null,null,null,null,null,null,null,null,null,null,null,null,null,null,null,null,null,null,null,null,null,null,null,null,null,null,null,null,null,null,null,null,null,null,null,"National short-term expert"]
[null,null,null,null,null,null,null,null,null,null,null,null,null,null,null,null,null,null,null,null,null,null,null,null,null,null,null,null,null,null,null,null,null,null,null,null,null,null,null,"Other (please define)"]
[]
[]
[]
[]
[null,null,null,null,null,null,null,null,null,null,null,null,null,null,null,null,null,null,null,null,null,null,null,null,null,null,null,null,null,null,null,null,null,null,null,null,null,null,null,"Please select"]
[null,null,null,null,null,null,null,null,null,null,null,null,null,null,null,null,null,null,null,null,null,null,null,null,null,null,null,null,null,null,null,null,null,null,null,null,null,null,null,"Travel expenses outside the country"]
[null,null,null,null,null,null,null,null,null,null,null,null,null,null,null,null,null,null,null,null,null,null,null,null,null,null,null,null,null,null,null,null,null,null,null,null,null,null,null,"Travel expenses in the country"]

{"sheet":"Expert sheet (15)","index":15,"n_rows":134,"n_cols":40,"rows_kept":134,"cut":false,"hidden":true,"merged":[[43,17,43,18],[44,12,44,13],[44,14,44,16],[45,12,45,13],[45,14,45,16],[43,12,43,13],[43,14,43,16],[19,0,19,1],[23,6,23,9],[23,10,23,12],[28,1,29,2],[28,3,28,5],[29,11,29,14],[19,6,19,9],[19,10,19,12],[20,6,20,9],[20,10,20,12],[22,6,22,9],[22,10,22,12],[21,6,21,9],[21,10,21,12],[54,3,54,4],[56,11,56,14],[49,12,49,13],[49,14,49,16],[50,12,50,13],[50,14,50,16],[51,12,51,13],[51,14,51,16],[52,12,52,13],[52,14,52,16],[53,12,53,13],[53,14,53,16],[54,12,54,13],[54,14,54,16],[46,12,46,13],[46,14,46,16],[47,12,47,13],[47,14,47,16],[48,12,48,13],[48,14,48,16],[39,1,39,2],[39,11,39,14],[39,15,39,16],[40,11,40,14],[40,15,40,16],[40,3,40,4],[37,1,37,2],[37,11,37,14],[37,15,37,16],[38,1,38,2],[38,11,38,14],[38,15,38,16],[35,1,35,2],[35,11,35,14],[35,15,35,16],[36,1,36,2],[36,11,36,14],[36,15,36,16],[33,1,33,2],[33,11,33,14],[33,15,33,16],[34,1,34,2],[34,11,34,14],[34,15,34,16],[31,1,31,2],[31,11,31,14],[31,15,31,16],[32,1,32,2],[32,11,32,14],[32,15,32,16],[29,15,29,16],[30,1,30,2],[30,11,30,14],[30,15,30,16],[24,6,24,9],[24,10,24,12],[13,11,13,12],[14,11,14,12],[16,20,16,21],[18,6,18,9],[18,10,18,12],[8,2,8,4],[9,2,9,4],[6,2,6,4],[6,11,7,12],[6,13,7,13],[7,2,7,4],[1,3,1,4],[1,7,1,9],[2,1,2,2],[2,3,2,4],[5,6,5,13]]}
["Statement on personnel deployment"]
[null,"Contract number:",null,"Processing no./Cost centre:",null,null,null,"Accounting period:"]
[null,{"$f":"'Invoice overview'!A28","v":0},null,{"$f":"'Invoice overview'!$C$28","v":0},null,null,null,null,null,{"$f":"_xlfn.TEXTJOIN(\"   \",FALSE,IF('Invoice overview'!$G$28 > 0, TEXT('Invoice overview'!$G$28,\"TT.MM.JJJJ\"),\"\"),\"until\",IF('Invoice overview'!$I$28 > 0,TEXT('Invoice overview'!$I$28,\"TT.MM.JJJJ\"),\"\"))","v":"   until   "}]
[]
[]
["Personal data"]
["Family name, given name:"]
["Function:",null,"Please select"]
["Description of function:"]
["Expert no. per price schedule"]
[]
[]
[]
[]
[]
[]
[]
[]
["Personnel costs",null,null,null,null,null,"Remarks",null,null,null,"Reserved for GIZ"]
["Remuneration item",null,"Accounting unit ","Rate","Quantity","Amount"]
["Fee (No. 5.4 General Conditions)",null,"Please select",null,null,{"$f":"SUM(E21*D21)","v":0}]
["Fee (No. 5.4 General Conditions)",null,"Please select",null,null,{"$f":"SUM(E22*D22)","v":0}]
[null,null,null,"Daily rate\nacc. to contract","Days"]
["Per diem (No. 5.6. General Conditions)",null,null,null,null,{"$f":"SUM(E24*D24)","v":0}]
["Accommodation (No. 5.7 General Conditions)",null,null,null,null,{"$f":"SUM(E25*D25)","v":0}]
[]
["Travel expenses"]
["Air travel (No. 5.8 General Conditions)"]
[null,"Type of flight",null,"Travel dates"]
["No.",null,null,"Destination","Start\n (dd/mm/yy)","End \n(dd/mm/yy)","Reimbursement type\n\nacc. to contract","Amount\n (per voucher or lump sum)","Currency","Exchange rate*","Amount ","Remarks",null,null,null,"Reserved for GIZ"]
[1,"Please select",null,null,null,null,"Please select",null,null,null,{"$f":"H31*J31","v":0}]
[2,null,null,null,null,null,null,null,null,null,{"$f":"H32*J32","v":0}]
[3,null,null,null,null,null,null,null,null,null,0]
[4,null,null,null,null,null,null,null,null,null,0]
[5,null,null,null,null,null,null,null,null,null,0]
[6,null,null,null,null,null,null,null,null,null,0]
[7,null,null,null,null,null,null,null,null,null,0]
[8,null,null,null,null,null,null,null,null,null,0]
[9,null,null,null,null,null,null,null,null,null,0]
[10,null,null,null,null,null,null,null,null,null,0]
["TOTAL",null,null,null,null,null,null,null,null,{"$f":"'Invoice overview'!F32","v":"EUR"},{"$f":"SUM(K31:K40)","v":0}]
[]
["Other travel expenses (No. 5.9 General Conditions)"]
["No.","Country of travel","Nature of travel expenses","Start\n(dd/mm/yy)","End \n(dd/mm/yy)","Reason for travel","Reimbursement type\nacc. to contract","Amount\n (per voucher or lump sum)","Quantity"," ","Currency","Exchange rate*","Amount ",null,"Remarks",null,null,"Reserved for GIZ"]
[1,null,"Please select",null,null,null,"Please select",null,null,null,null,null,{"$f":"IF(G45=\"Against evidence\",H45*L45,IF(G45=\"Lump sum\",H45*I45*L45,\"0,00\"))","v":"0,00"}]
[2,null,null,null,null,null,null,null,null,null,null,null,{"$f":"IF(G46=\"Against evidence\",H46*L46,IF(G46=\"Lump sum\",H46*I46*L46,\"0,00\"))","v":"0,00"}]
[3,null,null,null,null,null,null,null,null,null,null,null,"0,00"]
[4,null,null,null,null,null,null,null,null,null,null,null,"0,00"]
[5,null,null,null,null,null,null,null,null,null,null,null,"0,00"]
[6,null,null,null,null,null,null,null,null,null,null,null,"0,00"]
[7,null,null,null,null,null,null,null,null,null,null,null,"0,00"]
[8,null,null,null,null,null,null,null,null,null,null,null,"0,00"]
[9,null,null,null,null,null,null,null,null,null,null,null,"0,00"]
[10,null,null,null,null,null,null,null,null,null,null,null,"0,00"]
["TOTAL",null,null,null,null,null,null,null,null,null,null,{"$f":"'Invoice overview'!F32","v":"EUR"},{"$f":"SUM(M45:N54)","v":0}]
[]
[null,null,null,null,null,null,null,null,null,null,null,"Total for expert/contractor",null,null,null,{"$f":"SUM(M55,K41,F25,F24,F21,F22,)","v":0}]
[]
[]
[]
[]
[]
[]
[]
[]
[]
[]
[]
[]
[]
[]
[]
[]
[]
[]
[]
[]
[]
[]
[]
[]
[]
[]
[]
[]
[]
[]
[]
[]
[]
[]
[]
[]
[]
[]
[]
[]
[]
[]
[null,null,null,null,null,null,null,null,null,null,null,null,null,null,null,null,null,null,null,null,null,null,null,null,null,null,null,null,null,null,null,null,null,null,null,null,null,null,null,"Please select"]
[null,null,null,null,null,null,null,null,null,null,null,null,null,null,null,null,null,null,null,null,null,null,null,null,null,null,null,null,null,null,null,null,null,null,null,null,null,null,null,"Outward and homeward journeys"]
[null,null,null,null,null,null,null,null,null,null,null,null,null,null,null,null,null,null,null,null,null,null,null,null,null,null,null,null,null,null,null,null,null,null,null,null,null,null,null,"Regional and national flights"]
[null,null,null,null,null,null,null,null,null,null,null,null,null,null,null,null,null,null,null,null,null,null,null,null,null,null,null,null,null,null,null,null,null,null,null,null,null,null,null,"Other flights"]
[]
[null,null,null,null,null,null,null,null,null,null,null,null,null,null,null,null,null,null,null,null,null,null,null,null,null,null,null,null,null,null,null,null,null,null,null,null,null,null,null,"Please select"]
[null,null,null,null,null,null,null,null,null,null,null,null,null,null,null,null,null,null,null,null,null,null,null,null,null,null,null,null,null,null,null,null,null,null,null,null,null,null,null,"Hours"]
[null,null,null,null,null,null,null,null,null,null,null,null,null,null,null,null,null,null,null,null,null,null,null,null,null,null,null,null,null,null,null,null,null,null,null,null,null,null,null,"Standard lines"]
[null,null,null,null,null,null,null,null,null,null,null,null,null,null,null,null,null,null,null,null,null,null,null,null,null,null,null,null,null,null,null,null,null,null,null,null,null,null,null,"Days"]
[]
[]
[]
[null,null,null,null,null,null,null,null,null,null,null,null,null,null,null,null,null,null,null,null,null,null,null,null,null,null,null,null,null,null,null,null,null,null,null,null,null,null,null,"Please select"]
[null,null,null,null,null,null,null,null,null,null,null,null,null,null,null,null,null,null,null,null,null,null,null,null,null,null,null,null,null,null,null,null,null,null,null,null,null,null,null,"Expert (outward and homeward journeys)"]
[null,null,null,null,null,null,null,null,null,null,null,null,null,null,null,null,null,null,null,null,null,null,null,null,null,null,null,null,null,null,null,null,null,null,null,null,null,null,null,"Dependants (outward and homeward journeys) "]
[null,null,null,null,null,null,null,null,null,null,null,null,null,null,null,null,null,null,null,null,null,null,null,null,null,null,null,null,null,null,null,null,null,null,null,null,null,null,null,"Vacation flights"]
[null,null,null,null,null,null,null,null,null,null,null,null,null,null,null,null,null,null,null,null,null,null,null,null,null,null,null,null,null,null,null,null,null,null,null,null,null,null,null,"Regional and national flights"]
[null,null,null,null,null,null,null,null,null,null,null,null,null,null,null,null,null,null,null,null,null,null,null,null,null,null,null,null,null,null,null,null,null,null,null,null,null,null,null,"Other flights"]
[]
[null,null,null,null,null,null,null,null,null,null,null,null,null,null,null,null,null,null,null,null,null,null,null,null,null,null,null,null,null,null,null,null,null,null,null,null,null,null,null,"Please select"]
[null,null,null,null,null,null,null,null,null,null,null,null,null,null,null,null,null,null,null,null,null,null,null,null,null,null,null,null,null,null,null,null,null,null,null,null,null,null,null,"Lump sum"]
[null,null,null,null,null,null,null,null,null,null,null,null,null,null,null,null,null,null,null,null,null,null,null,null,null,null,null,null,null,null,null,null,null,null,null,null,null,null,null,"Against evidence"]
[]
[null,null,null,null,null,null,null,null,null,null,null,null,null,null,null,null,null,null,null,null,null,null,null,null,null,null,null,null,null,null,null,null,null,null,null,null,null,null,null,"Please select"]
[null,null,null,null,null,null,null,null,null,null,null,null,null,null,null,null,null,null,null,null,null,null,null,null,null,null,null,null,null,null,null,null,null,null,null,null,null,null,null,"International short-term expert"]
[null,null,null,null,null,null,null,null,null,null,null,null,null,null,null,null,null,null,null,null,null,null,null,null,null,null,null,null,null,null,null,null,null,null,null,null,null,null,null,"Regional short-term expert"]
[null,null,null,null,null,null,null,null,null,null,null,null,null,null,null,null,null,null,null,null,null,null,null,null,null,null,null,null,null,null,null,null,null,null,null,null,null,null,null,"National short-term expert"]
[null,null,null,null,null,null,null,null,null,null,null,null,null,null,null,null,null,null,null,null,null,null,null,null,null,null,null,null,null,null,null,null,null,null,null,null,null,null,null,"Other (please define)"]
[]
[]
[]
[]
[null,null,null,null,null,null,null,null,null,null,null,null,null,null,null,null,null,null,null,null,null,null,null,null,null,null,null,null,null,null,null,null,null,null,null,null,null,null,null,"Please select"]
[null,null,null,null,null,null,null,null,null,null,null,null,null,null,null,null,null,null,null,null,null,null,null,null,null,null,null,null,null,null,null,null,null,null,null,null,null,null,null,"Travel expenses outside the country"]
[null,null,null,null,null,null,null,null,null,null,null,null,null,null,null,null,null,null,null,null,null,null,null,null,null,null,null,null,null,null,null,null,null,null,null,null,null,null,null,"Travel expenses in the country"]

{"sheet":"Expert sheet (16)","index":16,"n_rows":134,"n_cols":40,"rows_kept":134,"cut":false,"hidden":true,"merged":[[43,17,43,18],[44,12,44,13],[44,14,44,16],[45,12,45,13],[45,14,45,16],[43,12,43,13],[43,14,43,16],[19,0,19,1],[23,6,23,9],[23,10,23,12],[28,1,29,2],[28,3,28,5],[29,11,29,14],[19,6,19,9],[19,10,19,12],[20,6,20,9],[20,10,20,12],[22,6,22,9],[22,10,22,12],[21,6,21,9],[21,10,21,12],[54,3,54,4],[56,11,56,14],[49,12,49,13],[49,14,49,16],[50,12,50,13],[50,14,50,16],[51,12,51,13],[51,14,51,16],[52,12,52,13],[52,14,52,16],[53,12,53,13],[53,14,53,16],[54,12,54,13],[54,14,54,16],[46,12,46,13],[46,14,46,16],[47,12,47,13],[47,14,47,16],[48,12,48,13],[48,14,48,16],[39,1,39,2],[39,11,39,14],[39,15,39,16],[40,11,40,14],[40,15,40,16],[40,3,40,4],[37,1,37,2],[37,11,37,14],[37,15,37,16],[38,1,38,2],[38,11,38,14],[38,15,38,16],[35,1,35,2],[35,11,35,14],[35,15,35,16],[36,1,36,2],[36,11,36,14],[36,15,36,16],[33,1,33,2],[33,11,33,14],[33,15,33,16],[34,1,34,2],[34,11,34,14],[34,15,34,16],[31,1,31,2],[31,11,31,14],[31,15,31,16],[32,1,32,2],[32,11,32,14],[32,15,32,16],[29,15,29,16],[30,1,30,2],[30,11,30,14],[30,15,30,16],[24,6,24,9],[24,10,24,12],[13,11,13,12],[14,11,14,12],[16,20,16,21],[18,6,18,9],[18,10,18,12],[8,2,8,4],[9,2,9,4],[6,2,6,4],[6,11,7,12],[6,13,7,13],[7,2,7,4],[1,3,1,4],[1,7,1,9],[2,1,2,2],[2,3,2,4],[5,6,5,13]]}
["Statement on personnel deployment"]
[null,"Contract number:",null,"Processing no./Cost centre:",null,null,null,"Accounting period:"]
[null,{"$f":"'Invoice overview'!A28","v":0},null,{"$f":"'Invoice overview'!$C$28","v":0},null,null,null,null,null,{"$f":"_xlfn.TEXTJOIN(\"   \",FALSE,IF('Invoice overview'!$G$28 > 0, TEXT('Invoice overview'!$G$28,\"TT.MM.JJJJ\"),\"\"),\"until\",IF('Invoice overview'!$I$28 > 0,TEXT('Invoice overview'!$I$28,\"TT.MM.JJJJ\"),\"\"))","v":"   until   "}]
[]
[]
["Personal data"]
["Family name, given name:"]
["Function:",null,"Please select"]
["Description of function:"]
["Expert no. per price schedule"]
[]
[]
[]
[]
[]
[]
[]
[]
["Personnel costs",null,null,null,null,null,"Remarks",null,null,null,"Reserved for GIZ"]
["Remuneration item",null,"Accounting unit ","Rate","Quantity","Amount"]
["Fee (No. 5.4 General Conditions)",null,"Please select",null,null,{"$f":"SUM(E21*D21)","v":0}]
["Fee (No. 5.4 General Conditions)",null,"Please select",null,null,{"$f":"SUM(E22*D22)","v":0}]
[null,null,null,"Daily rate\nacc. to contract","Days"]
["Per diem (No. 5.6. General Conditions)",null,null,null,null,{"$f":"SUM(E24*D24)","v":0}]
["Accommodation (No. 5.7 General Conditions)",null,null,null,null,{"$f":"SUM(E25*D25)","v":0}]
[]
["Travel expenses"]
["Air travel (No. 5.8 General Conditions)"]
[null,"Type of flight",null,"Travel dates"]
["No.",null,null,"Destination","Start\n (dd/mm/yy)","End \n(dd/mm/yy)","Reimbursement type\n\nacc. to contract","Amount\n (per voucher or lump sum)","Currency","Exchange rate*","Amount ","Remarks",null,null,null,"Reserved for GIZ"]
[1,"Please select",null,null,null,null,"Please select",null,null,null,{"$f":"H31*J31","v":0}]
[2,null,null,null,null,null,null,null,null,null,{"$f":"H32*J32","v":0}]
[3,null,null,null,null,null,null,null,null,null,0]
[4,null,null,null,null,null,null,null,null,null,0]
[5,null,null,null,null,null,null,null,null,null,0]
[6,null,null,null,null,null,null,null,null,null,0]
[7,null,null,null,null,null,null,null,null,null,0]
[8,null,null,null,null,null,null,null,null,null,0]
[9,null,null,null,null,null,null,null,null,null,0]
[10,null,null,null,null,null,null,null,null,null,0]
["TOTAL",null,null,null,null,null,null,null,null,{"$f":"'Invoice overview'!F32","v":"EUR"},{"$f":"SUM(K31:K40)","v":0}]
[]
["Other travel expenses (No. 5.9 General Conditions)"]
["No.","Country of travel","Nature of travel expenses","Start\n(dd/mm/yy)","End \n(dd/mm/yy)","Reason for travel","Reimbursement type\nacc. to contract","Amount\n (per voucher or lump sum)","Quantity"," ","Currency","Exchange rate*","Amount ",null,"Remarks",null,null,"Reserved for GIZ"]
[1,null,"Please select",null,null,null,"Please select",null,null,null,null,null,{"$f":"IF(G45=\"Against evidence\",H45*L45,IF(G45=\"Lump sum\",H45*I45*L45,\"0,00\"))","v":"0,00"}]
[2,null,null,null,null,null,null,null,null,null,null,null,{"$f":"IF(G46=\"Against evidence\",H46*L46,IF(G46=\"Lump sum\",H46*I46*L46,\"0,00\"))","v":"0,00"}]
[3,null,null,null,null,null,null,null,null,null,null,null,"0,00"]
[4,null,null,null,null,null,null,null,null,null,null,null,"0,00"]
[5,null,null,null,null,null,null,null,null,null,null,null,"0,00"]
[6,null,null,null,null,null,null,null,null,null,null,null,"0,00"]
[7,null,null,null,null,null,null,null,null,null,null,null,"0,00"]
[8,null,null,null,null,null,null,null,null,null,null,null,"0,00"]
[9,null,null,null,null,null,null,null,null,null,null,null,"0,00"]
[10,null,null,null,null,null,null,null,null,null,null,null,"0,00"]
["TOTAL",null,null,null,null,null,null,null,null,null,null,{"$f":"'Invoice overview'!F32","v":"EUR"},{"$f":"SUM(M45:N54)","v":0}]
[]
[null,null,null,null,null,null,null,null,null,null,null,"Total for expert/contractor",null,null,null,{"$f":"SUM(M55,K41,F25,F24,F21,F22,)","v":0}]
[]
[]
[]
[]
[]
[]
[]
[]
[]
[]
[]
[]
[]
[]
[]
[]
[]
[]
[]
[]
[]
[]
[]
[]
[]
[]
[]
[]
[]
[]
[]
[]
[]
[]
[]
[]
[]
[]
[]
[]
[]
[]
[null,null,null,null,null,null,null,null,null,null,null,null,null,null,null,null,null,null,null,null,null,null,null,null,null,null,null,null,null,null,null,null,null,null,null,null,null,null,null,"Please select"]
[null,null,null,null,null,null,null,null,null,null,null,null,null,null,null,null,null,null,null,null,null,null,null,null,null,null,null,null,null,null,null,null,null,null,null,null,null,null,null,"Outward and homeward journeys"]
[null,null,null,null,null,null,null,null,null,null,null,null,null,null,null,null,null,null,null,null,null,null,null,null,null,null,null,null,null,null,null,null,null,null,null,null,null,null,null,"Regional and national flights"]
[null,null,null,null,null,null,null,null,null,null,null,null,null,null,null,null,null,null,null,null,null,null,null,null,null,null,null,null,null,null,null,null,null,null,null,null,null,null,null,"Other flights"]
[]
[null,null,null,null,null,null,null,null,null,null,null,null,null,null,null,null,null,null,null,null,null,null,null,null,null,null,null,null,null,null,null,null,null,null,null,null,null,null,null,"Please select"]
[null,null,null,null,null,null,null,null,null,null,null,null,null,null,null,null,null,null,null,null,null,null,null,null,null,null,null,null,null,null,null,null,null,null,null,null,null,null,null,"Hours"]
[null,null,null,null,null,null,null,null,null,null,null,null,null,null,null,null,null,null,null,null,null,null,null,null,null,null,null,null,null,null,null,null,null,null,null,null,null,null,null,"Standard lines"]
[null,null,null,null,null,null,null,null,null,null,null,null,null,null,null,null,null,null,null,null,null,null,null,null,null,null,null,null,null,null,null,null,null,null,null,null,null,null,null,"Days"]
[]
[]
[]
[null,null,null,null,null,null,null,null,null,null,null,null,null,null,null,null,null,null,null,null,null,null,null,null,null,null,null,null,null,null,null,null,null,null,null,null,null,null,null,"Please select"]
[null,null,null,null,null,null,null,null,null,null,null,null,null,null,null,null,null,null,null,null,null,null,null,null,null,null,null,null,null,null,null,null,null,null,null,null,null,null,null,"Expert (outward and homeward journeys)"]
[null,null,null,null,null,null,null,null,null,null,null,null,null,null,null,null,null,null,null,null,null,null,null,null,null,null,null,null,null,null,null,null,null,null,null,null,null,null,null,"Dependants (outward and homeward journeys) "]
[null,null,null,null,null,null,null,null,null,null,null,null,null,null,null,null,null,null,null,null,null,null,null,null,null,null,null,null,null,null,null,null,null,null,null,null,null,null,null,"Vacation flights"]
[null,null,null,null,null,null,null,null,null,null,null,null,null,null,null,null,null,null,null,null,null,null,null,null,null,null,null,null,null,null,null,null,null,null,null,null,null,null,null,"Regional and national flights"]
[null,null,null,null,null,null,null,null,null,null,null,null,null,null,null,null,null,null,null,null,null,null,null,null,null,null,null,null,null,null,null,null,null,null,null,null,null,null,null,"Other flights"]
[]
[null,null,null,null,null,null,null,null,null,null,null,null,null,null,null,null,null,null,null,null,null,null,null,null,null,null,null,null,null,null,null,null,null,null,null,null,null,null,null,"Please select"]
[null,null,null,null,null,null,null,null,null,null,null,null,null,null,null,null,null,null,null,null,null,null,null,null,null,null,null,null,null,null,null,null,null,null,null,null,null,null,null,"Lump sum"]
[null,null,null,null,null,null,null,null,null,null,null,null,null,null,null,null,null,null,null,null,null,null,null,null,null,null,null,null,null,null,null,null,null,null,null,null,null,null,null,"Against evidence"]
[]
[null,null,null,null,null,null,null,null,null,null,null,null,null,null,null,null,null,null,null,null,null,null,null,null,null,null,null,null,null,null,null,null,null,null,null,null,null,null,null,"Please select"]
[null,null,null,null,null,null,null,null,null,null,null,null,null,null,null,null,null,null,null,null,null,null,null,null,null,null,null,null,null,null,null,null,null,null,null,null,null,null,null,"International short-term expert"]
[null,null,null,null,null,null,null,null,null,null,null,null,null,null,null,null,null,null,null,null,null,null,null,null,null,null,null,null,null,null,null,null,null,null,null,null,null,null,null,"Regional short-term expert"]
[null,null,null,null,null,null,null,null,null,null,null,null,null,null,null,null,null,null,null,null,null,null,null,null,null,null,null,null,null,null,null,null,null,null,null,null,null,null,null,"National short-term expert"]
[null,null,null,null,null,null,null,null,null,null,null,null,null,null,null,null,null,null,null,null,null,null,null,null,null,null,null,null,null,null,null,null,null,null,null,null,null,null,null,"Other (please define)"]
[]
[]
[]
[]
[null,null,null,null,null,null,null,null,null,null,null,null,null,null,null,null,null,null,null,null,null,null,null,null,null,null,null,null,null,null,null,null,null,null,null,null,null,null,null,"Please select"]
[null,null,null,null,null,null,null,null,null,null,null,null,null,null,null,null,null,null,null,null,null,null,null,null,null,null,null,null,null,null,null,null,null,null,null,null,null,null,null,"Travel expenses outside the country"]
[null,null,null,null,null,null,null,null,null,null,null,null,null,null,null,null,null,null,null,null,null,null,null,null,null,null,null,null,null,null,null,null,null,null,null,null,null,null,null,"Travel expenses in the country"]

{"sheet":"Expert sheet (17)","index":17,"n_rows":134,"n_cols":40,"rows_kept":134,"cut":false,"hidden":true,"merged":[[43,17,43,18],[44,12,44,13],[44,14,44,16],[45,12,45,13],[45,14,45,16],[43,12,43,13],[43,14,43,16],[19,0,19,1],[23,6,23,9],[23,10,23,12],[28,1,29,2],[28,3,28,5],[29,11,29,14],[19,6,19,9],[19,10,19,12],[20,6,20,9],[20,10,20,12],[22,6,22,9],[22,10,22,12],[21,6,21,9],[21,10,21,12],[54,3,54,4],[56,11,56,14],[49,12,49,13],[49,14,49,16],[50,12,50,13],[50,14,50,16],[51,12,51,13],[51,14,51,16],[52,12,52,13],[52,14,52,16],[53,12,53,13],[53,14,53,16],[54,12,54,13],[54,14,54,16],[46,12,46,13],[46,14,46,16],[47,12,47,13],[47,14,47,16],[48,12,48,13],[48,14,48,16],[39,1,39,2],[39,11,39,14],[39,15,39,16],[40,11,40,14],[40,15,40,16],[40,3,40,4],[37,1,37,2],[37,11,37,14],[37,15,37,16],[38,1,38,2],[38,11,38,14],[38,15,38,16],[35,1,35,2],[35,11,35,14],[35,15,35,16],[36,1,36,2],[36,11,36,14],[36,15,36,16],[33,1,33,2],[33,11,33,14],[33,15,33,16],[34,1,34,2],[34,11,34,14],[34,15,34,16],[31,1,31,2],[31,11,31,14],[31,15,31,16],[32,1,32,2],[32,11,32,14],[32,15,32,16],[29,15,29,16],[30,1,30,2],[30,11,30,14],[30,15,30,16],[24,6,24,9],[24,10,24,12],[13,11,13,12],[14,11,14,12],[16,20,16,21],[18,6,18,9],[18,10,18,12],[8,2,8,4],[9,2,9,4],[6,2,6,4],[6,11,7,12],[6,13,7,13],[7,2,7,4],[1,3,1,4],[1,7,1,9],[2,1,2,2],[2,3,2,4],[5,6,5,13]]}
["Statement on personnel deployment"]
[null,"Contract number:",null,"Processing no./Cost centre:",null,null,null,"Accounting period:"]
[null,{"$f":"'Invoice overview'!A28","v":0},null,{"$f":"'Invoice overview'!$C$28","v":0},null,null,null,null,null,{"$f":"_xlfn.TEXTJOIN(\"   \",FALSE,IF('Invoice overview'!$G$28 > 0, TEXT('Invoice overview'!$G$28,\"TT.MM.JJJJ\"),\"\"),\"until\",IF('Invoice overview'!$I$28 > 0,TEXT('Invoice overview'!$I$28,\"TT.MM.JJJJ\"),\"\"))","v":"   until   "}]
[]
[]
["Personal data"]
["Family name, given name:"]
["Function:",null,"Please select"]
["Description of function:"]
["Expert no. per price schedule"]
[]
[]
[]
[]
[]
[]
[]
[]
["Personnel costs",null,null,null,null,null,"Remarks",null,null,null,"Reserved for GIZ"]
["Remuneration item",null,"Accounting unit ","Rate","Quantity","Amount"]
["Fee (No. 5.4 General Conditions)",null,"Please select",null,null,{"$f":"SUM(E21*D21)","v":0}]
["Fee (No. 5.4 General Conditions)",null,"Please select",null,null,{"$f":"SUM(E22*D22)","v":0}]
[null,null,null,"Daily rate\nacc. to contract","Days"]
["Per diem (No. 5.6. General Conditions)",null,null,null,null,{"$f":"SUM(E24*D24)","v":0}]
["Accommodation (No. 5.7 General Conditions)",null,null,null,null,{"$f":"SUM(E25*D25)","v":0}]
[]
["Travel expenses"]
["Air travel (No. 5.8 General Conditions)"]
[null,"Type of flight",null,"Travel dates"]
["No.",null,null,"Destination","Start\n (dd/mm/yy)","End \n(dd/mm/yy)","Reimbursement type\n\nacc. to contract","Amount\n (per voucher or lump sum)","Currency","Exchange rate*","Amount ","Remarks",null,null,null,"Reserved for GIZ"]
[1,"Please select",null,null,null,null,"Please select",null,null,null,{"$f":"H31*J31","v":0}]
[2,null,null,null,null,null,null,null,null,null,{"$f":"H32*J32","v":0}]
[3,null,null,null,null,null,null,null,null,null,0]
[4,null,null,null,null,null,null,null,null,null,0]
[5,null,null,null,null,null,null,null,null,null,0]
[6,null,null,null,null,null,null,null,null,null,0]
[7,null,null,null,null,null,null,null,null,null,0]
[8,null,null,null,null,null,null,null,null,null,0]
[9,null,null,null,null,null,null,null,null,null,0]
[10,null,null,null,null,null,null,null,null,null,0]
["TOTAL",null,null,null,null,null,null,null,null,{"$f":"'Invoice overview'!F32","v":"EUR"},{"$f":"SUM(K31:K40)","v":0}]
[]
["Other travel expenses (No. 5.9 General Conditions)"]
["No.","Country of travel","Nature of travel expenses","Start\n(dd/mm/yy)","End \n(dd/mm/yy)","Reason for travel","Reimbursement type\nacc. to contract","Amount\n (per voucher or lump sum)","Quantity"," ","Currency","Exchange rate*","Amount ",null,"Remarks",null,null,"Reserved for GIZ"]
[1,null,"Please select",null,null,null,"Please select",null,null,null,null,null,{"$f":"IF(G45=\"Against evidence\",H45*L45,IF(G45=\"Lump sum\",H45*I45*L45,\"0,00\"))","v":"0,00"}]
[2,null,null,null,null,null,null,null,null,null,null,null,{"$f":"IF(G46=\"Against evidence\",H46*L46,IF(G46=\"Lump sum\",H46*I46*L46,\"0,00\"))","v":"0,00"}]
[3,null,null,null,null,null,null,null,null,null,null,null,"0,00"]
[4,null,null,null,null,null,null,null,null,null,null,null,"0,00"]
[5,null,null,null,null,null,null,null,null,null,null,null,"0,00"]
[6,null,null,null,null,null,null,null,null,null,null,null,"0,00"]
[7,null,null,null,null,null,null,null,null,null,null,null,"0,00"]
[8,null,null,null,null,null,null,null,null,null,null,null,"0,00"]
[9,null,null,null,null,null,null,null,null,null,null,null,"0,00"]
[10,null,null,null,null,null,null,null,null,null,null,null,"0,00"]
["TOTAL",null,null,null,null,null,null,null,null,null,null,{"$f":"'Invoice overview'!F32","v":"EUR"},{"$f":"SUM(M45:N54)","v":0}]
[]
[null,null,null,null,null,null,null,null,null,null,null,"Total for expert/contractor",null,null,null,{"$f":"SUM(M55,K41,F25,F24,F21,F22,)","v":0}]
[]
[]
[]
[]
[]
[]
[]
[]
[]
[]
[]
[]
[]
[]
[]
[]
[]
[]
[]
[]
[]
[]
[]
[]
[]
[]
[]
[]
[]
[]
[]
[]
[]
[]
[]
[]
[]
[]
[]
[]
[]
[]
[null,null,null,null,null,null,null,null,null,null,null,null,null,null,null,null,null,null,null,null,null,null,null,null,null,null,null,null,null,null,null,null,null,null,null,null,null,null,null,"Please select"]
[null,null,null,null,null,null,null,null,null,null,null,null,null,null,null,null,null,null,null,null,null,null,null,null,null,null,null,null,null,null,null,null,null,null,null,null,null,null,null,"Outward and homeward journeys"]
[null,null,null,null,null,null,null,null,null,null,null,null,null,null,null,null,null,null,null,null,null,null,null,null,null,null,null,null,null,null,null,null,null,null,null,null,null,null,null,"Regional and national flights"]
[null,null,null,null,null,null,null,null,null,null,null,null,null,null,null,null,null,null,null,null,null,null,null,null,null,null,null,null,null,null,null,null,null,null,null,null,null,null,null,"Other flights"]
[]
[null,null,null,null,null,null,null,null,null,null,null,null,null,null,null,null,null,null,null,null,null,null,null,null,null,null,null,null,null,null,null,null,null,null,null,null,null,null,null,"Please select"]
[null,null,null,null,null,null,null,null,null,null,null,null,null,null,null,null,null,null,null,null,null,null,null,null,null,null,null,null,null,null,null,null,null,null,null,null,null,null,null,"Hours"]
[null,null,null,null,null,null,null,null,null,null,null,null,null,null,null,null,null,null,null,null,null,null,null,null,null,null,null,null,null,null,null,null,null,null,null,null,null,null,null,"Standard lines"]
[null,null,null,null,null,null,null,null,null,null,null,null,null,null,null,null,null,null,null,null,null,null,null,null,null,null,null,null,null,null,null,null,null,null,null,null,null,null,null,"Days"]
[]
[]
[]
[null,null,null,null,null,null,null,null,null,null,null,null,null,null,null,null,null,null,null,null,null,null,null,null,null,null,null,null,null,null,null,null,null,null,null,null,null,null,null,"Please select"]
[null,null,null,null,null,null,null,null,null,null,null,null,null,null,null,null,null,null,null,null,null,null,null,null,null,null,null,null,null,null,null,null,null,null,null,null,null,null,null,"Expert (outward and homeward journeys)"]
[null,null,null,null,null,null,null,null,null,null,null,null,null,null,null,null,null,null,null,null,null,null,null,null,null,null,null,null,null,null,null,null,null,null,null,null,null,null,null,"Dependants (outward and homeward journeys) "]
[null,null,null,null,null,null,null,null,null,null,null,null,null,null,null,null,null,null,null,null,null,null,null,null,null,null,null,null,null,null,null,null,null,null,null,null,null,null,null,"Vacation flights"]
[null,null,null,null,null,null,null,null,null,null,null,null,null,null,null,null,null,null,null,null,null,null,null,null,null,null,null,null,null,null,null,null,null,null,null,null,null,null,null,"Regional and national flights"]
[null,null,null,null,null,null,null,null,null,null,null,null,null,null,null,null,null,null,null,null,null,null,null,null,null,null,null,null,null,null,null,null,null,null,null,null,null,null,null,"Other flights"]
[]
[null,null,null,null,null,null,null,null,null,null,null,null,null,null,null,null,null,null,null,null,null,null,null,null,null,null,null,null,null,null,null,null,null,null,null,null,null,null,null,"Please select"]
[null,null,null,null,null,null,null,null,null,null,null,null,null,null,null,null,null,null,null,null,null,null,null,null,null,null,null,null,null,null,null,null,null,null,null,null,null,null,null,"Lump sum"]
[null,null,null,null,null,null,null,null,null,null,null,null,null,null,null,null,null,null,null,null,null,null,null,null,null,null,null,null,null,null,null,null,null,null,null,null,null,null,null,"Against evidence"]
[]
[null,null,null,null,null,null,null,null,null,null,null,null,null,null,null,null,null,null,null,null,null,null,null,null,null,null,null,null,null,null,null,null,null,null,null,null,null,null,null,"Please select"]
[null,null,null,null,null,null,null,null,null,null,null,null,null,null,null,null,null,null,null,null,null,null,null,null,null,null,null,null,null,null,null,null,null,null,null,null,null,null,null,"International short-term expert"]
[null,null,null,null,null,null,null,null,null,null,null,null,null,null,null,null,null,null,null,null,null,null,null,null,null,null,null,null,null,null,null,null,null,null,null,null,null,null,null,"Regional short-term expert"]
[null,null,null,null,null,null,null,null,null,null,null,null,null,null,null,null,null,null,null,null,null,null,null,null,null,null,null,null,null,null,null,null,null,null,null,null,null,null,null,"National short-term expert"]
[null,null,null,null,null,null,null,null,null,null,null,null,null,null,null,null,null,null,null,null,null,null,null,null,null,null,null,null,null,null,null,null,null,null,null,null,null,null,null,"Other (please define)"]
[]
[]
[]
[]
[null,null,null,null,null,null,null,null,null,null,null,null,null,null,null,null,null,null,null,null,null,null,null,null,null,null,null,null,null,null,null,null,null,null,null,null,null,null,null,"Please select"]
[null,null,null,null,null,null,null,null,null,null,null,null,null,null,null,null,null,null,null,null,null,null,null,null,null,null,null,null,null,null,null,null,null,null,null,null,null,null,null,"Travel expenses outside the country"]
[null,null,null,null,null,null,null,null,null,null,null,null,null,null,null,null,null,null,null,null,null,null,null,null,null,null,null,null,null,null,null,null,null,null,null,null,null,null,null,"Travel expenses in the country"]

{"sheet":"Expert sheet (18)","index":18,"n_rows":134,"n_cols":40,"rows_kept":134,"cut":false,"hidden":true,"merged":[[43,17,43,18],[44,12,44,13],[44,14,44,16],[45,12,45,13],[45,14,45,16],[43,12,43,13],[43,14,43,16],[19,0,19,1],[23,6,23,9],[23,10,23,12],[28,1,29,2],[28,3,28,5],[29,11,29,14],[19,6,19,9],[19,10,19,12],[20,6,20,9],[20,10,20,12],[22,6,22,9],[22,10,22,12],[21,6,21,9],[21,10,21,12],[54,3,54,4],[56,11,56,14],[49,12,49,13],[49,14,49,16],[50,12,50,13],[50,14,50,16],[51,12,51,13],[51,14,51,16],[52,12,52,13],[52,14,52,16],[53,12,53,13],[53,14,53,16],[54,12,54,13],[54,14,54,16],[46,12,46,13],[46,14,46,16],[47,12,47,13],[47,14,47,16],[48,12,48,13],[48,14,48,16],[39,1,39,2],[39,11,39,14],[39,15,39,16],[40,11,40,14],[40,15,40,16],[40,3,40,4],[37,1,37,2],[37,11,37,14],[37,15,37,16],[38,1,38,2],[38,11,38,14],[38,15,38,16],[35,1,35,2],[35,11,35,14],[35,15,35,16],[36,1,36,2],[36,11,36,14],[36,15,36,16],[33,1,33,2],[33,11,33,14],[33,15,33,16],[34,1,34,2],[34,11,34,14],[34,15,34,16],[31,1,31,2],[31,11,31,14],[31,15,31,16],[32,1,32,2],[32,11,32,14],[32,15,32,16],[29,15,29,16],[30,1,30,2],[30,11,30,14],[30,15,30,16],[24,6,24,9],[24,10,24,12],[13,11,13,12],[14,11,14,12],[16,20,16,21],[18,6,18,9],[18,10,18,12],[8,2,8,4],[9,2,9,4],[6,2,6,4],[6,11,7,12],[6,13,7,13],[7,2,7,4],[1,3,1,4],[1,7,1,9],[2,1,2,2],[2,3,2,4],[5,6,5,13]]}
["Statement on personnel deployment"]
[null,"Contract number:",null,"Processing no./Cost centre:",null,null,null,"Accounting period:"]
[null,{"$f":"'Invoice overview'!A28","v":0},null,{"$f":"'Invoice overview'!$C$28","v":0},null,null,null,null,null,{"$f":"_xlfn.TEXTJOIN(\"   \",FALSE,IF('Invoice overview'!$G$28 > 0, TEXT('Invoice overview'!$G$28,\"TT.MM.JJJJ\"),\"\"),\"until\",IF('Invoice overview'!$I$28 > 0,TEXT('Invoice overview'!$I$28,\"TT.MM.JJJJ\"),\"\"))","v":"   until   "}]
[]
[]
["Personal data"]
["Family name, given name:"]
["Function:",null,"Please select"]
["Description of function:"]
["Expert no. per price schedule"]
[]
[]
[]
[]
[]
[]
[]
[]
["Personnel costs",null,null,null,null,null,"Remarks",null,null,null,"Reserved for GIZ"]
["Remuneration item",null,"Accounting unit ","Rate","Quantity","Amount"]
["Fee (No. 5.4 General Conditions)",null,"Please select",null,null,{"$f":"SUM(E21*D21)","v":0}]
["Fee (No. 5.4 General Conditions)",null,"Please select",null,null,{"$f":"SUM(E22*D22)","v":0}]
[null,null,null,"Daily rate\nacc. to contract","Days"]
["Per diem (No. 5.6. General Conditions)",null,null,null,null,{"$f":"SUM(E24*D24)","v":0}]
["Accommodation (No. 5.7 General Conditions)",null,null,null,null,{"$f":"SUM(E25*D25)","v":0}]
[]
["Travel expenses"]
["Air travel (No. 5.8 General Conditions)"]
[null,"Type of flight",null,"Travel dates"]
["No.",null,null,"Destination","Start\n (dd/mm/yy)","End \n(dd/mm/yy)","Reimbursement type\n\nacc. to contract","Amount\n (per voucher or lump sum)","Currency","Exchange rate*","Amount ","Remarks",null,null,null,"Reserved for GIZ"]
[1,"Please select",null,null,null,null,"Please select",null,null,null,{"$f":"H31*J31","v":0}]
[2,null,null,null,null,null,null,null,null,null,{"$f":"H32*J32","v":0}]
[3,null,null,null,null,null,null,null,null,null,0]
[4,null,null,null,null,null,null,null,null,null,0]
[5,null,null,null,null,null,null,null,null,null,0]
[6,null,null,null,null,null,null,null,null,null,0]
[7,null,null,null,null,null,null,null,null,null,0]
[8,null,null,null,null,null,null,null,null,null,0]
[9,null,null,null,null,null,null,null,null,null,0]
[10,null,null,null,null,null,null,null,null,null,0]
["TOTAL",null,null,null,null,null,null,null,null,{"$f":"'Invoice overview'!F32","v":"EUR"},{"$f":"SUM(K31:K40)","v":0}]
[]
["Other travel expenses (No. 5.9 General Conditions)"]
["No.","Country of travel","Nature of travel expenses","Start\n(dd/mm/yy)","End \n(dd/mm/yy)","Reason for travel","Reimbursement type\nacc. to contract","Amount\n (per voucher or lump sum)","Quantity"," ","Currency","Exchange rate*","Amount ",null,"Remarks",null,null,"Reserved for GIZ"]
[1,null,"Please select",null,null,null,"Please select",null,null,null,null,null,{"$f":"IF(G45=\"Against evidence\",H45*L45,IF(G45=\"Lump sum\",H45*I45*L45,\"0,00\"))","v":"0,00"}]
[2,null,null,null,null,null,null,null,null,null,null,null,{"$f":"IF(G46=\"Against evidence\",H46*L46,IF(G46=\"Lump sum\",H46*I46*L46,\"0,00\"))","v":"0,00"}]
[3,null,null,null,null,null,null,null,null,null,null,null,"0,00"]
[4,null,null,null,null,null,null,null,null,null,null,null,"0,00"]
[5,null,null,null,null,null,null,null,null,null,null,null,"0,00"]
[6,null,null,null,null,null,null,null,null,null,null,null,"0,00"]
[7,null,null,null,null,null,null,null,null,null,null,null,"0,00"]
[8,null,null,null,null,null,null,null,null,null,null,null,"0,00"]
[9,null,null,null,null,null,null,null,null,null,null,null,"0,00"]
[10,null,null,null,null,null,null,null,null,null,null,null,"0,00"]
["TOTAL",null,null,null,null,null,null,null,null,null,null,{"$f":"'Invoice overview'!F32","v":"EUR"},{"$f":"SUM(M45:N54)","v":0}]
[]
[null,null,null,null,null,null,null,null,null,null,null,"Total for expert/contractor",null,null,null,{"$f":"SUM(M55,K41,F25,F24,F21,F22,)","v":0}]
[]
[]
[]
[]
[]
[]
[]
[]
[]
[]
[]
[]
[]
[]
[]
[]
[]
[]
[]
[]
[]
[]
[]
[]
[]
[]
[]
[]
[]
[]
[]
[]
[]
[]
[]
[]
[]
[]
[]
[]
[]
[]
[null,null,null,null,null,null,null,null,null,null,null,null,null,null,null,null,null,null,null,null,null,null,null,null,null,null,null,null,null,null,null,null,null,null,null,null,null,null,null,"Please select"]
[null,null,null,null,null,null,null,null,null,null,null,null,null,null,null,null,null,null,null,null,null,null,null,null,null,null,null,null,null,null,null,null,null,null,null,null,null,null,null,"Outward and homeward journeys"]
[null,null,null,null,null,null,null,null,null,null,null,null,null,null,null,null,null,null,null,null,null,null,null,null,null,null,null,null,null,null,null,null,null,null,null,null,null,null,null,"Regional and national flights"]
[null,null,null,null,null,null,null,null,null,null,null,null,null,null,null,null,null,null,null,null,null,null,null,null,null,null,null,null,null,null,null,null,null,null,null,null,null,null,null,"Other flights"]
[]
[null,null,null,null,null,null,null,null,null,null,null,null,null,null,null,null,null,null,null,null,null,null,null,null,null,null,null,null,null,null,null,null,null,null,null,null,null,null,null,"Please select"]
[null,null,null,null,null,null,null,null,null,null,null,null,null,null,null,null,null,null,null,null,null,null,null,null,null,null,null,null,null,null,null,null,null,null,null,null,null,null,null,"Hours"]
[null,null,null,null,null,null,null,null,null,null,null,null,null,null,null,null,null,null,null,null,null,null,null,null,null,null,null,null,null,null,null,null,null,null,null,null,null,null,null,"Standard lines"]
[null,null,null,null,null,null,null,null,null,null,null,null,null,null,null,null,null,null,null,null,null,null,null,null,null,null,null,null,null,null,null,null,null,null,null,null,null,null,null,"Days"]
[]
[]
[]
[null,null,null,null,null,null,null,null,null,null,null,null,null,null,null,null,null,null,null,null,null,null,null,null,null,null,null,null,null,null,null,null,null,null,null,null,null,null,null,"Please select"]
[null,null,null,null,null,null,null,null,null,null,null,null,null,null,null,null,null,null,null,null,null,null,null,null,null,null,null,null,null,null,null,null,null,null,null,null,null,null,null,"Expert (outward and homeward journeys)"]
[null,null,null,null,null,null,null,null,null,null,null,null,null,null,null,null,null,null,null,null,null,null,null,null,null,null,null,null,null,null,null,null,null,null,null,null,null,null,null,"Dependants (outward and homeward journeys) "]
[null,null,null,null,null,null,null,null,null,null,null,null,null,null,null,null,null,null,null,null,null,null,null,null,null,null,null,null,null,null,null,null,null,null,null,null,null,null,null,"Vacation flights"]
[null,null,null,null,null,null,null,null,null,null,null,null,null,null,null,null,null,null,null,null,null,null,null,null,null,null,null,null,null,null,null,null,null,null,null,null,null,null,null,"Regional and national flights"]
[null,null,null,null,null,null,null,null,null,null,null,null,null,null,null,null,null,null,null,null,null,null,null,null,null,null,null,null,null,null,null,null,null,null,null,null,null,null,null,"Other flights"]
[]
[null,null,null,null,null,null,null,null,null,null,null,null,null,null,null,null,null,null,null,null,null,null,null,null,null,null,null,null,null,null,null,null,null,null,null,null,null,null,null,"Please select"]
[null,null,null,null,null,null,null,null,null,null,null,null,null,null,null,null,null,null,null,null,null,null,null,null,null,null,null,null,null,null,null,null,null,null,null,null,null,null,null,"Lump sum"]
[null,null,null,null,null,null,null,null,null,null,null,null,null,null,null,null,null,null,null,null,null,null,null,null,null,null,null,null,null,null,null,null,null,null,null,null,null,null,null,"Against evidence"]
[]
[null,null,null,null,null,null,null,null,null,null,null,null,null,null,null,null,null,null,null,null,null,null,null,null,null,null,null,null,null,null,null,null,null,null,null,null,null,null,null,"Please select"]
[null,null,null,null,null,null,null,null,null,null,null,null,null,null,null,null,null,null,null,null,null,null,null,null,null,null,null,null,null,null,null,null,null,null,null,null,null,null,null,"International short-term expert"]
[null,null,null,null,null,null,null,null,null,null,null,null,null,null,null,null,null,null,null,null,null,null,null,null,null,null,null,null,null,null,null,null,null,null,null,null,null,null,null,"Regional short-term expert"]
[null,null,null,null,null,null,null,null,null,null,null,null,null,null,null,null,null,null,null,null,null,null,null,null,null,null,null,null,null,null,null,null,null,null,null,null,null,null,null,"National short-term expert"]
[null,null,null,null,null,null,null,null,null,null,null,null,null,null,null,null,null,null,null,null,null,null,null,null,null,null,null,null,null,null,null,null,null,null,null,null,null,null,null,"Other (please define)"]
[]
[]
[]
[]
[null,null,null,null,null,null,null,null,null,null,null,null,null,null,null,null,null,null,null,null,null,null,null,null,null,null,null,null,null,null,null,null,null,null,null,null,null,null,null,"Please select"]
[null,null,null,null,null,null,null,null,null,null,null,null,null,null,null,null,null,null,null,null,null,null,null,null,null,null,null,null,null,null,null,null,null,null,null,null,null,null,null,"Travel expenses outside the country"]
[null,null,null,null,null,null,null,null,null,null,null,null,null,null,null,null,null,null,null,null,null,null,null,null,null,null,null,null,null,null,null,null,null,null,null,null,null,null,null,"Travel expenses in the country"]

{"sheet":"Expert sheet (19)","index":19,"n_rows":134,"n_cols":40,"rows_kept":134,"cut":false,"hidden":true,"merged":[[43,17,43,18],[44,12,44,13],[44,14,44,16],[45,12,45,13],[45,14,45,16],[43,12,43,13],[43,14,43,16],[19,0,19,1],[23,6,23,9],[23,10,23,12],[28,1,29,2],[28,3,28,5],[29,11,29,14],[19,6,19,9],[19,10,19,12],[20,6,20,9],[20,10,20,12],[22,6,22,9],[22,10,22,12],[21,6,21,9],[21,10,21,12],[54,3,54,4],[56,11,56,14],[49,12,49,13],[49,14,49,16],[50,12,50,13],[50,14,50,16],[51,12,51,13],[51,14,51,16],[52,12,52,13],[52,14,52,16],[53,12,53,13],[53,14,53,16],[54,12,54,13],[54,14,54,16],[46,12,46,13],[46,14,46,16],[47,12,47,13],[47,14,47,16],[48,12,48,13],[48,14,48,16],[39,1,39,2],[39,11,39,14],[39,15,39,16],[40,11,40,14],[40,15,40,16],[40,3,40,4],[37,1,37,2],[37,11,37,14],[37,15,37,16],[38,1,38,2],[38,11,38,14],[38,15,38,16],[35,1,35,2],[35,11,35,14],[35,15,35,16],[36,1,36,2],[36,11,36,14],[36,15,36,16],[33,1,33,2],[33,11,33,14],[33,15,33,16],[34,1,34,2],[34,11,34,14],[34,15,34,16],[31,1,31,2],[31,11,31,14],[31,15,31,16],[32,1,32,2],[32,11,32,14],[32,15,32,16],[29,15,29,16],[30,1,30,2],[30,11,30,14],[30,15,30,16],[24,6,24,9],[24,10,24,12],[13,11,13,12],[14,11,14,12],[16,20,16,21],[18,6,18,9],[18,10,18,12],[8,2,8,4],[9,2,9,4],[6,2,6,4],[6,11,7,12],[6,13,7,13],[7,2,7,4],[1,3,1,4],[1,7,1,9],[2,1,2,2],[2,3,2,4],[5,6,5,13]]}
["Statement on personnel deployment"]
[null,"Contract number:",null,"Processing no./Cost centre:",null,null,null,"Accounting period:"]
[null,{"$f":"'Invoice overview'!A28","v":0},null,{"$f":"'Invoice overview'!$C$28","v":0},null,null,null,null,null,{"$f":"_xlfn.TEXTJOIN(\"   \",FALSE,IF('Invoice overview'!$G$28 > 0, TEXT('Invoice overview'!$G$28,\"TT.MM.JJJJ\"),\"\"),\"until\",IF('Invoice overview'!$I$28 > 0,TEXT('Invoice overview'!$I$28,\"TT.MM.JJJJ\"),\"\"))","v":"   until   "}]
[]
[]
["Personal data"]
["Family name, given name:"]
["Function:",null,"Please select"]
["Description of function:"]
["Expert no. per price schedule"]
[]
[]
[]
[]
[]
[]
[]
[]
["Personnel costs",null,null,null,null,null,"Remarks",null,null,null,"Reserved for GIZ"]
["Remuneration item",null,"Accounting unit ","Rate","Quantity","Amount"]
["Fee (No. 5.4 General Conditions)",null,"Please select",null,null,{"$f":"SUM(E21*D21)","v":0}]
["Fee (No. 5.4 General Conditions)",null,"Please select",null,null,{"$f":"SUM(E22*D22)","v":0}]
[null,null,null,"Daily rate\nacc. to contract","Days"]
["Per diem (No. 5.6. General Conditions)",null,null,null,null,{"$f":"SUM(E24*D24)","v":0}]
["Accommodation (No. 5.7 General Conditions)",null,null,null,null,{"$f":"SUM(E25*D25)","v":0}]
[]
["Travel expenses"]
["Air travel (No. 5.8 General Conditions)"]
[null,"Type of flight",null,"Travel dates"]
["No.",null,null,"Destination","Start\n (dd/mm/yy)","End \n(dd/mm/yy)","Reimbursement type\n\nacc. to contract","Amount\n (per voucher or lump sum)","Currency","Exchange rate*","Amount ","Remarks",null,null,null,"Reserved for GIZ"]
[1,"Please select",null,null,null,null,"Please select",null,null,null,{"$f":"H31*J31","v":0}]
[2,null,null,null,null,null,null,null,null,null,{"$f":"H32*J32","v":0}]
[3,null,null,null,null,null,null,null,null,null,0]
[4,null,null,null,null,null,null,null,null,null,0]
[5,null,null,null,null,null,null,null,null,null,0]
[6,null,null,null,null,null,null,null,null,null,0]
[7,null,null,null,null,null,null,null,null,null,0]
[8,null,null,null,null,null,null,null,null,null,0]
[9,null,null,null,null,null,null,null,null,null,0]
[10,null,null,null,null,null,null,null,null,null,0]
["TOTAL",null,null,null,null,null,null,null,null,{"$f":"'Invoice overview'!F32","v":"EUR"},{"$f":"SUM(K31:K40)","v":0}]
[]
["Other travel expenses (No. 5.9 General Conditions)"]
["No.","Country of travel","Nature of travel expenses","Start\n(dd/mm/yy)","End \n(dd/mm/yy)","Reason for travel","Reimbursement type\nacc. to contract","Amount\n (per voucher or lump sum)","Quantity"," ","Currency","Exchange rate*","Amount ",null,"Remarks",null,null,"Reserved for GIZ"]
[1,null,"Please select",null,null,null,"Please select",null,null,null,null,null,{"$f":"IF(G45=\"Against evidence\",H45*L45,IF(G45=\"Lump sum\",H45*I45*L45,\"0,00\"))","v":"0,00"}]
[2,null,null,null,null,null,null,null,null,null,null,null,{"$f":"IF(G46=\"Against evidence\",H46*L46,IF(G46=\"Lump sum\",H46*I46*L46,\"0,00\"))","v":"0,00"}]
[3,null,null,null,null,null,null,null,null,null,null,null,"0,00"]
[4,null,null,null,null,null,null,null,null,null,null,null,"0,00"]
[5,null,null,null,null,null,null,null,null,null,null,null,"0,00"]
[6,null,null,null,null,null,null,null,null,null,null,null,"0,00"]
[7,null,null,null,null,null,null,null,null,null,null,null,"0,00"]
[8,null,null,null,null,null,null,null,null,null,null,null,"0,00"]
[9,null,null,null,null,null,null,null,null,null,null,null,"0,00"]
[10,null,null,null,null,null,null,null,null,null,null,null,"0,00"]
["TOTAL",null,null,null,null,null,null,null,null,null,null,{"$f":"'Invoice overview'!F32","v":"EUR"},{"$f":"SUM(M45:N54)","v":0}]
[]
[null,null,null,null,null,null,null,null,null,null,null,"Total for expert/contractor",null,null,null,{"$f":"SUM(M55,K41,F25,F24,F21,F22,)","v":0}]
[]
[]
[]
[]
[]
[]
[]
[]
[]
[]
[]
[]
[]
[]
[]
[]
[]
[]
[]
[]
[]
[]
[]
[]
[]
[]
[]
[]
[]
[]
[]
[]
[]
[]
[]
[]
[]
[]
[]
[]
[]
[]
[null,null,null,null,null,null,null,null,null,null,null,null,null,null,null,null,null,null,null,null,null,null,null,null,null,null,null,null,null,null,null,null,null,null,null,null,null,null,null,"Please select"]
[null,null,null,null,null,null,null,null,null,null,null,null,null,null,null,null,null,null,null,null,null,null,null,null,null,null,null,null,null,null,null,null,null,null,null,null,null,null,null,"Outward and homeward journeys"]
[null,null,null,null,null,null,null,null,null,null,null,null,null,null,null,null,null,null,null,null,null,null,null,null,null,null,null,null,null,null,null,null,null,null,null,null,null,null,null,"Regional and national flights"]
[null,null,null,null,null,null,null,null,null,null,null,null,null,null,null,null,null,null,null,null,null,null,null,null,null,null,null,null,null,null,null,null,null,null,null,null,null,null,null,"Other flights"]
[]
[null,null,null,null,null,null,null,null,null,null,null,null,null,null,null,null,null,null,null,null,null,null,null,null,null,null,null,null,null,null,null,null,null,null,null,null,null,null,null,"Please select"]
[null,null,null,null,null,null,null,null,null,null,null,null,null,null,null,null,null,null,null,null,null,null,null,null,null,null,null,null,null,null,null,null,null,null,null,null,null,null,null,"Hours"]
[null,null,null,null,null,null,null,null,null,null,null,null,null,null,null,null,null,null,null,null,null,null,null,null,null,null,null,null,null,null,null,null,null,null,null,null,null,null,null,"Standard lines"]
[null,null,null,null,null,null,null,null,null,null,null,null,null,null,null,null,null,null,null,null,null,null,null,null,null,null,null,null,null,null,null,null,null,null,null,null,null,null,null,"Days"]
[]
[]
[]
[null,null,null,null,null,null,null,null,null,null,null,null,null,null,null,null,null,null,null,null,null,null,null,null,null,null,null,null,null,null,null,null,null,null,null,null,null,null,null,"Please select"]
[null,null,null,null,null,null,null,null,null,null,null,null,null,null,null,null,null,null,null,null,null,null,null,null,null,null,null,null,null,null,null,null,null,null,null,null,null,null,null,"Expert (outward and homeward journeys)"]
[null,null,null,null,null,null,null,null,null,null,null,null,null,null,null,null,null,null,null,null,null,null,null,null,null,null,null,null,null,null,null,null,null,null,null,null,null,null,null,"Dependants (outward and homeward journeys) "]
[null,null,null,null,null,null,null,null,null,null,null,null,null,null,null,null,null,null,null,null,null,null,null,null,null,null,null,null,null,null,null,null,null,null,null,null,null,null,null,"Vacation flights"]
[null,null,null,null,null,null,null,null,null,null,null,null,null,null,null,null,null,null,null,null,null,null,null,null,null,null,null,null,null,null,null,null,null,null,null,null,null,null,null,"Regional and national flights"]
[null,null,null,null,null,null,null,null,null,null,null,null,null,null,null,null,null,null,null,null,null,null,null,null,null,null,null,null,null,null,null,null,null,null,null,null,null,null,null,"Other flights"]
[]
[null,null,null,null,null,null,null,null,null,null,null,null,null,null,null,null,null,null,null,null,null,null,null,null,null,null,null,null,null,null,null,null,null,null,null,null,null,null,null,"Please select"]
[null,null,null,null,null,null,null,null,null,null,null,null,null,null,null,null,null,null,null,null,null,null,null,null,null,null,null,null,null,null,null,null,null,null,null,null,null,null,null,"Lump sum"]
[null,null,null,null,null,null,null,null,null,null,null,null,null,null,null,null,null,null,null,null,null,null,null,null,null,null,null,null,null,null,null,null,null,null,null,null,null,null,null,"Against evidence"]
[]
[null,null,null,null,null,null,null,null,null,null,null,null,null,null,null,null,null,null,null,null,null,null,null,null,null,null,null,null,null,null,null,null,null,null,null,null,null,null,null,"Please select"]
[null,null,null,null,null,null,null,null,null,null,null,null,null,null,null,null,null,null,null,null,null,null,null,null,null,null,null,null,null,null,null,null,null,null,null,null,null,null,null,"International short-term expert"]
[null,null,null,null,null,null,null,null,null,null,null,null,null,null,null,null,null,null,null,null,null,null,null,null,null,null,null,null,null,null,null,null,null,null,null,null,null,null,null,"Regional short-term expert"]
[null,null,null,null,null,null,null,null,null,null,null,null,null,null,null,null,null,null,null,null,null,null,null,null,null,null,null,null,null,null,null,null,null,null,null,null,null,null,null,"National short-term expert"]
[null,null,null,null,null,null,null,null,null,null,null,null,null,null,null,null,null,null,null,null,null,null,null,null,null,null,null,null,null,null,null,null,null,null,null,null,null,null,null,"Other (please define)"]
[]
[]
[]
[]
[null,null,null,null,null,null,null,null,null,null,null,null,null,null,null,null,null,null,null,null,null,null,null,null,null,null,null,null,null,null,null,null,null,null,null,null,null,null,null,"Please select"]
[null,null,null,null,null,null,null,null,null,null,null,null,null,null,null,null,null,null,null,null,null,null,null,null,null,null,null,null,null,null,null,null,null,null,null,null,null,null,null,"Travel expenses outside the country"]
[null,null,null,null,null,null,null,null,null,null,null,null,null,null,null,null,null,null,null,null,null,null,null,null,null,null,null,null,null,null,null,null,null,null,null,null,null,null,null,"Travel expenses in the country"]

{"sheet":"Expert sheet (20)","index":20,"n_rows":134,"n_cols":40,"rows_kept":134,"cut":false,"hidden":true,"merged":[[43,17,43,18],[44,12,44,13],[44,14,44,16],[45,12,45,13],[45,14,45,16],[43,12,43,13],[43,14,43,16],[19,0,19,1],[23,6,23,9],[23,10,23,12],[28,1,29,2],[28,3,28,5],[29,11,29,14],[19,6,19,9],[19,10,19,12],[20,6,20,9],[20,10,20,12],[22,6,22,9],[22,10,22,12],[21,6,21,9],[21,10,21,12],[54,3,54,4],[56,11,56,14],[49,12,49,13],[49,14,49,16],[50,12,50,13],[50,14,50,16],[51,12,51,13],[51,14,51,16],[52,12,52,13],[52,14,52,16],[53,12,53,13],[53,14,53,16],[54,12,54,13],[54,14,54,16],[46,12,46,13],[46,14,46,16],[47,12,47,13],[47,14,47,16],[48,12,48,13],[48,14,48,16],[39,1,39,2],[39,11,39,14],[39,15,39,16],[40,11,40,14],[40,15,40,16],[40,3,40,4],[37,1,37,2],[37,11,37,14],[37,15,37,16],[38,1,38,2],[38,11,38,14],[38,15,38,16],[35,1,35,2],[35,11,35,14],[35,15,35,16],[36,1,36,2],[36,11,36,14],[36,15,36,16],[33,1,33,2],[33,11,33,14],[33,15,33,16],[34,1,34,2],[34,11,34,14],[34,15,34,16],[31,1,31,2],[31,11,31,14],[31,15,31,16],[32,1,32,2],[32,11,32,14],[32,15,32,16],[29,15,29,16],[30,1,30,2],[30,11,30,14],[30,15,30,16],[24,6,24,9],[24,10,24,12],[13,11,13,12],[14,11,14,12],[16,20,16,21],[18,6,18,9],[18,10,18,12],[8,2,8,4],[9,2,9,4],[6,2,6,4],[6,11,7,12],[6,13,7,13],[7,2,7,4],[1,3,1,4],[1,7,1,9],[2,1,2,2],[2,3,2,4],[5,6,5,13]]}
["Statement on personnel deployment"]
[null,"Contract number:",null,"Processing no./Cost centre:",null,null,null,"Accounting period:"]
[null,{"$f":"'Invoice overview'!A28","v":0},null,{"$f":"'Invoice overview'!$C$28","v":0},null,null,null,null,null,{"$f":"_xlfn.TEXTJOIN(\"   \",FALSE,IF('Invoice overview'!$G$28 > 0, TEXT('Invoice overview'!$G$28,\"TT.MM.JJJJ\"),\"\"),\"until\",IF('Invoice overview'!$I$28 > 0,TEXT('Invoice overview'!$I$28,\"TT.MM.JJJJ\"),\"\"))","v":"   until   "}]
[]
[]
["Personal data"]
["Family name, given name:"]
["Function:",null,"Please select"]
["Description of function:"]
["Expert no. per price schedule"]
[]
[]
[]
[]
[]
[]
[]
[]
["Personnel costs",null,null,null,null,null,"Remarks",null,null,null,"Reserved for GIZ"]
["Remuneration item",null,"Accounting unit ","Rate","Quantity","Amount"]
["Fee (No. 5.4 General Conditions)",null,"Please select",null,null,{"$f":"SUM(E21*D21)","v":0}]
["Fee (No. 5.4 General Conditions)",null,"Please select",null,null,{"$f":"SUM(E22*D22)","v":0}]
[null,null,null,"Daily rate\nacc. to contract","Days"]
["Per diem (No. 5.6. General Conditions)",null,null,null,null,{"$f":"SUM(E24*D24)","v":0}]
["Accommodation (No. 5.7 General Conditions)",null,null,null,null,{"$f":"SUM(E25*D25)","v":0}]
[]
["Travel expenses"]
["Air travel (No. 5.8 General Conditions)"]
[null,"Type of flight",null,"Travel dates"]
["No.",null,null,"Destination","Start\n (dd/mm/yy)","End \n(dd/mm/yy)","Reimbursement type\n\nacc. to contract","Amount\n (per voucher or lump sum)","Currency","Exchange rate*","Amount ","Remarks",null,null,null,"Reserved for GIZ"]
[1,"Please select",null,null,null,null,"Please select",null,null,null,{"$f":"H31*J31","v":0}]
[2,null,null,null,null,null,null,null,null,null,{"$f":"H32*J32","v":0}]
[3,null,null,null,null,null,null,null,null,null,0]
[4,null,null,null,null,null,null,null,null,null,0]
[5,null,null,null,null,null,null,null,null,null,0]
[6,null,null,null,null,null,null,null,null,null,0]
[7,null,null,null,null,null,null,null,null,null,0]
[8,null,null,null,null,null,null,null,null,null,0]
[9,null,null,null,null,null,null,null,null,null,0]
[10,null,null,null,null,null,null,null,null,null,0]
["TOTAL",null,null,null,null,null,null,null,null,{"$f":"'Invoice overview'!F32","v":"EUR"},{"$f":"SUM(K31:K40)","v":0}]
[]
["Other travel expenses (No. 5.9 General Conditions)"]
["No.","Country of travel","Nature of travel expenses","Start\n(dd/mm/yy)","End \n(dd/mm/yy)","Reason for travel","Reimbursement type\nacc. to contract","Amount\n (per voucher or lump sum)","Quantity"," ","Currency","Exchange rate*","Amount ",null,"Remarks",null,null,"Reserved for GIZ"]
[1,null,"Please select",null,null,null,"Please select",null,null,null,null,null,{"$f":"IF(G45=\"Against evidence\",H45*L45,IF(G45=\"Lump sum\",H45*I45*L45,\"0,00\"))","v":"0,00"}]
[2,null,null,null,null,null,null,null,null,null,null,null,{"$f":"IF(G46=\"Against evidence\",H46*L46,IF(G46=\"Lump sum\",H46*I46*L46,\"0,00\"))","v":"0,00"}]
[3,null,null,null,null,null,null,null,null,null,null,null,"0,00"]
[4,null,null,null,null,null,null,null,null,null,null,null,"0,00"]
[5,null,null,null,null,null,null,null,null,null,null,null,"0,00"]
[6,null,null,null,null,null,null,null,null,null,null,null,"0,00"]
[7,null,null,null,null,null,null,null,null,null,null,null,"0,00"]
[8,null,null,null,null,null,null,null,null,null,null,null,"0,00"]
[9,null,null,null,null,null,null,null,null,null,null,null,"0,00"]
[10,null,null,null,null,null,null,null,null,null,null,null,"0,00"]
["TOTAL",null,null,null,null,null,null,null,null,null,null,{"$f":"'Invoice overview'!F32","v":"EUR"},{"$f":"SUM(M45:N54)","v":0}]
[]
[null,null,null,null,null,null,null,null,null,null,null,"Total for expert/contractor",null,null,null,{"$f":"SUM(M55,K41,F25,F24,F21,F22,)","v":0}]
[]
[]
[]
[]
[]
[]
[]
[]
[]
[]
[]
[]
[]
[]
[]
[]
[]
[]
[]
[]
[]
[]
[]
[]
[]
[]
[]
[]
[]
[]
[]
[]
[]
[]
[]
[]
[]
[]
[]
[]
[]
[]
[null,null,null,null,null,null,null,null,null,null,null,null,null,null,null,null,null,null,null,null,null,null,null,null,null,null,null,null,null,null,null,null,null,null,null,null,null,null,null,"Please select"]
[null,null,null,null,null,null,null,null,null,null,null,null,null,null,null,null,null,null,null,null,null,null,null,null,null,null,null,null,null,null,null,null,null,null,null,null,null,null,null,"Outward and homeward journeys"]
[null,null,null,null,null,null,null,null,null,null,null,null,null,null,null,null,null,null,null,null,null,null,null,null,null,null,null,null,null,null,null,null,null,null,null,null,null,null,null,"Regional and national flights"]
[null,null,null,null,null,null,null,null,null,null,null,null,null,null,null,null,null,null,null,null,null,null,null,null,null,null,null,null,null,null,null,null,null,null,null,null,null,null,null,"Other flights"]
[]
[null,null,null,null,null,null,null,null,null,null,null,null,null,null,null,null,null,null,null,null,null,null,null,null,null,null,null,null,null,null,null,null,null,null,null,null,null,null,null,"Please select"]
[null,null,null,null,null,null,null,null,null,null,null,null,null,null,null,null,null,null,null,null,null,null,null,null,null,null,null,null,null,null,null,null,null,null,null,null,null,null,null,"Hours"]
[null,null,null,null,null,null,null,null,null,null,null,null,null,null,null,null,null,null,null,null,null,null,null,null,null,null,null,null,null,null,null,null,null,null,null,null,null,null,null,"Standard lines"]
[null,null,null,null,null,null,null,null,null,null,null,null,null,null,null,null,null,null,null,null,null,null,null,null,null,null,null,null,null,null,null,null,null,null,null,null,null,null,null,"Days"]
[]
[]
[]
[null,null,null,null,null,null,null,null,null,null,null,null,null,null,null,null,null,null,null,null,null,null,null,null,null,null,null,null,null,null,null,null,null,null,null,null,null,null,null,"Please select"]
[null,null,null,null,null,null,null,null,null,null,null,null,null,null,null,null,null,null,null,null,null,null,null,null,null,null,null,null,null,null,null,null,null,null,null,null,null,null,null,"Expert (outward and homeward journeys)"]
[null,null,null,null,null,null,null,null,null,null,null,null,null,null,null,null,null,null,null,null,null,null,null,null,null,null,null,null,null,null,null,null,null,null,null,null,null,null,null,"Dependants (outward and homeward journeys) "]
[null,null,null,null,null,null,null,null,null,null,null,null,null,null,null,null,null,null,null,null,null,null,null,null,null,null,null,null,null,null,null,null,null,null,null,null,null,null,null,"Vacation flights"]
[null,null,null,null,null,null,null,null,null,null,null,null,null,null,null,null,null,null,null,null,null,null,null,null,null,null,null,null,null,null,null,null,null,null,null,null,null,null,null,"Regional and national flights"]
[null,null,null,null,null,null,null,null,null,null,null,null,null,null,null,null,null,null,null,null,null,null,null,null,null,null,null,null,null,null,null,null,null,null,null,null,null,null,null,"Other flights"]
[]
[null,null,null,null,null,null,null,null,null,null,null,null,null,null,null,null,null,null,null,null,null,null,null,null,null,null,null,null,null,null,null,null,null,null,null,null,null,null,null,"Please select"]
[null,null,null,null,null,null,null,null,null,null,null,null,null,null,null,null,null,null,null,null,null,null,null,null,null,null,null,null,null,null,null,null,null,null,null,null,null,null,null,"Lump sum"]
[null,null,null,null,null,null,null,null,null,null,null,null,null,null,null,null,null,null,null,null,null,null,null,null,null,null,null,null,null,null,null,null,null,null,null,null,null,null,null,"Against evidence"]
[]
[null,null,null,null,null,null,null,null,null,null,null,null,null,null,null,null,null,null,null,null,null,null,null,null,null,null,null,null,null,null,null,null,null,null,null,null,null,null,null,"Please select"]
[null,null,null,null,null,null,null,null,null,null,null,null,null,null,null,null,null,null,null,null,null,null,null,null,null,null,null,null,null,null,null,null,null,null,null,null,null,null,null,"International short-term expert"]
[null,null,null,null,null,null,null,null,null,null,null,null,null,null,null,null,null,null,null,null,null,null,null,null,null,null,null,null,null,null,null,null,null,null,null,null,null,null,null,"Regional short-term expert"]
[null,null,null,null,null,null,null,null,null,null,null,null,null,null,null,null,null,null,null,null,null,null,null,null,null,null,null,null,null,null,null,null,null,null,null,null,null,null,null,"National short-term expert"]
[null,null,null,null,null,null,null,null,null,null,null,null,null,null,null,null,null,null,null,null,null,null,null,null,null,null,null,null,null,null,null,null,null,null,null,null,null,null,null,"Other (please define)"]
[]
[]
[]
[]
[null,null,null,null,null,null,null,null,null,null,null,null,null,null,null,null,null,null,null,null,null,null,null,null,null,null,null,null,null,null,null,null,null,null,null,null,null,null,null,"Please select"]
[null,null,null,null,null,null,null,null,null,null,null,null,null,null,null,null,null,null,null,null,null,null,null,null,null,null,null,null,null,null,null,null,null,null,null,null,null,null,null,"Travel expenses outside the country"]
[null,null,null,null,null,null,null,null,null,null,null,null,null,null,null,null,null,null,null,null,null,null,null,null,null,null,null,null,null,null,null,null,null,null,null,null,null,null,null,"Travel expenses in the country"]

{"sheet":"Expert sheet (21)","index":21,"n_rows":134,"n_cols":40,"rows_kept":134,"cut":false,"hidden":true,"merged":[[43,17,43,18],[44,12,44,13],[44,14,44,16],[45,12,45,13],[45,14,45,16],[43,12,43,13],[43,14,43,16],[19,0,19,1],[23,6,23,9],[23,10,23,12],[28,1,29,2],[28,3,28,5],[29,11,29,14],[19,6,19,9],[19,10,19,12],[20,6,20,9],[20,10,20,12],[22,6,22,9],[22,10,22,12],[21,6,21,9],[21,10,21,12],[54,3,54,4],[56,11,56,14],[49,12,49,13],[49,14,49,16],[50,12,50,13],[50,14,50,16],[51,12,51,13],[51,14,51,16],[52,12,52,13],[52,14,52,16],[53,12,53,13],[53,14,53,16],[54,12,54,13],[54,14,54,16],[46,12,46,13],[46,14,46,16],[47,12,47,13],[47,14,47,16],[48,12,48,13],[48,14,48,16],[39,1,39,2],[39,11,39,14],[39,15,39,16],[40,11,40,14],[40,15,40,16],[40,3,40,4],[37,1,37,2],[37,11,37,14],[37,15,37,16],[38,1,38,2],[38,11,38,14],[38,15,38,16],[35,1,35,2],[35,11,35,14],[35,15,35,16],[36,1,36,2],[36,11,36,14],[36,15,36,16],[33,1,33,2],[33,11,33,14],[33,15,33,16],[34,1,34,2],[34,11,34,14],[34,15,34,16],[31,1,31,2],[31,11,31,14],[31,15,31,16],[32,1,32,2],[32,11,32,14],[32,15,32,16],[29,15,29,16],[30,1,30,2],[30,11,30,14],[30,15,30,16],[24,6,24,9],[24,10,24,12],[13,11,13,12],[14,11,14,12],[16,20,16,21],[18,6,18,9],[18,10,18,12],[8,2,8,4],[9,2,9,4],[6,2,6,4],[6,11,7,12],[6,13,7,13],[7,2,7,4],[1,3,1,4],[1,7,1,9],[2,1,2,2],[2,3,2,4],[5,6,5,13]]}
["Statement on personnel deployment"]
[null,"Contract number:",null,"Processing no./Cost centre:",null,null,null,"Accounting period:"]
[null,{"$f":"'Invoice overview'!A28","v":0},null,{"$f":"'Invoice overview'!$C$28","v":0},null,null,null,null,null,{"$f":"_xlfn.TEXTJOIN(\"   \",FALSE,IF('Invoice overview'!$G$28 > 0, TEXT('Invoice overview'!$G$28,\"TT.MM.JJJJ\"),\"\"),\"until\",IF('Invoice overview'!$I$28 > 0,TEXT('Invoice overview'!$I$28,\"TT.MM.JJJJ\"),\"\"))","v":"   until   "}]
[]
[]
["Personal data"]
["Family name, given name:"]
["Function:",null,"Please select"]
["Description of function:"]
["Expert no. per price schedule"]
[]
[]
[]
[]
[]
[]
[]
[]
["Personnel costs",null,null,null,null,null,"Remarks",null,null,null,"Reserved for GIZ"]
["Remuneration item",null,"Accounting unit ","Rate","Quantity","Amount"]
["Fee (No. 5.4 General Conditions)",null,"Please select",null,null,{"$f":"SUM(E21*D21)","v":0}]
["Fee (No. 5.4 General Conditions)",null,"Please select",null,null,{"$f":"SUM(E22*D22)","v":0}]
[null,null,null,"Daily rate\nacc. to contract","Days"]
["Per diem (No. 5.6. General Conditions)",null,null,null,null,{"$f":"SUM(E24*D24)","v":0}]
["Accommodation (No. 5.7 General Conditions)",null,null,null,null,{"$f":"SUM(E25*D25)","v":0}]
[]
["Travel expenses"]
["Air travel (No. 5.8 General Conditions)"]
[null,"Type of flight",null,"Travel dates"]
["No.",null,null,"Destination","Start\n (dd/mm/yy)","End \n(dd/mm/yy)","Reimbursement type\n\nacc. to contract","Amount\n (per voucher or lump sum)","Currency","Exchange rate*","Amount ","Remarks",null,null,null,"Reserved for GIZ"]
[1,"Please select",null,null,null,null,"Please select",null,null,null,{"$f":"H31*J31","v":0}]
[2,null,null,null,null,null,null,null,null,null,{"$f":"H32*J32","v":0}]
[3,null,null,null,null,null,null,null,null,null,0]
[4,null,null,null,null,null,null,null,null,null,0]
[5,null,null,null,null,null,null,null,null,null,0]
[6,null,null,null,null,null,null,null,null,null,0]
[7,null,null,null,null,null,null,null,null,null,0]
[8,null,null,null,null,null,null,null,null,null,0]
[9,null,null,null,null,null,null,null,null,null,0]
[10,null,null,null,null,null,null,null,null,null,0]
["TOTAL",null,null,null,null,null,null,null,null,{"$f":"'Invoice overview'!F32","v":"EUR"},{"$f":"SUM(K31:K40)","v":0}]
[]
["Other travel expenses (No. 5.9 General Conditions)"]
["No.","Country of travel","Nature of travel expenses","Start\n(dd/mm/yy)","End \n(dd/mm/yy)","Reason for travel","Reimbursement type\nacc. to contract","Amount\n (per voucher or lump sum)","Quantity"," ","Currency","Exchange rate*","Amount ",null,"Remarks",null,null,"Reserved for GIZ"]
[1,null,"Please select",null,null,null,"Please select",null,null,null,null,null,{"$f":"IF(G45=\"Against evidence\",H45*L45,IF(G45=\"Lump sum\",H45*I45*L45,\"0,00\"))","v":"0,00"}]
[2,null,null,null,null,null,null,null,null,null,null,null,{"$f":"IF(G46=\"Against evidence\",H46*L46,IF(G46=\"Lump sum\",H46*I46*L46,\"0,00\"))","v":"0,00"}]
[3,null,null,null,null,null,null,null,null,null,null,null,"0,00"]
[4,null,null,null,null,null,null,null,null,null,null,null,"0,00"]
[5,null,null,null,null,null,null,null,null,null,null,null,"0,00"]
[6,null,null,null,null,null,null,null,null,null,null,null,"0,00"]
[7,null,null,null,null,null,null,null,null,null,null,null,"0,00"]
[8,null,null,null,null,null,null,null,null,null,null,null,"0,00"]
[9,null,null,null,null,null,null,null,null,null,null,null,"0,00"]
[10,null,null,null,null,null,null,null,null,null,null,null,"0,00"]
["TOTAL",null,null,null,null,null,null,null,null,null,null,{"$f":"'Invoice overview'!F32","v":"EUR"},{"$f":"SUM(M45:N54)","v":0}]
[]
[null,null,null,null,null,null,null,null,null,null,null,"Total for expert/contractor",null,null,null,{"$f":"SUM(M55,K41,F25,F24,F21,F22,)","v":0}]
[]
[]
[]
[]
[]
[]
[]
[]
[]
[]
[]
[]
[]
[]
[]
[]
[]
[]
[]
[]
[]
[]
[]
[]
[]
[]
[]
[]
[]
[]
[]
[]
[]
[]
[]
[]
[]
[]
[]
[]
[]
[]
[null,null,null,null,null,null,null,null,null,null,null,null,null,null,null,null,null,null,null,null,null,null,null,null,null,null,null,null,null,null,null,null,null,null,null,null,null,null,null,"Please select"]
[null,null,null,null,null,null,null,null,null,null,null,null,null,null,null,null,null,null,null,null,null,null,null,null,null,null,null,null,null,null,null,null,null,null,null,null,null,null,null,"Outward and homeward journeys"]
[null,null,null,null,null,null,null,null,null,null,null,null,null,null,null,null,null,null,null,null,null,null,null,null,null,null,null,null,null,null,null,null,null,null,null,null,null,null,null,"Regional and national flights"]
[null,null,null,null,null,null,null,null,null,null,null,null,null,null,null,null,null,null,null,null,null,null,null,null,null,null,null,null,null,null,null,null,null,null,null,null,null,null,null,"Other flights"]
[]
[null,null,null,null,null,null,null,null,null,null,null,null,null,null,null,null,null,null,null,null,null,null,null,null,null,null,null,null,null,null,null,null,null,null,null,null,null,null,null,"Please select"]
[null,null,null,null,null,null,null,null,null,null,null,null,null,null,null,null,null,null,null,null,null,null,null,null,null,null,null,null,null,null,null,null,null,null,null,null,null,null,null,"Hours"]
[null,null,null,null,null,null,null,null,null,null,null,null,null,null,null,null,null,null,null,null,null,null,null,null,null,null,null,null,null,null,null,null,null,null,null,null,null,null,null,"Standard lines"]
[null,null,null,null,null,null,null,null,null,null,null,null,null,null,null,null,null,null,null,null,null,null,null,null,null,null,null,null,null,null,null,null,null,null,null,null,null,null,null,"Days"]
[]
[]
[]
[null,null,null,null,null,null,null,null,null,null,null,null,null,null,null,null,null,null,null,null,null,null,null,null,null,null,null,null,null,null,null,null,null,null,null,null,null,null,null,"Please select"]
[null,null,null,null,null,null,null,null,null,null,null,null,null,null,null,null,null,null,null,null,null,null,null,null,null,null,null,null,null,null,null,null,null,null,null,null,null,null,null,"Expert (outward and homeward journeys)"]
[null,null,null,null,null,null,null,null,null,null,null,null,null,null,null,null,null,null,null,null,null,null,null,null,null,null,null,null,null,null,null,null,null,null,null,null,null,null,null,"Dependants (outward and homeward journeys) "]
[null,null,null,null,null,null,null,null,null,null,null,null,null,null,null,null,null,null,null,null,null,null,null,null,null,null,null,null,null,null,null,null,null,null,null,null,null,null,null,"Vacation flights"]
[null,null,null,null,null,null,null,null,null,null,null,null,null,null,null,null,null,null,null,null,null,null,null,null,null,null,null,null,null,null,null,null,null,null,null,null,null,null,null,"Regional and national flights"]
[null,null,null,null,null,null,null,null,null,null,null,null,null,null,null,null,null,null,null,null,null,null,null,null,null,null,null,null,null,null,null,null,null,null,null,null,null,null,null,"Other flights"]
[]
[null,null,null,null,null,null,null,null,null,null,null,null,null,null,null,null,null,null,null,null,null,null,null,null,null,null,null,null,null,null,null,null,null,null,null,null,null,null,null,"Please select"]
[null,null,null,null,null,null,null,null,null,null,null,null,null,null,null,null,null,null,null,null,null,null,null,null,null,null,null,null,null,null,null,null,null,null,null,null,null,null,null,"Lump sum"]
[null,null,null,null,null,null,null,null,null,null,null,null,null,null,null,null,null,null,null,null,null,null,null,null,null,null,null,null,null,null,null,null,null,null,null,null,null,null,null,"Against evidence"]
[]
[null,null,null,null,null,null,null,null,null,null,null,null,null,null,null,null,null,null,null,null,null,null,null,null,null,null,null,null,null,null,null,null,null,null,null,null,null,null,null,"Please select"]
[null,null,null,null,null,null,null,null,null,null,null,null,null,null,null,null,null,null,null,null,null,null,null,null,null,null,null,null,null,null,null,null,null,null,null,null,null,null,null,"International short-term expert"]
[null,null,null,null,null,null,null,null,null,null,null,null,null,null,null,null,null,null,null,null,null,null,null,null,null,null,null,null,null,null,null,null,null,null,null,null,null,null,null,"Regional short-term expert"]
[null,null,null,null,null,null,null,null,null,null,null,null,null,null,null,null,null,null,null,null,null,null,null,null,null,null,null,null,null,null,null,null,null,null,null,null,null,null,null,"National short-term expert"]
[null,null,null,null,null,null,null,null,null,null,null,null,null,null,null,null,null,null,null,null,null,null,null,null,null,null,null,null,null,null,null,null,null,null,null,null,null,null,null,"Other (please define)"]
[]
[]
[]
[]
[null,null,null,null,null,null,null,null,null,null,null,null,null,null,null,null,null,null,null,null,null,null,null,null,null,null,null,null,null,null,null,null,null,null,null,null,null,null,null,"Please select"]
[null,null,null,null,null,null,null,null,null,null,null,null,null,null,null,null,null,null,null,null,null,null,null,null,null,null,null,null,null,null,null,null,null,null,null,null,null,null,null,"Travel expenses outside the country"]
[null,null,null,null,null,null,null,null,null,null,null,null,null,null,null,null,null,null,null,null,null,null,null,null,null,null,null,null,null,null,null,null,null,null,null,null,null,null,null,"Travel expenses in the country"]

{"sheet":"Expert sheet (22)","index":22,"n_rows":134,"n_cols":40,"rows_kept":134,"cut":false,"hidden":true,"merged":[[43,17,43,18],[44,12,44,13],[44,14,44,16],[45,12,45,13],[45,14,45,16],[43,12,43,13],[43,14,43,16],[19,0,19,1],[23,6,23,9],[23,10,23,12],[28,1,29,2],[28,3,28,5],[29,11,29,14],[19,6,19,9],[19,10,19,12],[20,6,20,9],[20,10,20,12],[22,6,22,9],[22,10,22,12],[21,6,21,9],[21,10,21,12],[54,3,54,4],[56,11,56,14],[49,12,49,13],[49,14,49,16],[50,12,50,13],[50,14,50,16],[51,12,51,13],[51,14,51,16],[52,12,52,13],[52,14,52,16],[53,12,53,13],[53,14,53,16],[54,12,54,13],[54,14,54,16],[46,12,46,13],[46,14,46,16],[47,12,47,13],[47,14,47,16],[48,12,48,13],[48,14,48,16],[39,1,39,2],[39,11,39,14],[39,15,39,16],[40,11,40,14],[40,15,40,16],[40,3,40,4],[37,1,37,2],[37,11,37,14],[37,15,37,16],[38,1,38,2],[38,11,38,14],[38,15,38,16],[35,1,35,2],[35,11,35,14],[35,15,35,16],[36,1,36,2],[36,11,36,14],[36,15,36,16],[33,1,33,2],[33,11,33,14],[33,15,33,16],[34,1,34,2],[34,11,34,14],[34,15,34,16],[31,1,31,2],[31,11,31,14],[31,15,31,16],[32,1,32,2],[32,11,32,14],[32,15,32,16],[29,15,29,16],[30,1,30,2],[30,11,30,14],[30,15,30,16],[24,6,24,9],[24,10,24,12],[13,11,13,12],[14,11,14,12],[16,20,16,21],[18,6,18,9],[18,10,18,12],[8,2,8,4],[9,2,9,4],[6,2,6,4],[6,11,7,12],[6,13,7,13],[7,2,7,4],[1,3,1,4],[1,7,1,9],[2,1,2,2],[2,3,2,4],[5,6,5,13]]}
["Statement on personnel deployment"]
[null,"Contract number:",null,"Processing no./Cost centre:",null,null,null,"Accounting period:"]
[null,{"$f":"'Invoice overview'!A28","v":0},null,{"$f":"'Invoice overview'!$C$28","v":0},null,null,null,null,null,{"$f":"_xlfn.TEXTJOIN(\"   \",FALSE,IF('Invoice overview'!$G$28 > 0, TEXT('Invoice overview'!$G$28,\"TT.MM.JJJJ\"),\"\"),\"until\",IF('Invoice overview'!$I$28 > 0,TEXT('Invoice overview'!$I$28,\"TT.MM.JJJJ\"),\"\"))","v":"   until   "}]
[]
[]
["Personal data"]
["Family name, given name:"]
["Function:",null,"Please select"]
["Description of function:"]
["Expert no. per price schedule"]
[]
[]
[]
[]
[]
[]
[]
[]
["Personnel costs",null,null,null,null,null,"Remarks",null,null,null,"Reserved for GIZ"]
["Remuneration item",null,"Accounting unit ","Rate","Quantity","Amount"]
["Fee (No. 5.4 General Conditions)",null,"Please select",null,null,{"$f":"SUM(E21*D21)","v":0}]
["Fee (No. 5.4 General Conditions)",null,"Please select",null,null,{"$f":"SUM(E22*D22)","v":0}]
[null,null,null,"Daily rate\nacc. to contract","Days"]
["Per diem (No. 5.6. General Conditions)",null,null,null,null,{"$f":"SUM(E24*D24)","v":0}]
["Accommodation (No. 5.7 General Conditions)",null,null,null,null,{"$f":"SUM(E25*D25)","v":0}]
[]
["Travel expenses"]
["Air travel (No. 5.8 General Conditions)"]
[null,"Type of flight",null,"Travel dates"]
["No.",null,null,"Destination","Start\n (dd/mm/yy)","End \n(dd/mm/yy)","Reimbursement type\n\nacc. to contract","Amount\n (per voucher or lump sum)","Currency","Exchange rate*","Amount ","Remarks",null,null,null,"Reserved for GIZ"]
[1,"Please select",null,null,null,null,"Please select",null,null,null,{"$f":"H31*J31","v":0}]
[2,null,null,null,null,null,null,null,null,null,{"$f":"H32*J32","v":0}]
[3,null,null,null,null,null,null,null,null,null,0]
[4,null,null,null,null,null,null,null,null,null,0]
[5,null,null,null,null,null,null,null,null,null,0]
[6,null,null,null,null,null,null,null,null,null,0]
[7,null,null,null,null,null,null,null,null,null,0]
[8,null,null,null,null,null,null,null,null,null,0]
[9,null,null,null,null,null,null,null,null,null,0]
[10,null,null,null,null,null,null,null,null,null,0]
["TOTAL",null,null,null,null,null,null,null,null,{"$f":"'Invoice overview'!F32","v":"EUR"},{"$f":"SUM(K31:K40)","v":0}]
[]
["Other travel expenses (No. 5.9 General Conditions)"]
["No.","Country of travel","Nature of travel expenses","Start\n(dd/mm/yy)","End \n(dd/mm/yy)","Reason for travel","Reimbursement type\nacc. to contract","Amount\n (per voucher or lump sum)","Quantity"," ","Currency","Exchange rate*","Amount ",null,"Remarks",null,null,"Reserved for GIZ"]
[1,null,"Please select",null,null,null,"Please select",null,null,null,null,null,{"$f":"IF(G45=\"Against evidence\",H45*L45,IF(G45=\"Lump sum\",H45*I45*L45,\"0,00\"))","v":"0,00"}]
[2,null,null,null,null,null,null,null,null,null,null,null,{"$f":"IF(G46=\"Against evidence\",H46*L46,IF(G46=\"Lump sum\",H46*I46*L46,\"0,00\"))","v":"0,00"}]
[3,null,null,null,null,null,null,null,null,null,null,null,"0,00"]
[4,null,null,null,null,null,null,null,null,null,null,null,"0,00"]
[5,null,null,null,null,null,null,null,null,null,null,null,"0,00"]
[6,null,null,null,null,null,null,null,null,null,null,null,"0,00"]
[7,null,null,null,null,null,null,null,null,null,null,null,"0,00"]
[8,null,null,null,null,null,null,null,null,null,null,null,"0,00"]
[9,null,null,null,null,null,null,null,null,null,null,null,"0,00"]
[10,null,null,null,null,null,null,null,null,null,null,null,"0,00"]
["TOTAL",null,null,null,null,null,null,null,null,null,null,{"$f":"'Invoice overview'!F32","v":"EUR"},{"$f":"SUM(M45:N54)","v":0}]
[]
[null,null,null,null,null,null,null,null,null,null,null,"Total for expert/contractor",null,null,null,{"$f":"SUM(M55,K41,F25,F24,F21,F22,)","v":0}]
[]
[]
[]
[]
[]
[]
[]
[]
[]
[]
[]
[]
[]
[]
[]
[]
[]
[]
[]
[]
[]
[]
[]
[]
[]
[]
[]
[]
[]
[]
[]
[]
[]
[]
[]
[]
[]
[]
[]
[]
[]
[]
[null,null,null,null,null,null,null,null,null,null,null,null,null,null,null,null,null,null,null,null,null,null,null,null,null,null,null,null,null,null,null,null,null,null,null,null,null,null,null,"Please select"]
[null,null,null,null,null,null,null,null,null,null,null,null,null,null,null,null,null,null,null,null,null,null,null,null,null,null,null,null,null,null,null,null,null,null,null,null,null,null,null,"Outward and homeward journeys"]
[null,null,null,null,null,null,null,null,null,null,null,null,null,null,null,null,null,null,null,null,null,null,null,null,null,null,null,null,null,null,null,null,null,null,null,null,null,null,null,"Regional and national flights"]
[null,null,null,null,null,null,null,null,null,null,null,null,null,null,null,null,null,null,null,null,null,null,null,null,null,null,null,null,null,null,null,null,null,null,null,null,null,null,null,"Other flights"]
[]
[null,null,null,null,null,null,null,null,null,null,null,null,null,null,null,null,null,null,null,null,null,null,null,null,null,null,null,null,null,null,null,null,null,null,null,null,null,null,null,"Please select"]
[null,null,null,null,null,null,null,null,null,null,null,null,null,null,null,null,null,null,null,null,null,null,null,null,null,null,null,null,null,null,null,null,null,null,null,null,null,null,null,"Hours"]
[null,null,null,null,null,null,null,null,null,null,null,null,null,null,null,null,null,null,null,null,null,null,null,null,null,null,null,null,null,null,null,null,null,null,null,null,null,null,null,"Standard lines"]
[null,null,null,null,null,null,null,null,null,null,null,null,null,null,null,null,null,null,null,null,null,null,null,null,null,null,null,null,null,null,null,null,null,null,null,null,null,null,null,"Days"]
[]
[]
[]
[null,null,null,null,null,null,null,null,null,null,null,null,null,null,null,null,null,null,null,null,null,null,null,null,null,null,null,null,null,null,null,null,null,null,null,null,null,null,null,"Please select"]
[null,null,null,null,null,null,null,null,null,null,null,null,null,null,null,null,null,null,null,null,null,null,null,null,null,null,null,null,null,null,null,null,null,null,null,null,null,null,null,"Expert (outward and homeward journeys)"]
[null,null,null,null,null,null,null,null,null,null,null,null,null,null,null,null,null,null,null,null,null,null,null,null,null,null,null,null,null,null,null,null,null,null,null,null,null,null,null,"Dependants (outward and homeward journeys) "]
[null,null,null,null,null,null,null,null,null,null,null,null,null,null,null,null,null,null,null,null,null,null,null,null,null,null,null,null,null,null,null,null,null,null,null,null,null,null,null,"Vacation flights"]
[null,null,null,null,null,null,null,null,null,null,null,null,null,null,null,null,null,null,null,null,null,null,null,null,null,null,null,null,null,null,null,null,null,null,null,null,null,null,null,"Regional and national flights"]
[null,null,null,null,null,null,null,null,null,null,null,null,null,null,null,null,null,null,null,null,null,null,null,null,null,null,null,null,null,null,null,null,null,null,null,null,null,null,null,"Other flights"]
[]
[null,null,null,null,null,null,null,null,null,null,null,null,null,null,null,null,null,null,null,null,null,null,null,null,null,null,null,null,null,null,null,null,null,null,null,null,null,null,null,"Please select"]
[null,null,null,null,null,null,null,null,null,null,null,null,null,null,null,null,null,null,null,null,null,null,null,null,null,null,null,null,null,null,null,null,null,null,null,null,null,null,null,"Lump sum"]
[null,null,null,null,null,null,null,null,null,null,null,null,null,null,null,null,null,null,null,null,null,null,null,null,null,null,null,null,null,null,null,null,null,null,null,null,null,null,null,"Against evidence"]
[]
[null,null,null,null,null,null,null,null,null,null,null,null,null,null,null,null,null,null,null,null,null,null,null,null,null,null,null,null,null,null,null,null,null,null,null,null,null,null,null,"Please select"]
[null,null,null,null,null,null,null,null,null,null,null,null,null,null,null,null,null,null,null,null,null,null,null,null,null,null,null,null,null,null,null,null,null,null,null,null,null,null,null,"International short-term expert"]
[null,null,null,null,null,null,null,null,null,null,null,null,null,null,null,null,null,null,null,null,null,null,null,null,null,null,null,null,null,null,null,null,null,null,null,null,null,null,null,"Regional short-term expert"]
[null,null,null,null,null,null,null,null,null,null,null,null,null,null,null,null,null,null,null,null,null,null,null,null,null,null,null,null,null,null,null,null,null,null,null,null,null,null,null,"National short-term expert"]
[null,null,null,null,null,null,null,null,null,null,null,null,null,null,null,null,null,null,null,null,null,null,null,null,null,null,null,null,null,null,null,null,null,null,null,null,null,null,null,"Other (please define)"]
[]
[]
[]
[]
[null,null,null,null,null,null,null,null,null,null,null,null,null,null,null,null,null,null,null,null,null,null,null,null,null,null,null,null,null,null,null,null,null,null,null,null,null,null,null,"Please select"]
[null,null,null,null,null,null,null,null,null,null,null,null,null,null,null,null,null,null,null,null,null,null,null,null,null,null,null,null,null,null,null,null,null,null,null,null,null,null,null,"Travel expenses outside the country"]
[null,null,null,null,null,null,null,null,null,null,null,null,null,null,null,null,null,null,null,null,null,null,null,null,null,null,null,null,null,null,null,null,null,null,null,null,null,null,null,"Travel expenses in the country"]

{"sheet":"Expert sheet (23)","index":23,"n_rows":134,"n_cols":40,"rows_kept":134,"cut":false,"hidden":true,"merged":[[43,17,43,18],[44,12,44,13],[44,14,44,16],[45,12,45,13],[45,14,45,16],[43,12,43,13],[43,14,43,16],[19,0,19,1],[23,6,23,9],[23,10,23,12],[28,1,29,2],[28,3,28,5],[29,11,29,14],[19,6,19,9],[19,10,19,12],[20,6,20,9],[20,10,20,12],[22,6,22,9],[22,10,22,12],[21,6,21,9],[21,10,21,12],[54,3,54,4],[56,11,56,14],[49,12,49,13],[49,14,49,16],[50,12,50,13],[50,14,50,16],[51,12,51,13],[51,14,51,16],[52,12,52,13],[52,14,52,16],[53,12,53,13],[53,14,53,16],[54,12,54,13],[54,14,54,16],[46,12,46,13],[46,14,46,16],[47,12,47,13],[47,14,47,16],[48,12,48,13],[48,14,48,16],[39,1,39,2],[39,11,39,14],[39,15,39,16],[40,11,40,14],[40,15,40,16],[40,3,40,4],[37,1,37,2],[37,11,37,14],[37,15,37,16],[38,1,38,2],[38,11,38,14],[38,15,38,16],[35,1,35,2],[35,11,35,14],[35,15,35,16],[36,1,36,2],[36,11,36,14],[36,15,36,16],[33,1,33,2],[33,11,33,14],[33,15,33,16],[34,1,34,2],[34,11,34,14],[34,15,34,16],[31,1,31,2],[31,11,31,14],[31,15,31,16],[32,1,32,2],[32,11,32,14],[32,15,32,16],[29,15,29,16],[30,1,30,2],[30,11,30,14],[30,15,30,16],[24,6,24,9],[24,10,24,12],[13,11,13,12],[14,11,14,12],[16,20,16,21],[18,6,18,9],[18,10,18,12],[8,2,8,4],[9,2,9,4],[6,2,6,4],[6,11,7,12],[6,13,7,13],[7,2,7,4],[1,3,1,4],[1,7,1,9],[2,1,2,2],[2,3,2,4],[5,6,5,13]]}
["Statement on personnel deployment"]
[null,"Contract number:",null,"Processing no./Cost centre:",null,null,null,"Accounting period:"]
[null,{"$f":"'Invoice overview'!A28","v":0},null,{"$f":"'Invoice overview'!$C$28","v":0},null,null,null,null,null,{"$f":"_xlfn.TEXTJOIN(\"   \",FALSE,IF('Invoice overview'!$G$28 > 0, TEXT('Invoice overview'!$G$28,\"TT.MM.JJJJ\"),\"\"),\"until\",IF('Invoice overview'!$I$28 > 0,TEXT('Invoice overview'!$I$28,\"TT.MM.JJJJ\"),\"\"))","v":"   until   "}]
[]
[]
["Personal data"]
["Family name, given name:"]
["Function:",null,"Please select"]
["Description of function:"]
["Expert no. per price schedule"]
[]
[]
[]
[]
[]
[]
[]
[]
["Personnel costs",null,null,null,null,null,"Remarks",null,null,null,"Reserved for GIZ"]
["Remuneration item",null,"Accounting unit ","Rate","Quantity","Amount"]
["Fee (No. 5.4 General Conditions)",null,"Please select",null,null,{"$f":"SUM(E21*D21)","v":0}]
["Fee (No. 5.4 General Conditions)",null,"Please select",null,null,{"$f":"SUM(E22*D22)","v":0}]
[null,null,null,"Daily rate\nacc. to contract","Days"]
["Per diem (No. 5.6. General Conditions)",null,null,null,null,{"$f":"SUM(E24*D24)","v":0}]
["Accommodation (No. 5.7 General Conditions)",null,null,null,null,{"$f":"SUM(E25*D25)","v":0}]
[]
["Travel expenses"]
["Air travel (No. 5.8 General Conditions)"]
[null,"Type of flight",null,"Travel dates"]
["No.",null,null,"Destination","Start\n (dd/mm/yy)","End \n(dd/mm/yy)","Reimbursement type\n\nacc. to contract","Amount\n (per voucher or lump sum)","Currency","Exchange rate*","Amount ","Remarks",null,null,null,"Reserved for GIZ"]
[1,"Please select",null,null,null,null,"Please select",null,null,null,{"$f":"H31*J31","v":0}]
[2,null,null,null,null,null,null,null,null,null,{"$f":"H32*J32","v":0}]
[3,null,null,null,null,null,null,null,null,null,0]
[4,null,null,null,null,null,null,null,null,null,0]
[5,null,null,null,null,null,null,null,null,null,0]
[6,null,null,null,null,null,null,null,null,null,0]
[7,null,null,null,null,null,null,null,null,null,0]
[8,null,null,null,null,null,null,null,null,null,0]
[9,null,null,null,null,null,null,null,null,null,0]
[10,null,null,null,null,null,null,null,null,null,0]
["TOTAL",null,null,null,null,null,null,null,null,{"$f":"'Invoice overview'!F32","v":"EUR"},{"$f":"SUM(K31:K40)","v":0}]
[]
["Other travel expenses (No. 5.9 General Conditions)"]
["No.","Country of travel","Nature of travel expenses","Start\n(dd/mm/yy)","End \n(dd/mm/yy)","Reason for travel","Reimbursement type\nacc. to contract","Amount\n (per voucher or lump sum)","Quantity"," ","Currency","Exchange rate*","Amount ",null,"Remarks",null,null,"Reserved for GIZ"]
[1,null,"Please select",null,null,null,"Please select",null,null,null,null,null,{"$f":"IF(G45=\"Against evidence\",H45*L45,IF(G45=\"Lump sum\",H45*I45*L45,\"0,00\"))","v":"0,00"}]
[2,null,null,null,null,null,null,null,null,null,null,null,{"$f":"IF(G46=\"Against evidence\",H46*L46,IF(G46=\"Lump sum\",H46*I46*L46,\"0,00\"))","v":"0,00"}]
[3,null,null,null,null,null,null,null,null,null,null,null,"0,00"]
[4,null,null,null,null,null,null,null,null,null,null,null,"0,00"]
[5,null,null,null,null,null,null,null,null,null,null,null,"0,00"]
[6,null,null,null,null,null,null,null,null,null,null,null,"0,00"]
[7,null,null,null,null,null,null,null,null,null,null,null,"0,00"]
[8,null,null,null,null,null,null,null,null,null,null,null,"0,00"]
[9,null,null,null,null,null,null,null,null,null,null,null,"0,00"]
[10,null,null,null,null,null,null,null,null,null,null,null,"0,00"]
["TOTAL",null,null,null,null,null,null,null,null,null,null,{"$f":"'Invoice overview'!F32","v":"EUR"},{"$f":"SUM(M45:N54)","v":0}]
[]
[null,null,null,null,null,null,null,null,null,null,null,"Total for expert/contractor",null,null,null,{"$f":"SUM(M55,K41,F25,F24,F21,F22,)","v":0}]
[]
[]
[]
[]
[]
[]
[]
[]
[]
[]
[]
[]
[]
[]
[]
[]
[]
[]
[]
[]
[]
[]
[]
[]
[]
[]
[]
[]
[]
[]
[]
[]
[]
[]
[]
[]
[]
[]
[]
[]
[]
[]
[null,null,null,null,null,null,null,null,null,null,null,null,null,null,null,null,null,null,null,null,null,null,null,null,null,null,null,null,null,null,null,null,null,null,null,null,null,null,null,"Please select"]
[null,null,null,null,null,null,null,null,null,null,null,null,null,null,null,null,null,null,null,null,null,null,null,null,null,null,null,null,null,null,null,null,null,null,null,null,null,null,null,"Outward and homeward journeys"]
[null,null,null,null,null,null,null,null,null,null,null,null,null,null,null,null,null,null,null,null,null,null,null,null,null,null,null,null,null,null,null,null,null,null,null,null,null,null,null,"Regional and national flights"]
[null,null,null,null,null,null,null,null,null,null,null,null,null,null,null,null,null,null,null,null,null,null,null,null,null,null,null,null,null,null,null,null,null,null,null,null,null,null,null,"Other flights"]
[]
[null,null,null,null,null,null,null,null,null,null,null,null,null,null,null,null,null,null,null,null,null,null,null,null,null,null,null,null,null,null,null,null,null,null,null,null,null,null,null,"Please select"]
[null,null,null,null,null,null,null,null,null,null,null,null,null,null,null,null,null,null,null,null,null,null,null,null,null,null,null,null,null,null,null,null,null,null,null,null,null,null,null,"Hours"]
[null,null,null,null,null,null,null,null,null,null,null,null,null,null,null,null,null,null,null,null,null,null,null,null,null,null,null,null,null,null,null,null,null,null,null,null,null,null,null,"Standard lines"]
[null,null,null,null,null,null,null,null,null,null,null,null,null,null,null,null,null,null,null,null,null,null,null,null,null,null,null,null,null,null,null,null,null,null,null,null,null,null,null,"Days"]
[]
[]
[]
[null,null,null,null,null,null,null,null,null,null,null,null,null,null,null,null,null,null,null,null,null,null,null,null,null,null,null,null,null,null,null,null,null,null,null,null,null,null,null,"Please select"]
[null,null,null,null,null,null,null,null,null,null,null,null,null,null,null,null,null,null,null,null,null,null,null,null,null,null,null,null,null,null,null,null,null,null,null,null,null,null,null,"Expert (outward and homeward journeys)"]
[null,null,null,null,null,null,null,null,null,null,null,null,null,null,null,null,null,null,null,null,null,null,null,null,null,null,null,null,null,null,null,null,null,null,null,null,null,null,null,"Dependants (outward and homeward journeys) "]
[null,null,null,null,null,null,null,null,null,null,null,null,null,null,null,null,null,null,null,null,null,null,null,null,null,null,null,null,null,null,null,null,null,null,null,null,null,null,null,"Vacation flights"]
[null,null,null,null,null,null,null,null,null,null,null,null,null,null,null,null,null,null,null,null,null,null,null,null,null,null,null,null,null,null,null,null,null,null,null,null,null,null,null,"Regional and national flights"]
[null,null,null,null,null,null,null,null,null,null,null,null,null,null,null,null,null,null,null,null,null,null,null,null,null,null,null,null,null,null,null,null,null,null,null,null,null,null,null,"Other flights"]
[]
[null,null,null,null,null,null,null,null,null,null,null,null,null,null,null,null,null,null,null,null,null,null,null,null,null,null,null,null,null,null,null,null,null,null,null,null,null,null,null,"Please select"]
[null,null,null,null,null,null,null,null,null,null,null,null,null,null,null,null,null,null,null,null,null,null,null,null,null,null,null,null,null,null,null,null,null,null,null,null,null,null,null,"Lump sum"]
[null,null,null,null,null,null,null,null,null,null,null,null,null,null,null,null,null,null,null,null,null,null,null,null,null,null,null,null,null,null,null,null,null,null,null,null,null,null,null,"Against evidence"]
[]
[null,null,null,null,null,null,null,null,null,null,null,null,null,null,null,null,null,null,null,null,null,null,null,null,null,null,null,null,null,null,null,null,null,null,null,null,null,null,null,"Please select"]
[null,null,null,null,null,null,null,null,null,null,null,null,null,null,null,null,null,null,null,null,null,null,null,null,null,null,null,null,null,null,null,null,null,null,null,null,null,null,null,"International short-term expert"]
[null,null,null,null,null,null,null,null,null,null,null,null,null,null,null,null,null,null,null,null,null,null,null,null,null,null,null,null,null,null,null,null,null,null,null,null,null,null,null,"Regional short-term expert"]
[null,null,null,null,null,null,null,null,null,null,null,null,null,null,null,null,null,null,null,null,null,null,null,null,null,null,null,null,null,null,null,null,null,null,null,null,null,null,null,"National short-term expert"]
[null,null,null,null,null,null,null,null,null,null,null,null,null,null,null,null,null,null,null,null,null,null,null,null,null,null,null,null,null,null,null,null,null,null,null,null,null,null,null,"Other (please define)"]
[]
[]
[]
[]
[null,null,null,null,null,null,null,null,null,null,null,null,null,null,null,null,null,null,null,null,null,null,null,null,null,null,null,null,null,null,null,null,null,null,null,null,null,null,null,"Please select"]
[null,null,null,null,null,null,null,null,null,null,null,null,null,null,null,null,null,null,null,null,null,null,null,null,null,null,null,null,null,null,null,null,null,null,null,null,null,null,null,"Travel expenses outside the country"]
[null,null,null,null,null,null,null,null,null,null,null,null,null,null,null,null,null,null,null,null,null,null,null,null,null,null,null,null,null,null,null,null,null,null,null,null,null,null,null,"Travel expenses in the country"]

{"sheet":"Expert sheet (24)","index":24,"n_rows":134,"n_cols":40,"rows_kept":134,"cut":false,"hidden":true,"merged":[[43,17,43,18],[44,12,44,13],[44,14,44,16],[45,12,45,13],[45,14,45,16],[43,12,43,13],[43,14,43,16],[19,0,19,1],[23,6,23,9],[23,10,23,12],[28,1,29,2],[28,3,28,5],[29,11,29,14],[19,6,19,9],[19,10,19,12],[20,6,20,9],[20,10,20,12],[22,6,22,9],[22,10,22,12],[21,6,21,9],[21,10,21,12],[54,3,54,4],[56,11,56,14],[49,12,49,13],[49,14,49,16],[50,12,50,13],[50,14,50,16],[51,12,51,13],[51,14,51,16],[52,12,52,13],[52,14,52,16],[53,12,53,13],[53,14,53,16],[54,12,54,13],[54,14,54,16],[46,12,46,13],[46,14,46,16],[47,12,47,13],[47,14,47,16],[48,12,48,13],[48,14,48,16],[39,1,39,2],[39,11,39,14],[39,15,39,16],[40,11,40,14],[40,15,40,16],[40,3,40,4],[37,1,37,2],[37,11,37,14],[37,15,37,16],[38,1,38,2],[38,11,38,14],[38,15,38,16],[35,1,35,2],[35,11,35,14],[35,15,35,16],[36,1,36,2],[36,11,36,14],[36,15,36,16],[33,1,33,2],[33,11,33,14],[33,15,33,16],[34,1,34,2],[34,11,34,14],[34,15,34,16],[31,1,31,2],[31,11,31,14],[31,15,31,16],[32,1,32,2],[32,11,32,14],[32,15,32,16],[29,15,29,16],[30,1,30,2],[30,11,30,14],[30,15,30,16],[24,6,24,9],[24,10,24,12],[13,11,13,12],[14,11,14,12],[16,20,16,21],[18,6,18,9],[18,10,18,12],[8,2,8,4],[9,2,9,4],[6,2,6,4],[6,11,7,12],[6,13,7,13],[7,2,7,4],[1,3,1,4],[1,7,1,9],[2,1,2,2],[2,3,2,4],[5,6,5,13]]}
["Statement on personnel deployment"]
[null,"Contract number:",null,"Processing no./Cost centre:",null,null,null,"Accounting period:"]
[null,{"$f":"'Invoice overview'!A28","v":0},null,{"$f":"'Invoice overview'!$C$28","v":0},null,null,null,null,null,{"$f":"_xlfn.TEXTJOIN(\"   \",FALSE,IF('Invoice overview'!$G$28 > 0, TEXT('Invoice overview'!$G$28,\"TT.MM.JJJJ\"),\"\"),\"until\",IF('Invoice overview'!$I$28 > 0,TEXT('Invoice overview'!$I$28,\"TT.MM.JJJJ\"),\"\"))","v":"   until   "}]
[]
[]
["Personal data"]
["Family name, given name:"]
["Function:",null,"Please select"]
["Description of function:"]
["Expert no. per price schedule"]
[]
[]
[]
[]
[]
[]
[]
[]
["Personnel costs",null,null,null,null,null,"Remarks",null,null,null,"Reserved for GIZ"]
["Remuneration item",null,"Accounting unit ","Rate","Quantity","Amount"]
["Fee (No. 5.4 General Conditions)",null,"Please select",null,null,{"$f":"SUM(E21*D21)","v":0}]
["Fee (No. 5.4 General Conditions)",null,"Please select",null,null,{"$f":"SUM(E22*D22)","v":0}]
[null,null,null,"Daily rate\nacc. to contract","Days"]
["Per diem (No. 5.6. General Conditions)",null,null,null,null,{"$f":"SUM(E24*D24)","v":0}]
["Accommodation (No. 5.7 General Conditions)",null,null,null,null,{"$f":"SUM(E25*D25)","v":0}]
[]
["Travel expenses"]
["Air travel (No. 5.8 General Conditions)"]
[null,"Type of flight",null,"Travel dates"]
["No.",null,null,"Destination","Start\n (dd/mm/yy)","End \n(dd/mm/yy)","Reimbursement type\n\nacc. to contract","Amount\n (per voucher or lump sum)","Currency","Exchange rate*","Amount ","Remarks",null,null,null,"Reserved for GIZ"]
[1,"Please select",null,null,null,null,"Please select",null,null,null,{"$f":"H31*J31","v":0}]
[2,null,null,null,null,null,null,null,null,null,{"$f":"H32*J32","v":0}]
[3,null,null,null,null,null,null,null,null,null,0]
[4,null,null,null,null,null,null,null,null,null,0]
[5,null,null,null,null,null,null,null,null,null,0]
[6,null,null,null,null,null,null,null,null,null,0]
[7,null,null,null,null,null,null,null,null,null,0]
[8,null,null,null,null,null,null,null,null,null,0]
[9,null,null,null,null,null,null,null,null,null,0]
[10,null,null,null,null,null,null,null,null,null,0]
["TOTAL",null,null,null,null,null,null,null,null,{"$f":"'Invoice overview'!F32","v":"EUR"},{"$f":"SUM(K31:K40)","v":0}]
[]
["Other travel expenses (No. 5.9 General Conditions)"]
["No.","Country of travel","Nature of travel expenses","Start\n(dd/mm/yy)","End \n(dd/mm/yy)","Reason for travel","Reimbursement type\nacc. to contract","Amount\n (per voucher or lump sum)","Quantity"," ","Currency","Exchange rate*","Amount ",null,"Remarks",null,null,"Reserved for GIZ"]
[1,null,"Please select",null,null,null,"Please select",null,null,null,null,null,{"$f":"IF(G45=\"Against evidence\",H45*L45,IF(G45=\"Lump sum\",H45*I45*L45,\"0,00\"))","v":"0,00"}]
[2,null,null,null,null,null,null,null,null,null,null,null,{"$f":"IF(G46=\"Against evidence\",H46*L46,IF(G46=\"Lump sum\",H46*I46*L46,\"0,00\"))","v":"0,00"}]
[3,null,null,null,null,null,null,null,null,null,null,null,"0,00"]
[4,null,null,null,null,null,null,null,null,null,null,null,"0,00"]
[5,null,null,null,null,null,null,null,null,null,null,null,"0,00"]
[6,null,null,null,null,null,null,null,null,null,null,null,"0,00"]
[7,null,null,null,null,null,null,null,null,null,null,null,"0,00"]
[8,null,null,null,null,null,null,null,null,null,null,null,"0,00"]
[9,null,null,null,null,null,null,null,null,null,null,null,"0,00"]
[10,null,null,null,null,null,null,null,null,null,null,null,"0,00"]
["TOTAL",null,null,null,null,null,null,null,null,null,null,{"$f":"'Invoice overview'!F32","v":"EUR"},{"$f":"SUM(M45:N54)","v":0}]
[]
[null,null,null,null,null,null,null,null,null,null,null,"Total for expert/contractor",null,null,null,{"$f":"SUM(M55,K41,F25,F24,F21,F22,)","v":0}]
[]
[]
[]
[]
[]
[]
[]
[]
[]
[]
[]
[]
[]
[]
[]
[]
[]
[]
[]
[]
[]
[]
[]
[]
[]
[]
[]
[]
[]
[]
[]
[]
[]
[]
[]
[]
[]
[]
[]
[]
[]
[]
[null,null,null,null,null,null,null,null,null,null,null,null,null,null,null,null,null,null,null,null,null,null,null,null,null,null,null,null,null,null,null,null,null,null,null,null,null,null,null,"Please select"]
[null,null,null,null,null,null,null,null,null,null,null,null,null,null,null,null,null,null,null,null,null,null,null,null,null,null,null,null,null,null,null,null,null,null,null,null,null,null,null,"Outward and homeward journeys"]
[null,null,null,null,null,null,null,null,null,null,null,null,null,null,null,null,null,null,null,null,null,null,null,null,null,null,null,null,null,null,null,null,null,null,null,null,null,null,null,"Regional and national flights"]
[null,null,null,null,null,null,null,null,null,null,null,null,null,null,null,null,null,null,null,null,null,null,null,null,null,null,null,null,null,null,null,null,null,null,null,null,null,null,null,"Other flights"]
[]
[null,null,null,null,null,null,null,null,null,null,null,null,null,null,null,null,null,null,null,null,null,null,null,null,null,null,null,null,null,null,null,null,null,null,null,null,null,null,null,"Please select"]
[null,null,null,null,null,null,null,null,null,null,null,null,null,null,null,null,null,null,null,null,null,null,null,null,null,null,null,null,null,null,null,null,null,null,null,null,null,null,null,"Hours"]
[null,null,null,null,null,null,null,null,null,null,null,null,null,null,null,null,null,null,null,null,null,null,null,null,null,null,null,null,null,null,null,null,null,null,null,null,null,null,null,"Standard lines"]
[null,null,null,null,null,null,null,null,null,null,null,null,null,null,null,null,null,null,null,null,null,null,null,null,null,null,null,null,null,null,null,null,null,null,null,null,null,null,null,"Days"]
[]
[]
[]
[null,null,null,null,null,null,null,null,null,null,null,null,null,null,null,null,null,null,null,null,null,null,null,null,null,null,null,null,null,null,null,null,null,null,null,null,null,null,null,"Please select"]
[null,null,null,null,null,null,null,null,null,null,null,null,null,null,null,null,null,null,null,null,null,null,null,null,null,null,null,null,null,null,null,null,null,null,null,null,null,null,null,"Expert (outward and homeward journeys)"]
[null,null,null,null,null,null,null,null,null,null,null,null,null,null,null,null,null,null,null,null,null,null,null,null,null,null,null,null,null,null,null,null,null,null,null,null,null,null,null,"Dependants (outward and homeward journeys) "]
[null,null,null,null,null,null,null,null,null,null,null,null,null,null,null,null,null,null,null,null,null,null,null,null,null,null,null,null,null,null,null,null,null,null,null,null,null,null,null,"Vacation flights"]
[null,null,null,null,null,null,null,null,null,null,null,null,null,null,null,null,null,null,null,null,null,null,null,null,null,null,null,null,null,null,null,null,null,null,null,null,null,null,null,"Regional and national flights"]
[null,null,null,null,null,null,null,null,null,null,null,null,null,null,null,null,null,null,null,null,null,null,null,null,null,null,null,null,null,null,null,null,null,null,null,null,null,null,null,"Other flights"]
[]
[null,null,null,null,null,null,null,null,null,null,null,null,null,null,null,null,null,null,null,null,null,null,null,null,null,null,null,null,null,null,null,null,null,null,null,null,null,null,null,"Please select"]
[null,null,null,null,null,null,null,null,null,null,null,null,null,null,null,null,null,null,null,null,null,null,null,null,null,null,null,null,null,null,null,null,null,null,null,null,null,null,null,"Lump sum"]
[null,null,null,null,null,null,null,null,null,null,null,null,null,null,null,null,null,null,null,null,null,null,null,null,null,null,null,null,null,null,null,null,null,null,null,null,null,null,null,"Against evidence"]
[]
[null,null,null,null,null,null,null,null,null,null,null,null,null,null,null,null,null,null,null,null,null,null,null,null,null,null,null,null,null,null,null,null,null,null,null,null,null,null,null,"Please select"]
[null,null,null,null,null,null,null,null,null,null,null,null,null,null,null,null,null,null,null,null,null,null,null,null,null,null,null,null,null,null,null,null,null,null,null,null,null,null,null,"International short-term expert"]
[null,null,null,null,null,null,null,null,null,null,null,null,null,null,null,null,null,null,null,null,null,null,null,null,null,null,null,null,null,null,null,null,null,null,null,null,null,null,null,"Regional short-term expert"]
[null,null,null,null,null,null,null,null,null,null,null,null,null,null,null,null,null,null,null,null,null,null,null,null,null,null,null,null,null,null,null,null,null,null,null,null,null,null,null,"National short-term expert"]
[null,null,null,null,null,null,null,null,null,null,null,null,null,null,null,null,null,null,null,null,null,null,null,null,null,null,null,null,null,null,null,null,null,null,null,null,null,null,null,"Other (please define)"]
[]
[]
[]
[]
[null,null,null,null,null,null,null,null,null,null,null,null,null,null,null,null,null,null,null,null,null,null,null,null,null,null,null,null,null,null,null,null,null,null,null,null,null,null,null,"Please select"]
[null,null,null,null,null,null,null,null,null,null,null,null,null,null,null,null,null,null,null,null,null,null,null,null,null,null,null,null,null,null,null,null,null,null,null,null,null,null,null,"Travel expenses outside the country"]
[null,null,null,null,null,null,null,null,null,null,null,null,null,null,null,null,null,null,null,null,null,null,null,null,null,null,null,null,null,null,null,null,null,null,null,null,null,null,null,"Travel expenses in the country"]

{"sheet":"Expert sheet (25)","index":25,"n_rows":134,"n_cols":40,"rows_kept":134,"cut":false,"hidden":true,"merged":[[43,17,43,18],[44,12,44,13],[44,14,44,16],[45,12,45,13],[45,14,45,16],[43,12,43,13],[43,14,43,16],[19,0,19,1],[23,6,23,9],[23,10,23,12],[28,1,29,2],[28,3,28,5],[29,11,29,14],[19,6,19,9],[19,10,19,12],[20,6,20,9],[20,10,20,12],[22,6,22,9],[22,10,22,12],[21,6,21,9],[21,10,21,12],[54,3,54,4],[56,11,56,14],[49,12,49,13],[49,14,49,16],[50,12,50,13],[50,14,50,16],[51,12,51,13],[51,14,51,16],[52,12,52,13],[52,14,52,16],[53,12,53,13],[53,14,53,16],[54,12,54,13],[54,14,54,16],[46,12,46,13],[46,14,46,16],[47,12,47,13],[47,14,47,16],[48,12,48,13],[48,14,48,16],[39,1,39,2],[39,11,39,14],[39,15,39,16],[40,11,40,14],[40,15,40,16],[40,3,40,4],[37,1,37,2],[37,11,37,14],[37,15,37,16],[38,1,38,2],[38,11,38,14],[38,15,38,16],[35,1,35,2],[35,11,35,14],[35,15,35,16],[36,1,36,2],[36,11,36,14],[36,15,36,16],[33,1,33,2],[33,11,33,14],[33,15,33,16],[34,1,34,2],[34,11,34,14],[34,15,34,16],[31,1,31,2],[31,11,31,14],[31,15,31,16],[32,1,32,2],[32,11,32,14],[32,15,32,16],[29,15,29,16],[30,1,30,2],[30,11,30,14],[30,15,30,16],[24,6,24,9],[24,10,24,12],[13,11,13,12],[14,11,14,12],[16,20,16,21],[18,6,18,9],[18,10,18,12],[8,2,8,4],[9,2,9,4],[6,2,6,4],[6,11,7,12],[6,13,7,13],[7,2,7,4],[1,3,1,4],[1,7,1,9],[2,1,2,2],[2,3,2,4],[5,6,5,13]]}
["Statement on personnel deployment"]
[null,"Contract number:",null,"Processing no./Cost centre:",null,null,null,"Accounting period:"]
[null,{"$f":"'Invoice overview'!A28","v":0},null,{"$f":"'Invoice overview'!$C$28","v":0},null,null,null,null,null,{"$f":"_xlfn.TEXTJOIN(\"   \",FALSE,IF('Invoice overview'!$G$28 > 0, TEXT('Invoice overview'!$G$28,\"TT.MM.JJJJ\"),\"\"),\"until\",IF('Invoice overview'!$I$28 > 0,TEXT('Invoice overview'!$I$28,\"TT.MM.JJJJ\"),\"\"))","v":"   until   "}]
[]
[]
["Personal data"]
["Family name, given name:"]
["Function:",null,"Please select"]
["Description of function:"]
["Expert no. per price schedule"]
[]
[]
[]
[]
[]
[]
[]
[]
["Personnel costs",null,null,null,null,null,"Remarks",null,null,null,"Reserved for GIZ"]
["Remuneration item",null,"Accounting unit ","Rate","Quantity","Amount"]
["Fee (No. 5.4 General Conditions)",null,"Please select",null,null,{"$f":"SUM(E21*D21)","v":0}]
["Fee (No. 5.4 General Conditions)",null,"Please select",null,null,{"$f":"SUM(E22*D22)","v":0}]
[null,null,null,"Daily rate\nacc. to contract","Days"]
["Per diem (No. 5.6. General Conditions)",null,null,null,null,{"$f":"SUM(E24*D24)","v":0}]
["Accommodation (No. 5.7 General Conditions)",null,null,null,null,{"$f":"SUM(E25*D25)","v":0}]
[]
["Travel expenses"]
["Air travel (No. 5.8 General Conditions)"]
[null,"Type of flight",null,"Travel dates"]
["No.",null,null,"Destination","Start\n (dd/mm/yy)","End \n(dd/mm/yy)","Reimbursement type\n\nacc. to contract","Amount\n (per voucher or lump sum)","Currency","Exchange rate*","Amount ","Remarks",null,null,null,"Reserved for GIZ"]
[1,"Please select",null,null,null,null,"Please select",null,null,null,{"$f":"H31*J31","v":0}]
[2,null,null,null,null,null,null,null,null,null,{"$f":"H32*J32","v":0}]
[3,null,null,null,null,null,null,null,null,null,0]
[4,null,null,null,null,null,null,null,null,null,0]
[5,null,null,null,null,null,null,null,null,null,0]
[6,null,null,null,null,null,null,null,null,null,0]
[7,null,null,null,null,null,null,null,null,null,0]
[8,null,null,null,null,null,null,null,null,null,0]
[9,null,null,null,null,null,null,null,null,null,0]
[10,null,null,null,null,null,null,null,null,null,0]
["TOTAL",null,null,null,null,null,null,null,null,{"$f":"'Invoice overview'!F32","v":"EUR"},{"$f":"SUM(K31:K40)","v":0}]
[]
["Other travel expenses (No. 5.9 General Conditions)"]
["No.","Country of travel","Nature of travel expenses","Start\n(dd/mm/yy)","End \n(dd/mm/yy)","Reason for travel","Reimbursement type\nacc. to contract","Amount\n (per voucher or lump sum)","Quantity"," ","Currency","Exchange rate*","Amount ",null,"Remarks",null,null,"Reserved for GIZ"]
[1,null,"Please select",null,null,null,"Please select",null,null,null,null,null,{"$f":"IF(G45=\"Against evidence\",H45*L45,IF(G45=\"Lump sum\",H45*I45*L45,\"0,00\"))","v":"0,00"}]
[2,null,null,null,null,null,null,null,null,null,null,null,{"$f":"IF(G46=\"Against evidence\",H46*L46,IF(G46=\"Lump sum\",H46*I46*L46,\"0,00\"))","v":"0,00"}]
[3,null,null,null,null,null,null,null,null,null,null,null,"0,00"]
[4,null,null,null,null,null,null,null,null,null,null,null,"0,00"]
[5,null,null,null,null,null,null,null,null,null,null,null,"0,00"]
[6,null,null,null,null,null,null,null,null,null,null,null,"0,00"]
[7,null,null,null,null,null,null,null,null,null,null,null,"0,00"]
[8,null,null,null,null,null,null,null,null,null,null,null,"0,00"]
[9,null,null,null,null,null,null,null,null,null,null,null,"0,00"]
[10,null,null,null,null,null,null,null,null,null,null,null,"0,00"]
["TOTAL",null,null,null,null,null,null,null,null,null,null,{"$f":"'Invoice overview'!F32","v":"EUR"},{"$f":"SUM(M45:N54)","v":0}]
[]
[null,null,null,null,null,null,null,null,null,null,null,"Total for expert/contractor",null,null,null,{"$f":"SUM(M55,K41,F25,F24,F21,F22,)","v":0}]
[]
[]
[]
[]
[]
[]
[]
[]
[]
[]
[]
[]
[]
[]
[]
[]
[]
[]
[]
[]
[]
[]
[]
[]
[]
[]
[]
[]
[]
[]
[]
[]
[]
[]
[]
[]
[]
[]
[]
[]
[]
[]
[null,null,null,null,null,null,null,null,null,null,null,null,null,null,null,null,null,null,null,null,null,null,null,null,null,null,null,null,null,null,null,null,null,null,null,null,null,null,null,"Please select"]
[null,null,null,null,null,null,null,null,null,null,null,null,null,null,null,null,null,null,null,null,null,null,null,null,null,null,null,null,null,null,null,null,null,null,null,null,null,null,null,"Outward and homeward journeys"]
[null,null,null,null,null,null,null,null,null,null,null,null,null,null,null,null,null,null,null,null,null,null,null,null,null,null,null,null,null,null,null,null,null,null,null,null,null,null,null,"Regional and national flights"]
[null,null,null,null,null,null,null,null,null,null,null,null,null,null,null,null,null,null,null,null,null,null,null,null,null,null,null,null,null,null,null,null,null,null,null,null,null,null,null,"Other flights"]
[]
[null,null,null,null,null,null,null,null,null,null,null,null,null,null,null,null,null,null,null,null,null,null,null,null,null,null,null,null,null,null,null,null,null,null,null,null,null,null,null,"Please select"]
[null,null,null,null,null,null,null,null,null,null,null,null,null,null,null,null,null,null,null,null,null,null,null,null,null,null,null,null,null,null,null,null,null,null,null,null,null,null,null,"Hours"]
[null,null,null,null,null,null,null,null,null,null,null,null,null,null,null,null,null,null,null,null,null,null,null,null,null,null,null,null,null,null,null,null,null,null,null,null,null,null,null,"Standard lines"]
[null,null,null,null,null,null,null,null,null,null,null,null,null,null,null,null,null,null,null,null,null,null,null,null,null,null,null,null,null,null,null,null,null,null,null,null,null,null,null,"Days"]
[]
[]
[]
[null,null,null,null,null,null,null,null,null,null,null,null,null,null,null,null,null,null,null,null,null,null,null,null,null,null,null,null,null,null,null,null,null,null,null,null,null,null,null,"Please select"]
[null,null,null,null,null,null,null,null,null,null,null,null,null,null,null,null,null,null,null,null,null,null,null,null,null,null,null,null,null,null,null,null,null,null,null,null,null,null,null,"Expert (outward and homeward journeys)"]
[null,null,null,null,null,null,null,null,null,null,null,null,null,null,null,null,null,null,null,null,null,null,null,null,null,null,null,null,null,null,null,null,null,null,null,null,null,null,null,"Dependants (outward and homeward journeys) "]
[null,null,null,null,null,null,null,null,null,null,null,null,null,null,null,null,null,null,null,null,null,null,null,null,null,null,null,null,null,null,null,null,null,null,null,null,null,null,null,"Vacation flights"]
[null,null,null,null,null,null,null,null,null,null,null,null,null,null,null,null,null,null,null,null,null,null,null,null,null,null,null,null,null,null,null,null,null,null,null,null,null,null,null,"Regional and national flights"]
[null,null,null,null,null,null,null,null,null,null,null,null,null,null,null,null,null,null,null,null,null,null,null,null,null,null,null,null,null,null,null,null,null,null,null,null,null,null,null,"Other flights"]
[]
[null,null,null,null,null,null,null,null,null,null,null,null,null,null,null,null,null,null,null,null,null,null,null,null,null,null,null,null,null,null,null,null,null,null,null,null,null,null,null,"Please select"]
[null,null,null,null,null,null,null,null,null,null,null,null,null,null,null,null,null,null,null,null,null,null,null,null,null,null,null,null,null,null,null,null,null,null,null,null,null,null,null,"Lump sum"]
[null,null,null,null,null,null,null,null,null,null,null,null,null,null,null,null,null,null,null,null,null,null,null,null,null,null,null,null,null,null,null,null,null,null,null,null,null,null,null,"Against evidence"]
[]
[null,null,null,null,null,null,null,null,null,null,null,null,null,null,null,null,null,null,null,null,null,null,null,null,null,null,null,null,null,null,null,null,null,null,null,null,null,null,null,"Please select"]
[null,null,null,null,null,null,null,null,null,null,null,null,null,null,null,null,null,null,null,null,null,null,null,null,null,null,null,null,null,null,null,null,null,null,null,null,null,null,null,"International short-term expert"]
[null,null,null,null,null,null,null,null,null,null,null,null,null,null,null,null,null,null,null,null,null,null,null,null,null,null,null,null,null,null,null,null,null,null,null,null,null,null,null,"Regional short-term expert"]
[null,null,null,null,null,null,null,null,null,null,null,null,null,null,null,null,null,null,null,null,null,null,null,null,null,null,null,null,null,null,null,null,null,null,null,null,null,null,null,"National short-term expert"]
[null,null,null,null,null,null,null,null,null,null,null,null,null,null,null,null,null,null,null,null,null,null,null,null,null,null,null,null,null,null,null,null,null,null,null,null,null,null,null,"Other (please define)"]
[]
[]
[]
[]
[null,null,null,null,null,null,null,null,null,null,null,null,null,null,null,null,null,null,null,null,null,null,null,null,null,null,null,null,null,null,null,null,null,null,null,null,null,null,null,"Please select"]
[null,null,null,null,null,null,null,null,null,null,null,null,null,null,null,null,null,null,null,null,null,null,null,null,null,null,null,null,null,null,null,null,null,null,null,null,null,null,null,"Travel expenses outside the country"]
[null,null,null,null,null,null,null,null,null,null,null,null,null,null,null,null,null,null,null,null,null,null,null,null,null,null,null,null,null,null,null,null,null,null,null,null,null,null,null,"Travel expenses in the country"]

{"sheet":"Expert sheet (26)","index":26,"n_rows":134,"n_cols":40,"rows_kept":134,"cut":false,"hidden":true,"merged":[[43,17,43,18],[44,12,44,13],[44,14,44,16],[45,12,45,13],[45,14,45,16],[43,12,43,13],[43,14,43,16],[19,0,19,1],[23,6,23,9],[23,10,23,12],[28,1,29,2],[28,3,28,5],[29,11,29,14],[19,6,19,9],[19,10,19,12],[20,6,20,9],[20,10,20,12],[22,6,22,9],[22,10,22,12],[21,6,21,9],[21,10,21,12],[54,3,54,4],[56,11,56,14],[49,12,49,13],[49,14,49,16],[50,12,50,13],[50,14,50,16],[51,12,51,13],[51,14,51,16],[52,12,52,13],[52,14,52,16],[53,12,53,13],[53,14,53,16],[54,12,54,13],[54,14,54,16],[46,12,46,13],[46,14,46,16],[47,12,47,13],[47,14,47,16],[48,12,48,13],[48,14,48,16],[39,1,39,2],[39,11,39,14],[39,15,39,16],[40,11,40,14],[40,15,40,16],[40,3,40,4],[37,1,37,2],[37,11,37,14],[37,15,37,16],[38,1,38,2],[38,11,38,14],[38,15,38,16],[35,1,35,2],[35,11,35,14],[35,15,35,16],[36,1,36,2],[36,11,36,14],[36,15,36,16],[33,1,33,2],[33,11,33,14],[33,15,33,16],[34,1,34,2],[34,11,34,14],[34,15,34,16],[31,1,31,2],[31,11,31,14],[31,15,31,16],[32,1,32,2],[32,11,32,14],[32,15,32,16],[29,15,29,16],[30,1,30,2],[30,11,30,14],[30,15,30,16],[24,6,24,9],[24,10,24,12],[13,11,13,12],[14,11,14,12],[16,20,16,21],[18,6,18,9],[18,10,18,12],[8,2,8,4],[9,2,9,4],[6,2,6,4],[6,11,7,12],[6,13,7,13],[7,2,7,4],[1,3,1,4],[1,7,1,9],[2,1,2,2],[2,3,2,4],[5,6,5,13]]}
["Statement on personnel deployment"]
[null,"Contract number:",null,"Processing no./Cost centre:",null,null,null,"Accounting period:"]
[null,{"$f":"'Invoice overview'!A28","v":0},null,{"$f":"'Invoice overview'!$C$28","v":0},null,null,null,null,null,{"$f":"_xlfn.TEXTJOIN(\"   \",FALSE,IF('Invoice overview'!$G$28 > 0, TEXT('Invoice overview'!$G$28,\"TT.MM.JJJJ\"),\"\"),\"until\",IF('Invoice overview'!$I$28 > 0,TEXT('Invoice overview'!$I$28,\"TT.MM.JJJJ\"),\"\"))","v":"   until   "}]
[]
[]
["Personal data"]
["Family name, given name:"]
["Function:",null,"Please select"]
["Description of function:"]
["Expert no. per price schedule"]
[]
[]
[]
[]
[]
[]
[]
[]
["Personnel costs",null,null,null,null,null,"Remarks",null,null,null,"Reserved for GIZ"]
["Remuneration item",null,"Accounting unit ","Rate","Quantity","Amount"]
["Fee (No. 5.4 General Conditions)",null,"Please select",null,null,{"$f":"SUM(E21*D21)","v":0}]
["Fee (No. 5.4 General Conditions)",null,"Please select",null,null,{"$f":"SUM(E22*D22)","v":0}]
[null,null,null,"Daily rate\nacc. to contract","Days"]
["Per diem (No. 5.6. General Conditions)",null,null,null,null,{"$f":"SUM(E24*D24)","v":0}]
["Accommodation (No. 5.7 General Conditions)",null,null,null,null,{"$f":"SUM(E25*D25)","v":0}]
[]
["Travel expenses"]
["Air travel (No. 5.8 General Conditions)"]
[null,"Type of flight",null,"Travel dates"]
["No.",null,null,"Destination","Start\n (dd/mm/yy)","End \n(dd/mm/yy)","Reimbursement type\n\nacc. to contract","Amount\n (per voucher or lump sum)","Currency","Exchange rate*","Amount ","Remarks",null,null,null,"Reserved for GIZ"]
[1,"Please select",null,null,null,null,"Please select",null,null,null,{"$f":"H31*J31","v":0}]
[2,null,null,null,null,null,null,null,null,null,{"$f":"H32*J32","v":0}]
[3,null,null,null,null,null,null,null,null,null,0]
[4,null,null,null,null,null,null,null,null,null,0]
[5,null,null,null,null,null,null,null,null,null,0]
[6,null,null,null,null,null,null,null,null,null,0]
[7,null,null,null,null,null,null,null,null,null,0]
[8,null,null,null,null,null,null,null,null,null,0]
[9,null,null,null,null,null,null,null,null,null,0]
[10,null,null,null,null,null,null,null,null,null,0]
["TOTAL",null,null,null,null,null,null,null,null,{"$f":"'Invoice overview'!F32","v":"EUR"},{"$f":"SUM(K31:K40)","v":0}]
[]
["Other travel expenses (No. 5.9 General Conditions)"]
["No.","Country of travel","Nature of travel expenses","Start\n(dd/mm/yy)","End \n(dd/mm/yy)","Reason for travel","Reimbursement type\nacc. to contract","Amount\n (per voucher or lump sum)","Quantity"," ","Currency","Exchange rate*","Amount ",null,"Remarks",null,null,"Reserved for GIZ"]
[1,null,"Please select",null,null,null,"Please select",null,null,null,null,null,{"$f":"IF(G45=\"Against evidence\",H45*L45,IF(G45=\"Lump sum\",H45*I45*L45,\"0,00\"))","v":"0,00"}]
[2,null,null,null,null,null,null,null,null,null,null,null,{"$f":"IF(G46=\"Against evidence\",H46*L46,IF(G46=\"Lump sum\",H46*I46*L46,\"0,00\"))","v":"0,00"}]
[3,null,null,null,null,null,null,null,null,null,null,null,"0,00"]
[4,null,null,null,null,null,null,null,null,null,null,null,"0,00"]
[5,null,null,null,null,null,null,null,null,null,null,null,"0,00"]
[6,null,null,null,null,null,null,null,null,null,null,null,"0,00"]
[7,null,null,null,null,null,null,null,null,null,null,null,"0,00"]
[8,null,null,null,null,null,null,null,null,null,null,null,"0,00"]
[9,null,null,null,null,null,null,null,null,null,null,null,"0,00"]
[10,null,null,null,null,null,null,null,null,null,null,null,"0,00"]
["TOTAL",null,null,null,null,null,null,null,null,null,null,{"$f":"'Invoice overview'!F32","v":"EUR"},{"$f":"SUM(M45:N54)","v":0}]
[]
[null,null,null,null,null,null,null,null,null,null,null,"Total for expert/contractor",null,null,null,{"$f":"SUM(M55,K41,F25,F24,F21,F22,)","v":0}]
[]
[]
[]
[]
[]
[]
[]
[]
[]
[]
[]
[]
[]
[]
[]
[]
[]
[]
[]
[]
[]
[]
[]
[]
[]
[]
[]
[]
[]
[]
[]
[]
[]
[]
[]
[]
[]
[]
[]
[]
[]
[]
[null,null,null,null,null,null,null,null,null,null,null,null,null,null,null,null,null,null,null,null,null,null,null,null,null,null,null,null,null,null,null,null,null,null,null,null,null,null,null,"Please select"]
[null,null,null,null,null,null,null,null,null,null,null,null,null,null,null,null,null,null,null,null,null,null,null,null,null,null,null,null,null,null,null,null,null,null,null,null,null,null,null,"Outward and homeward journeys"]
[null,null,null,null,null,null,null,null,null,null,null,null,null,null,null,null,null,null,null,null,null,null,null,null,null,null,null,null,null,null,null,null,null,null,null,null,null,null,null,"Regional and national flights"]
[null,null,null,null,null,null,null,null,null,null,null,null,null,null,null,null,null,null,null,null,null,null,null,null,null,null,null,null,null,null,null,null,null,null,null,null,null,null,null,"Other flights"]
[]
[null,null,null,null,null,null,null,null,null,null,null,null,null,null,null,null,null,null,null,null,null,null,null,null,null,null,null,null,null,null,null,null,null,null,null,null,null,null,null,"Please select"]
[null,null,null,null,null,null,null,null,null,null,null,null,null,null,null,null,null,null,null,null,null,null,null,null,null,null,null,null,null,null,null,null,null,null,null,null,null,null,null,"Hours"]
[null,null,null,null,null,null,null,null,null,null,null,null,null,null,null,null,null,null,null,null,null,null,null,null,null,null,null,null,null,null,null,null,null,null,null,null,null,null,null,"Standard lines"]
[null,null,null,null,null,null,null,null,null,null,null,null,null,null,null,null,null,null,null,null,null,null,null,null,null,null,null,null,null,null,null,null,null,null,null,null,null,null,null,"Days"]
[]
[]
[]
[null,null,null,null,null,null,null,null,null,null,null,null,null,null,null,null,null,null,null,null,null,null,null,null,null,null,null,null,null,null,null,null,null,null,null,null,null,null,null,"Please select"]
[null,null,null,null,null,null,null,null,null,null,null,null,null,null,null,null,null,null,null,null,null,null,null,null,null,null,null,null,null,null,null,null,null,null,null,null,null,null,null,"Expert (outward and homeward journeys)"]
[null,null,null,null,null,null,null,null,null,null,null,null,null,null,null,null,null,null,null,null,null,null,null,null,null,null,null,null,null,null,null,null,null,null,null,null,null,null,null,"Dependants (outward and homeward journeys) "]
[null,null,null,null,null,null,null,null,null,null,null,null,null,null,null,null,null,null,null,null,null,null,null,null,null,null,null,null,null,null,null,null,null,null,null,null,null,null,null,"Vacation flights"]
[null,null,null,null,null,null,null,null,null,null,null,null,null,null,null,null,null,null,null,null,null,null,null,null,null,null,null,null,null,null,null,null,null,null,null,null,null,null,null,"Regional and national flights"]
[null,null,null,null,null,null,null,null,null,null,null,null,null,null,null,null,null,null,null,null,null,null,null,null,null,null,null,null,null,null,null,null,null,null,null,null,null,null,null,"Other flights"]
[]
[null,null,null,null,null,null,null,null,null,null,null,null,null,null,null,null,null,null,null,null,null,null,null,null,null,null,null,null,null,null,null,null,null,null,null,null,null,null,null,"Please select"]
[null,null,null,null,null,null,null,null,null,null,null,null,null,null,null,null,null,null,null,null,null,null,null,null,null,null,null,null,null,null,null,null,null,null,null,null,null,null,null,"Lump sum"]
[null,null,null,null,null,null,null,null,null,null,null,null,null,null,null,null,null,null,null,null,null,null,null,null,null,null,null,null,null,null,null,null,null,null,null,null,null,null,null,"Against evidence"]
[]
[null,null,null,null,null,null,null,null,null,null,null,null,null,null,null,null,null,null,null,null,null,null,null,null,null,null,null,null,null,null,null,null,null,null,null,null,null,null,null,"Please select"]
[null,null,null,null,null,null,null,null,null,null,null,null,null,null,null,null,null,null,null,null,null,null,null,null,null,null,null,null,null,null,null,null,null,null,null,null,null,null,null,"International short-term expert"]
[null,null,null,null,null,null,null,null,null,null,null,null,null,null,null,null,null,null,null,null,null,null,null,null,null,null,null,null,null,null,null,null,null,null,null,null,null,null,null,"Regional short-term expert"]
[null,null,null,null,null,null,null,null,null,null,null,null,null,null,null,null,null,null,null,null,null,null,null,null,null,null,null,null,null,null,null,null,null,null,null,null,null,null,null,"National short-term expert"]
[null,null,null,null,null,null,null,null,null,null,null,null,null,null,null,null,null,null,null,null,null,null,null,null,null,null,null,null,null,null,null,null,null,null,null,null,null,null,null,"Other (please define)"]
[]
[]
[]
[]
[null,null,null,null,null,null,null,null,null,null,null,null,null,null,null,null,null,null,null,null,null,null,null,null,null,null,null,null,null,null,null,null,null,null,null,null,null,null,null,"Please select"]
[null,null,null,null,null,null,null,null,null,null,null,null,null,null,null,null,null,null,null,null,null,null,null,null,null,null,null,null,null,null,null,null,null,null,null,null,null,null,null,"Travel expenses outside the country"]
[null,null,null,null,null,null,null,null,null,null,null,null,null,null,null,null,null,null,null,null,null,null,null,null,null,null,null,null,null,null,null,null,null,null,null,null,null,null,null,"Travel expenses in the country"]

{"sheet":"Expert sheet (27)","index":27,"n_rows":134,"n_cols":40,"rows_kept":134,"cut":false,"hidden":true,"merged":[[43,17,43,18],[44,12,44,13],[44,14,44,16],[45,12,45,13],[45,14,45,16],[43,12,43,13],[43,14,43,16],[19,0,19,1],[23,6,23,9],[23,10,23,12],[28,1,29,2],[28,3,28,5],[29,11,29,14],[19,6,19,9],[19,10,19,12],[20,6,20,9],[20,10,20,12],[22,6,22,9],[22,10,22,12],[21,6,21,9],[21,10,21,12],[54,3,54,4],[56,11,56,14],[49,12,49,13],[49,14,49,16],[50,12,50,13],[50,14,50,16],[51,12,51,13],[51,14,51,16],[52,12,52,13],[52,14,52,16],[53,12,53,13],[53,14,53,16],[54,12,54,13],[54,14,54,16],[46,12,46,13],[46,14,46,16],[47,12,47,13],[47,14,47,16],[48,12,48,13],[48,14,48,16],[39,1,39,2],[39,11,39,14],[39,15,39,16],[40,11,40,14],[40,15,40,16],[40,3,40,4],[37,1,37,2],[37,11,37,14],[37,15,37,16],[38,1,38,2],[38,11,38,14],[38,15,38,16],[35,1,35,2],[35,11,35,14],[35,15,35,16],[36,1,36,2],[36,11,36,14],[36,15,36,16],[33,1,33,2],[33,11,33,14],[33,15,33,16],[34,1,34,2],[34,11,34,14],[34,15,34,16],[31,1,31,2],[31,11,31,14],[31,15,31,16],[32,1,32,2],[32,11,32,14],[32,15,32,16],[29,15,29,16],[30,1,30,2],[30,11,30,14],[30,15,30,16],[24,6,24,9],[24,10,24,12],[13,11,13,12],[14,11,14,12],[16,20,16,21],[18,6,18,9],[18,10,18,12],[8,2,8,4],[9,2,9,4],[6,2,6,4],[6,11,7,12],[6,13,7,13],[7,2,7,4],[1,3,1,4],[1,7,1,9],[2,1,2,2],[2,3,2,4],[5,6,5,13]]}
["Statement on personnel deployment"]
[null,"Contract number:",null,"Processing no./Cost centre:",null,null,null,"Accounting period:"]
[null,{"$f":"'Invoice overview'!A28","v":0},null,{"$f":"'Invoice overview'!$C$28","v":0},null,null,null,null,null,{"$f":"_xlfn.TEXTJOIN(\"   \",FALSE,IF('Invoice overview'!$G$28 > 0, TEXT('Invoice overview'!$G$28,\"TT.MM.JJJJ\"),\"\"),\"until\",IF('Invoice overview'!$I$28 > 0,TEXT('Invoice overview'!$I$28,\"TT.MM.JJJJ\"),\"\"))","v":"   until   "}]
[]
[]
["Personal data"]
["Family name, given name:"]
["Function:",null,"Please select"]
["Description of function:"]
["Expert no. per price schedule"]
[]
[]
[]
[]
[]
[]
[]
[]
["Personnel costs",null,null,null,null,null,"Remarks",null,null,null,"Reserved for GIZ"]
["Remuneration item",null,"Accounting unit ","Rate","Quantity","Amount"]
["Fee (No. 5.4 General Conditions)",null,"Please select",null,null,{"$f":"SUM(E21*D21)","v":0}]
["Fee (No. 5.4 General Conditions)",null,"Please select",null,null,{"$f":"SUM(E22*D22)","v":0}]
[null,null,null,"Daily rate\nacc. to contract","Days"]
["Per diem (No. 5.6. General Conditions)",null,null,null,null,{"$f":"SUM(E24*D24)","v":0}]
["Accommodation (No. 5.7 General Conditions)",null,null,null,null,{"$f":"SUM(E25*D25)","v":0}]
[]
["Travel expenses"]
["Air travel (No. 5.8 General Conditions)"]
[null,"Type of flight",null,"Travel dates"]
["No.",null,null,"Destination","Start\n (dd/mm/yy)","End \n(dd/mm/yy)","Reimbursement type\n\nacc. to contract","Amount\n (per voucher or lump sum)","Currency","Exchange rate*","Amount ","Remarks",null,null,null,"Reserved for GIZ"]
[1,"Please select",null,null,null,null,"Please select",null,null,null,{"$f":"H31*J31","v":0}]
[2,null,null,null,null,null,null,null,null,null,{"$f":"H32*J32","v":0}]
[3,null,null,null,null,null,null,null,null,null,0]
[4,null,null,null,null,null,null,null,null,null,0]
[5,null,null,null,null,null,null,null,null,null,0]
[6,null,null,null,null,null,null,null,null,null,0]
[7,null,null,null,null,null,null,null,null,null,0]
[8,null,null,null,null,null,null,null,null,null,0]
[9,null,null,null,null,null,null,null,null,null,0]
[10,null,null,null,null,null,null,null,null,null,0]
["TOTAL",null,null,null,null,null,null,null,null,{"$f":"'Invoice overview'!F32","v":"EUR"},{"$f":"SUM(K31:K40)","v":0}]
[]
["Other travel expenses (No. 5.9 General Conditions)"]
["No.","Country of travel","Nature of travel expenses","Start\n(dd/mm/yy)","End \n(dd/mm/yy)","Reason for travel","Reimbursement type\nacc. to contract","Amount\n (per voucher or lump sum)","Quantity"," ","Currency","Exchange rate*","Amount ",null,"Remarks",null,null,"Reserved for GIZ"]
[1,null,"Please select",null,null,null,"Please select",null,null,null,null,null,{"$f":"IF(G45=\"Against evidence\",H45*L45,IF(G45=\"Lump sum\",H45*I45*L45,\"0,00\"))","v":"0,00"}]
[2,null,null,null,null,null,null,null,null,null,null,null,{"$f":"IF(G46=\"Against evidence\",H46*L46,IF(G46=\"Lump sum\",H46*I46*L46,\"0,00\"))","v":"0,00"}]
[3,null,null,null,null,null,null,null,null,null,null,null,"0,00"]
[4,null,null,null,null,null,null,null,null,null,null,null,"0,00"]
[5,null,null,null,null,null,null,null,null,null,null,null,"0,00"]
[6,null,null,null,null,null,null,null,null,null,null,null,"0,00"]
[7,null,null,null,null,null,null,null,null,null,null,null,"0,00"]
[8,null,null,null,null,null,null,null,null,null,null,null,"0,00"]
[9,null,null,null,null,null,null,null,null,null,null,null,"0,00"]
[10,null,null,null,null,null,null,null,null,null,null,null,"0,00"]
["TOTAL",null,null,null,null,null,null,null,null,null,null,{"$f":"'Invoice overview'!F32","v":"EUR"},{"$f":"SUM(M45:N54)","v":0}]
[]
[null,null,null,null,null,null,null,null,null,null,null,"Total for expert/contractor",null,null,null,{"$f":"SUM(M55,K41,F25,F24,F21,F22,)","v":0}]
[]
[]
[]
[]
[]
[]
[]
[]
[]
[]
[]
[]
[]
[]
[]
[]
[]
[]
[]
[]
[]
[]
[]
[]
[]
[]
[]
[]
[]
[]
[]
[]
[]
[]
[]
[]
[]
[]
[]
[]
[]
[]
[null,null,null,null,null,null,null,null,null,null,null,null,null,null,null,null,null,null,null,null,null,null,null,null,null,null,null,null,null,null,null,null,null,null,null,null,null,null,null,"Please select"]
[null,null,null,null,null,null,null,null,null,null,null,null,null,null,null,null,null,null,null,null,null,null,null,null,null,null,null,null,null,null,null,null,null,null,null,null,null,null,null,"Outward and homeward journeys"]
[null,null,null,null,null,null,null,null,null,null,null,null,null,null,null,null,null,null,null,null,null,null,null,null,null,null,null,null,null,null,null,null,null,null,null,null,null,null,null,"Regional and national flights"]
[null,null,null,null,null,null,null,null,null,null,null,null,null,null,null,null,null,null,null,null,null,null,null,null,null,null,null,null,null,null,null,null,null,null,null,null,null,null,null,"Other flights"]
[]
[null,null,null,null,null,null,null,null,null,null,null,null,null,null,null,null,null,null,null,null,null,null,null,null,null,null,null,null,null,null,null,null,null,null,null,null,null,null,null,"Please select"]
[null,null,null,null,null,null,null,null,null,null,null,null,null,null,null,null,null,null,null,null,null,null,null,null,null,null,null,null,null,null,null,null,null,null,null,null,null,null,null,"Hours"]
[null,null,null,null,null,null,null,null,null,null,null,null,null,null,null,null,null,null,null,null,null,null,null,null,null,null,null,null,null,null,null,null,null,null,null,null,null,null,null,"Standard lines"]
[null,null,null,null,null,null,null,null,null,null,null,null,null,null,null,null,null,null,null,null,null,null,null,null,null,null,null,null,null,null,null,null,null,null,null,null,null,null,null,"Days"]
[]
[]
[]
[null,null,null,null,null,null,null,null,null,null,null,null,null,null,null,null,null,null,null,null,null,null,null,null,null,null,null,null,null,null,null,null,null,null,null,null,null,null,null,"Please select"]
[null,null,null,null,null,null,null,null,null,null,null,null,null,null,null,null,null,null,null,null,null,null,null,null,null,null,null,null,null,null,null,null,null,null,null,null,null,null,null,"Expert (outward and homeward journeys)"]
[null,null,null,null,null,null,null,null,null,null,null,null,null,null,null,null,null,null,null,null,null,null,null,null,null,null,null,null,null,null,null,null,null,null,null,null,null,null,null,"Dependants (outward and homeward journeys) "]
[null,null,null,null,null,null,null,null,null,null,null,null,null,null,null,null,null,null,null,null,null,null,null,null,null,null,null,null,null,null,null,null,null,null,null,null,null,null,null,"Vacation flights"]
[null,null,null,null,null,null,null,null,null,null,null,null,null,null,null,null,null,null,null,null,null,null,null,null,null,null,null,null,null,null,null,null,null,null,null,null,null,null,null,"Regional and national flights"]
[null,null,null,null,null,null,null,null,null,null,null,null,null,null,null,null,null,null,null,null,null,null,null,null,null,null,null,null,null,null,null,null,null,null,null,null,null,null,null,"Other flights"]
[]
[null,null,null,null,null,null,null,null,null,null,null,null,null,null,null,null,null,null,null,null,null,null,null,null,null,null,null,null,null,null,null,null,null,null,null,null,null,null,null,"Please select"]
[null,null,null,null,null,null,null,null,null,null,null,null,null,null,null,null,null,null,null,null,null,null,null,null,null,null,null,null,null,null,null,null,null,null,null,null,null,null,null,"Lump sum"]
[null,null,null,null,null,null,null,null,null,null,null,null,null,null,null,null,null,null,null,null,null,null,null,null,null,null,null,null,null,null,null,null,null,null,null,null,null,null,null,"Against evidence"]
[]
[null,null,null,null,null,null,null,null,null,null,null,null,null,null,null,null,null,null,null,null,null,null,null,null,null,null,null,null,null,null,null,null,null,null,null,null,null,null,null,"Please select"]
[null,null,null,null,null,null,null,null,null,null,null,null,null,null,null,null,null,null,null,null,null,null,null,null,null,null,null,null,null,null,null,null,null,null,null,null,null,null,null,"International short-term expert"]
[null,null,null,null,null,null,null,null,null,null,null,null,null,null,null,null,null,null,null,null,null,null,null,null,null,null,null,null,null,null,null,null,null,null,null,null,null,null,null,"Regional short-term expert"]
[null,null,null,null,null,null,null,null,null,null,null,null,null,null,null,null,null,null,null,null,null,null,null,null,null,null,null,null,null,null,null,null,null,null,null,null,null,null,null,"National short-term expert"]
[null,null,null,null,null,null,null,null,null,null,null,null,null,null,null,null,null,null,null,null,null,null,null,null,null,null,null,null,null,null,null,null,null,null,null,null,null,null,null,"Other (please define)"]
[]
[]
[]
[]
[null,null,null,null,null,null,null,null,null,null,null,null,null,null,null,null,null,null,null,null,null,null,null,null,null,null,null,null,null,null,null,null,null,null,null,null,null,null,null,"Please select"]
[null,null,null,null,null,null,null,null,null,null,null,null,null,null,null,null,null,null,null,null,null,null,null,null,null,null,null,null,null,null,null,null,null,null,null,null,null,null,null,"Travel expenses outside the country"]
[null,null,null,null,null,null,null,null,null,null,null,null,null,null,null,null,null,null,null,null,null,null,null,null,null,null,null,null,null,null,null,null,null,null,null,null,null,null,null,"Travel expenses in the country"]

{"sheet":"Expert sheet (28)","index":28,"n_rows":134,"n_cols":40,"rows_kept":134,"cut":false,"hidden":true,"merged":[[43,17,43,18],[44,12,44,13],[44,14,44,16],[45,12,45,13],[45,14,45,16],[43,12,43,13],[43,14,43,16],[19,0,19,1],[23,6,23,9],[23,10,23,12],[28,1,29,2],[28,3,28,5],[29,11,29,14],[19,6,19,9],[19,10,19,12],[20,6,20,9],[20,10,20,12],[22,6,22,9],[22,10,22,12],[21,6,21,9],[21,10,21,12],[54,3,54,4],[56,11,56,14],[49,12,49,13],[49,14,49,16],[50,12,50,13],[50,14,50,16],[51,12,51,13],[51,14,51,16],[52,12,52,13],[52,14,52,16],[53,12,53,13],[53,14,53,16],[54,12,54,13],[54,14,54,16],[46,12,46,13],[46,14,46,16],[47,12,47,13],[47,14,47,16],[48,12,48,13],[48,14,48,16],[39,1,39,2],[39,11,39,14],[39,15,39,16],[40,11,40,14],[40,15,40,16],[40,3,40,4],[37,1,37,2],[37,11,37,14],[37,15,37,16],[38,1,38,2],[38,11,38,14],[38,15,38,16],[35,1,35,2],[35,11,35,14],[35,15,35,16],[36,1,36,2],[36,11,36,14],[36,15,36,16],[33,1,33,2],[33,11,33,14],[33,15,33,16],[34,1,34,2],[34,11,34,14],[34,15,34,16],[31,1,31,2],[31,11,31,14],[31,15,31,16],[32,1,32,2],[32,11,32,14],[32,15,32,16],[29,15,29,16],[30,1,30,2],[30,11,30,14],[30,15,30,16],[24,6,24,9],[24,10,24,12],[13,11,13,12],[14,11,14,12],[16,20,16,21],[18,6,18,9],[18,10,18,12],[8,2,8,4],[9,2,9,4],[6,2,6,4],[6,11,7,12],[6,13,7,13],[7,2,7,4],[1,3,1,4],[1,7,1,9],[2,1,2,2],[2,3,2,4],[5,6,5,13]]}
["Statement on personnel deployment"]
[null,"Contract number:",null,"Processing no./Cost centre:",null,null,null,"Accounting period:"]
[null,{"$f":"'Invoice overview'!A28","v":0},null,{"$f":"'Invoice overview'!$C$28","v":0},null,null,null,null,null,{"$f":"_xlfn.TEXTJOIN(\"   \",FALSE,IF('Invoice overview'!$G$28 > 0, TEXT('Invoice overview'!$G$28,\"TT.MM.JJJJ\"),\"\"),\"until\",IF('Invoice overview'!$I$28 > 0,TEXT('Invoice overview'!$I$28,\"TT.MM.JJJJ\"),\"\"))","v":"   until   "}]
[]
[]
["Personal data"]
["Family name, given name:"]
["Function:",null,"Please select"]
["Description of function:"]
["Expert no. per price schedule"]
[]
[]
[]
[]
[]
[]
[]
[]
["Personnel costs",null,null,null,null,null,"Remarks",null,null,null,"Reserved for GIZ"]
["Remuneration item",null,"Accounting unit ","Rate","Quantity","Amount"]
["Fee (No. 5.4 General Conditions)",null,"Please select",null,null,{"$f":"SUM(E21*D21)","v":0}]
["Fee (No. 5.4 General Conditions)",null,"Please select",null,null,{"$f":"SUM(E22*D22)","v":0}]
[null,null,null,"Daily rate\nacc. to contract","Days"]
["Per diem (No. 5.6. General Conditions)",null,null,null,null,{"$f":"SUM(E24*D24)","v":0}]
["Accommodation (No. 5.7 General Conditions)",null,null,null,null,{"$f":"SUM(E25*D25)","v":0}]
[]
["Travel expenses"]
["Air travel (No. 5.8 General Conditions)"]
[null,"Type of flight",null,"Travel dates"]
["No.",null,null,"Destination","Start\n (dd/mm/yy)","End \n(dd/mm/yy)","Reimbursement type\n\nacc. to contract","Amount\n (per voucher or lump sum)","Currency","Exchange rate*","Amount ","Remarks",null,null,null,"Reserved for GIZ"]
[1,"Please select",null,null,null,null,"Please select",null,null,null,{"$f":"H31*J31","v":0}]
[2,null,null,null,null,null,null,null,null,null,{"$f":"H32*J32","v":0}]
[3,null,null,null,null,null,null,null,null,null,0]
[4,null,null,null,null,null,null,null,null,null,0]
[5,null,null,null,null,null,null,null,null,null,0]
[6,null,null,null,null,null,null,null,null,null,0]
[7,null,null,null,null,null,null,null,null,null,0]
[8,null,null,null,null,null,null,null,null,null,0]
[9,null,null,null,null,null,null,null,null,null,0]
[10,null,null,null,null,null,null,null,null,null,0]
["TOTAL",null,null,null,null,null,null,null,null,{"$f":"'Invoice overview'!F32","v":"EUR"},{"$f":"SUM(K31:K40)","v":0}]
[]
["Other travel expenses (No. 5.9 General Conditions)"]
["No.","Country of travel","Nature of travel expenses","Start\n(dd/mm/yy)","End \n(dd/mm/yy)","Reason for travel","Reimbursement type\nacc. to contract","Amount\n (per voucher or lump sum)","Quantity"," ","Currency","Exchange rate*","Amount ",null,"Remarks",null,null,"Reserved for GIZ"]
[1,null,"Please select",null,null,null,"Please select",null,null,null,null,null,{"$f":"IF(G45=\"Against evidence\",H45*L45,IF(G45=\"Lump sum\",H45*I45*L45,\"0,00\"))","v":"0,00"}]
[2,null,null,null,null,null,null,null,null,null,null,null,{"$f":"IF(G46=\"Against evidence\",H46*L46,IF(G46=\"Lump sum\",H46*I46*L46,\"0,00\"))","v":"0,00"}]
[3,null,null,null,null,null,null,null,null,null,null,null,"0,00"]
[4,null,null,null,null,null,null,null,null,null,null,null,"0,00"]
[5,null,null,null,null,null,null,null,null,null,null,null,"0,00"]
[6,null,null,null,null,null,null,null,null,null,null,null,"0,00"]
[7,null,null,null,null,null,null,null,null,null,null,null,"0,00"]
[8,null,null,null,null,null,null,null,null,null,null,null,"0,00"]
[9,null,null,null,null,null,null,null,null,null,null,null,"0,00"]
[10,null,null,null,null,null,null,null,null,null,null,null,"0,00"]
["TOTAL",null,null,null,null,null,null,null,null,null,null,{"$f":"'Invoice overview'!F32","v":"EUR"},{"$f":"SUM(M45:N54)","v":0}]
[]
[null,null,null,null,null,null,null,null,null,null,null,"Total for expert/contractor",null,null,null,{"$f":"SUM(M55,K41,F25,F24,F21,F22,)","v":0}]
[]
[]
[]
[]
[]
[]
[]
[]
[]
[]
[]
[]
[]
[]
[]
[]
[]
[]
[]
[]
[]
[]
[]
[]
[]
[]
[]
[]
[]
[]
[]
[]
[]
[]
[]
[]
[]
[]
[]
[]
[]
[]
[null,null,null,null,null,null,null,null,null,null,null,null,null,null,null,null,null,null,null,null,null,null,null,null,null,null,null,null,null,null,null,null,null,null,null,null,null,null,null,"Please select"]
[null,null,null,null,null,null,null,null,null,null,null,null,null,null,null,null,null,null,null,null,null,null,null,null,null,null,null,null,null,null,null,null,null,null,null,null,null,null,null,"Outward and homeward journeys"]
[null,null,null,null,null,null,null,null,null,null,null,null,null,null,null,null,null,null,null,null,null,null,null,null,null,null,null,null,null,null,null,null,null,null,null,null,null,null,null,"Regional and national flights"]
[null,null,null,null,null,null,null,null,null,null,null,null,null,null,null,null,null,null,null,null,null,null,null,null,null,null,null,null,null,null,null,null,null,null,null,null,null,null,null,"Other flights"]
[]
[null,null,null,null,null,null,null,null,null,null,null,null,null,null,null,null,null,null,null,null,null,null,null,null,null,null,null,null,null,null,null,null,null,null,null,null,null,null,null,"Please select"]
[null,null,null,null,null,null,null,null,null,null,null,null,null,null,null,null,null,null,null,null,null,null,null,null,null,null,null,null,null,null,null,null,null,null,null,null,null,null,null,"Hours"]
[null,null,null,null,null,null,null,null,null,null,null,null,null,null,null,null,null,null,null,null,null,null,null,null,null,null,null,null,null,null,null,null,null,null,null,null,null,null,null,"Standard lines"]
[null,null,null,null,null,null,null,null,null,null,null,null,null,null,null,null,null,null,null,null,null,null,null,null,null,null,null,null,null,null,null,null,null,null,null,null,null,null,null,"Days"]
[]
[]
[]
[null,null,null,null,null,null,null,null,null,null,null,null,null,null,null,null,null,null,null,null,null,null,null,null,null,null,null,null,null,null,null,null,null,null,null,null,null,null,null,"Please select"]
[null,null,null,null,null,null,null,null,null,null,null,null,null,null,null,null,null,null,null,null,null,null,null,null,null,null,null,null,null,null,null,null,null,null,null,null,null,null,null,"Expert (outward and homeward journeys)"]
[null,null,null,null,null,null,null,null,null,null,null,null,null,null,null,null,null,null,null,null,null,null,null,null,null,null,null,null,null,null,null,null,null,null,null,null,null,null,null,"Dependants (outward and homeward journeys) "]
[null,null,null,null,null,null,null,null,null,null,null,null,null,null,null,null,null,null,null,null,null,null,null,null,null,null,null,null,null,null,null,null,null,null,null,null,null,null,null,"Vacation flights"]
[null,null,null,null,null,null,null,null,null,null,null,null,null,null,null,null,null,null,null,null,null,null,null,null,null,null,null,null,null,null,null,null,null,null,null,null,null,null,null,"Regional and national flights"]
[null,null,null,null,null,null,null,null,null,null,null,null,null,null,null,null,null,null,null,null,null,null,null,null,null,null,null,null,null,null,null,null,null,null,null,null,null,null,null,"Other flights"]
[]
[null,null,null,null,null,null,null,null,null,null,null,null,null,null,null,null,null,null,null,null,null,null,null,null,null,null,null,null,null,null,null,null,null,null,null,null,null,null,null,"Please select"]
[null,null,null,null,null,null,null,null,null,null,null,null,null,null,null,null,null,null,null,null,null,null,null,null,null,null,null,null,null,null,null,null,null,null,null,null,null,null,null,"Lump sum"]
[null,null,null,null,null,null,null,null,null,null,null,null,null,null,null,null,null,null,null,null,null,null,null,null,null,null,null,null,null,null,null,null,null,null,null,null,null,null,null,"Against evidence"]
[]
[null,null,null,null,null,null,null,null,null,null,null,null,null,null,null,null,null,null,null,null,null,null,null,null,null,null,null,null,null,null,null,null,null,null,null,null,null,null,null,"Please select"]
[null,null,null,null,null,null,null,null,null,null,null,null,null,null,null,null,null,null,null,null,null,null,null,null,null,null,null,null,null,null,null,null,null,null,null,null,null,null,null,"International short-term expert"]
[null,null,null,null,null,null,null,null,null,null,null,null,null,null,null,null,null,null,null,null,null,null,null,null,null,null,null,null,null,null,null,null,null,null,null,null,null,null,null,"Regional short-term expert"]
[null,null,null,null,null,null,null,null,null,null,null,null,null,null,null,null,null,null,null,null,null,null,null,null,null,null,null,null,null,null,null,null,null,null,null,null,null,null,null,"National short-term expert"]
[null,null,null,null,null,null,null,null,null,null,null,null,null,null,null,null,null,null,null,null,null,null,null,null,null,null,null,null,null,null,null,null,null,null,null,null,null,null,null,"Other (please define)"]
[]
[]
[]
[]
[null,null,null,null,null,null,null,null,null,null,null,null,null,null,null,null,null,null,null,null,null,null,null,null,null,null,null,null,null,null,null,null,null,null,null,null,null,null,null,"Please select"]
[null,null,null,null,null,null,null,null,null,null,null,null,null,null,null,null,null,null,null,null,null,null,null,null,null,null,null,null,null,null,null,null,null,null,null,null,null,null,null,"Travel expenses outside the country"]
[null,null,null,null,null,null,null,null,null,null,null,null,null,null,null,null,null,null,null,null,null,null,null,null,null,null,null,null,null,null,null,null,null,null,null,null,null,null,null,"Travel expenses in the country"]

{"sheet":"Expert sheet (29)","index":29,"n_rows":134,"n_cols":40,"rows_kept":134,"cut":false,"hidden":true,"merged":[[43,17,43,18],[44,12,44,13],[44,14,44,16],[45,12,45,13],[45,14,45,16],[43,12,43,13],[43,14,43,16],[19,0,19,1],[23,6,23,9],[23,10,23,12],[28,1,29,2],[28,3,28,5],[29,11,29,14],[19,6,19,9],[19,10,19,12],[20,6,20,9],[20,10,20,12],[22,6,22,9],[22,10,22,12],[21,6,21,9],[21,10,21,12],[54,3,54,4],[56,11,56,14],[49,12,49,13],[49,14,49,16],[50,12,50,13],[50,14,50,16],[51,12,51,13],[51,14,51,16],[52,12,52,13],[52,14,52,16],[53,12,53,13],[53,14,53,16],[54,12,54,13],[54,14,54,16],[46,12,46,13],[46,14,46,16],[47,12,47,13],[47,14,47,16],[48,12,48,13],[48,14,48,16],[39,1,39,2],[39,11,39,14],[39,15,39,16],[40,11,40,14],[40,15,40,16],[40,3,40,4],[37,1,37,2],[37,11,37,14],[37,15,37,16],[38,1,38,2],[38,11,38,14],[38,15,38,16],[35,1,35,2],[35,11,35,14],[35,15,35,16],[36,1,36,2],[36,11,36,14],[36,15,36,16],[33,1,33,2],[33,11,33,14],[33,15,33,16],[34,1,34,2],[34,11,34,14],[34,15,34,16],[31,1,31,2],[31,11,31,14],[31,15,31,16],[32,1,32,2],[32,11,32,14],[32,15,32,16],[29,15,29,16],[30,1,30,2],[30,11,30,14],[30,15,30,16],[24,6,24,9],[24,10,24,12],[13,11,13,12],[14,11,14,12],[16,20,16,21],[18,6,18,9],[18,10,18,12],[8,2,8,4],[9,2,9,4],[6,2,6,4],[6,11,7,12],[6,13,7,13],[7,2,7,4],[1,3,1,4],[1,7,1,9],[2,1,2,2],[2,3,2,4],[5,6,5,13]]}
["Statement on personnel deployment"]
[null,"Contract number:",null,"Processing no./Cost centre:",null,null,null,"Accounting period:"]
[null,{"$f":"'Invoice overview'!A28","v":0},null,{"$f":"'Invoice overview'!$C$28","v":0},null,null,null,null,null,{"$f":"_xlfn.TEXTJOIN(\"   \",FALSE,IF('Invoice overview'!$G$28 > 0, TEXT('Invoice overview'!$G$28,\"TT.MM.JJJJ\"),\"\"),\"until\",IF('Invoice overview'!$I$28 > 0,TEXT('Invoice overview'!$I$28,\"TT.MM.JJJJ\"),\"\"))","v":"   until   "}]
[]
[]
["Personal data"]
["Family name, given name:"]
["Function:",null,"Please select"]
["Description of function:"]
["Expert no. per price schedule"]
[]
[]
[]
[]
[]
[]
[]
[]
["Personnel costs",null,null,null,null,null,"Remarks",null,null,null,"Reserved for GIZ"]
["Remuneration item",null,"Accounting unit ","Rate","Quantity","Amount"]
["Fee (No. 5.4 General Conditions)",null,"Please select",null,null,{"$f":"SUM(E21*D21)","v":0}]
["Fee (No. 5.4 General Conditions)",null,"Please select",null,null,{"$f":"SUM(E22*D22)","v":0}]
[null,null,null,"Daily rate\nacc. to contract","Days"]
["Per diem (No. 5.6. General Conditions)",null,null,null,null,{"$f":"SUM(E24*D24)","v":0}]
["Accommodation (No. 5.7 General Conditions)",null,null,null,null,{"$f":"SUM(E25*D25)","v":0}]
[]
["Travel expenses"]
["Air travel (No. 5.8 General Conditions)"]
[null,"Type of flight",null,"Travel dates"]
["No.",null,null,"Destination","Start\n (dd/mm/yy)","End \n(dd/mm/yy)","Reimbursement type\n\nacc. to contract","Amount\n (per voucher or lump sum)","Currency","Exchange rate*","Amount ","Remarks",null,null,null,"Reserved for GIZ"]
[1,"Please select",null,null,null,null,"Please select",null,null,null,{"$f":"H31*J31","v":0}]
[2,null,null,null,null,null,null,null,null,null,{"$f":"H32*J32","v":0}]
[3,null,null,null,null,null,null,null,null,null,0]
[4,null,null,null,null,null,null,null,null,null,0]
[5,null,null,null,null,null,null,null,null,null,0]
[6,null,null,null,null,null,null,null,null,null,0]
[7,null,null,null,null,null,null,null,null,null,0]
[8,null,null,null,null,null,null,null,null,null,0]
[9,null,null,null,null,null,null,null,null,null,0]
[10,null,null,null,null,null,null,null,null,null,0]
["TOTAL",null,null,null,null,null,null,null,null,{"$f":"'Invoice overview'!F32","v":"EUR"},{"$f":"SUM(K31:K40)","v":0}]
[]
["Other travel expenses (No. 5.9 General Conditions)"]
["No.","Country of travel","Nature of travel expenses","Start\n(dd/mm/yy)","End \n(dd/mm/yy)","Reason for travel","Reimbursement type\nacc. to contract","Amount\n (per voucher or lump sum)","Quantity"," ","Currency","Exchange rate*","Amount ",null,"Remarks",null,null,"Reserved for GIZ"]
[1,null,"Please select",null,null,null,"Please select",null,null,null,null,null,{"$f":"IF(G45=\"Against evidence\",H45*L45,IF(G45=\"Lump sum\",H45*I45*L45,\"0,00\"))","v":"0,00"}]
[2,null,null,null,null,null,null,null,null,null,null,null,{"$f":"IF(G46=\"Against evidence\",H46*L46,IF(G46=\"Lump sum\",H46*I46*L46,\"0,00\"))","v":"0,00"}]
[3,null,null,null,null,null,null,null,null,null,null,null,"0,00"]
[4,null,null,null,null,null,null,null,null,null,null,null,"0,00"]
[5,null,null,null,null,null,null,null,null,null,null,null,"0,00"]
[6,null,null,null,null,null,null,null,null,null,null,null,"0,00"]
[7,null,null,null,null,null,null,null,null,null,null,null,"0,00"]
[8,null,null,null,null,null,null,null,null,null,null,null,"0,00"]
[9,null,null,null,null,null,null,null,null,null,null,null,"0,00"]
[10,null,null,null,null,null,null,null,null,null,null,null,"0,00"]
["TOTAL",null,null,null,null,null,null,null,null,null,null,{"$f":"'Invoice overview'!F32","v":"EUR"},{"$f":"SUM(M45:N54)","v":0}]
[]
[null,null,null,null,null,null,null,null,null,null,null,"Total for expert/contractor",null,null,null,{"$f":"SUM(M55,K41,F25,F24,F21,F22,)","v":0}]
[]
[]
[]
[]
[]
[]
[]
[]
[]
[]
[]
[]
[]
[]
[]
[]
[]
[]
[]
[]
[]
[]
[]
[]
[]
[]
[]
[]
[]
[]
[]
[]
[]
[]
[]
[]
[]
[]
[]
[]
[]
[]
[null,null,null,null,null,null,null,null,null,null,null,null,null,null,null,null,null,null,null,null,null,null,null,null,null,null,null,null,null,null,null,null,null,null,null,null,null,null,null,"Please select"]
[null,null,null,null,null,null,null,null,null,null,null,null,null,null,null,null,null,null,null,null,null,null,null,null,null,null,null,null,null,null,null,null,null,null,null,null,null,null,null,"Outward and homeward journeys"]
[null,null,null,null,null,null,null,null,null,null,null,null,null,null,null,null,null,null,null,null,null,null,null,null,null,null,null,null,null,null,null,null,null,null,null,null,null,null,null,"Regional and national flights"]
[null,null,null,null,null,null,null,null,null,null,null,null,null,null,null,null,null,null,null,null,null,null,null,null,null,null,null,null,null,null,null,null,null,null,null,null,null,null,null,"Other flights"]
[]
[null,null,null,null,null,null,null,null,null,null,null,null,null,null,null,null,null,null,null,null,null,null,null,null,null,null,null,null,null,null,null,null,null,null,null,null,null,null,null,"Please select"]
[null,null,null,null,null,null,null,null,null,null,null,null,null,null,null,null,null,null,null,null,null,null,null,null,null,null,null,null,null,null,null,null,null,null,null,null,null,null,null,"Hours"]
[null,null,null,null,null,null,null,null,null,null,null,null,null,null,null,null,null,null,null,null,null,null,null,null,null,null,null,null,null,null,null,null,null,null,null,null,null,null,null,"Standard lines"]
[null,null,null,null,null,null,null,null,null,null,null,null,null,null,null,null,null,null,null,null,null,null,null,null,null,null,null,null,null,null,null,null,null,null,null,null,null,null,null,"Days"]
[]
[]
[]
[null,null,null,null,null,null,null,null,null,null,null,null,null,null,null,null,null,null,null,null,null,null,null,null,null,null,null,null,null,null,null,null,null,null,null,null,null,null,null,"Please select"]
[null,null,null,null,null,null,null,null,null,null,null,null,null,null,null,null,null,null,null,null,null,null,null,null,null,null,null,null,null,null,null,null,null,null,null,null,null,null,null,"Expert (outward and homeward journeys)"]
[null,null,null,null,null,null,null,null,null,null,null,null,null,null,null,null,null,null,null,null,null,null,null,null,null,null,null,null,null,null,null,null,null,null,null,null,null,null,null,"Dependants (outward and homeward journeys) "]
[null,null,null,null,null,null,null,null,null,null,null,null,null,null,null,null,null,null,null,null,null,null,null,null,null,null,null,null,null,null,null,null,null,null,null,null,null,null,null,"Vacation flights"]
[null,null,null,null,null,null,null,null,null,null,null,null,null,null,null,null,null,null,null,null,null,null,null,null,null,null,null,null,null,null,null,null,null,null,null,null,null,null,null,"Regional and national flights"]
[null,null,null,null,null,null,null,null,null,null,null,null,null,null,null,null,null,null,null,null,null,null,null,null,null,null,null,null,null,null,null,null,null,null,null,null,null,null,null,"Other flights"]
[]
[null,null,null,null,null,null,null,null,null,null,null,null,null,null,null,null,null,null,null,null,null,null,null,null,null,null,null,null,null,null,null,null,null,null,null,null,null,null,null,"Please select"]
[null,null,null,null,null,null,null,null,null,null,null,null,null,null,null,null,null,null,null,null,null,null,null,null,null,null,null,null,null,null,null,null,null,null,null,null,null,null,null,"Lump sum"]
[null,null,null,null,null,null,null,null,null,null,null,null,null,null,null,null,null,null,null,null,null,null,null,null,null,null,null,null,null,null,null,null,null,null,null,null,null,null,null,"Against evidence"]
[]
[null,null,null,null,null,null,null,null,null,null,null,null,null,null,null,null,null,null,null,null,null,null,null,null,null,null,null,null,null,null,null,null,null,null,null,null,null,null,null,"Please select"]
[null,null,null,null,null,null,null,null,null,null,null,null,null,null,null,null,null,null,null,null,null,null,null,null,null,null,null,null,null,null,null,null,null,null,null,null,null,null,null,"International short-term expert"]
[null,null,null,null,null,null,null,null,null,null,null,null,null,null,null,null,null,null,null,null,null,null,null,null,null,null,null,null,null,null,null,null,null,null,null,null,null,null,null,"Regional short-term expert"]
[null,null,null,null,null,null,null,null,null,null,null,null,null,null,null,null,null,null,null,null,null,null,null,null,null,null,null,null,null,null,null,null,null,null,null,null,null,null,null,"National short-term expert"]
[null,null,null,null,null,null,null,null,null,null,null,null,null,null,null,null,null,null,null,null,null,null,null,null,null,null,null,null,null,null,null,null,null,null,null,null,null,null,null,"Other (please define)"]
[]
[]
[]
[]
[null,null,null,null,null,null,null,null,null,null,null,null,null,null,null,null,null,null,null,null,null,null,null,null,null,null,null,null,null,null,null,null,null,null,null,null,null,null,null,"Please select"]
[null,null,null,null,null,null,null,null,null,null,null,null,null,null,null,null,null,null,null,null,null,null,null,null,null,null,null,null,null,null,null,null,null,null,null,null,null,null,null,"Travel expenses outside the country"]
[null,null,null,null,null,null,null,null,null,null,null,null,null,null,null,null,null,null,null,null,null,null,null,null,null,null,null,null,null,null,null,null,null,null,null,null,null,null,null,"Travel expenses in the country"]

{"sheet":"Expert sheet (30)","index":30,"n_rows":134,"n_cols":40,"rows_kept":134,"cut":false,"hidden":true,"merged":[[43,17,43,18],[44,12,44,13],[44,14,44,16],[45,12,45,13],[45,14,45,16],[43,12,43,13],[43,14,43,16],[19,0,19,1],[23,6,23,9],[23,10,23,12],[28,1,29,2],[28,3,28,5],[29,11,29,14],[19,6,19,9],[19,10,19,12],[20,6,20,9],[20,10,20,12],[22,6,22,9],[22,10,22,12],[21,6,21,9],[21,10,21,12],[54,3,54,4],[56,11,56,14],[49,12,49,13],[49,14,49,16],[50,12,50,13],[50,14,50,16],[51,12,51,13],[51,14,51,16],[52,12,52,13],[52,14,52,16],[53,12,53,13],[53,14,53,16],[54,12,54,13],[54,14,54,16],[46,12,46,13],[46,14,46,16],[47,12,47,13],[47,14,47,16],[48,12,48,13],[48,14,48,16],[39,1,39,2],[39,11,39,14],[39,15,39,16],[40,11,40,14],[40,15,40,16],[40,3,40,4],[37,1,37,2],[37,11,37,14],[37,15,37,16],[38,1,38,2],[38,11,38,14],[38,15,38,16],[35,1,35,2],[35,11,35,14],[35,15,35,16],[36,1,36,2],[36,11,36,14],[36,15,36,16],[33,1,33,2],[33,11,33,14],[33,15,33,16],[34,1,34,2],[34,11,34,14],[34,15,34,16],[31,1,31,2],[31,11,31,14],[31,15,31,16],[32,1,32,2],[32,11,32,14],[32,15,32,16],[29,15,29,16],[30,1,30,2],[30,11,30,14],[30,15,30,16],[24,6,24,9],[24,10,24,12],[13,11,13,12],[14,11,14,12],[16,20,16,21],[18,6,18,9],[18,10,18,12],[8,2,8,4],[9,2,9,4],[6,2,6,4],[6,11,7,12],[6,13,7,13],[7,2,7,4],[1,3,1,4],[1,7,1,9],[2,1,2,2],[2,3,2,4],[5,6,5,13]]}
["Statement on personnel deployment"]
[null,"Contract number:",null,"Processing no./Cost centre:",null,null,null,"Accounting period:"]
[null,{"$f":"'Invoice overview'!A28","v":0},null,{"$f":"'Invoice overview'!$C$28","v":0},null,null,null,null,null,{"$f":"_xlfn.TEXTJOIN(\"   \",FALSE,IF('Invoice overview'!$G$28 > 0, TEXT('Invoice overview'!$G$28,\"TT.MM.JJJJ\"),\"\"),\"until\",IF('Invoice overview'!$I$28 > 0,TEXT('Invoice overview'!$I$28,\"TT.MM.JJJJ\"),\"\"))","v":"   until   "}]
[]
[]
["Personal data"]
["Family name, given name:"]
["Function:",null,"Please select"]
["Description of function:"]
["Expert no. per price schedule"]
[]
[]
[]
[]
[]
[]
[]
[]
["Personnel costs",null,null,null,null,null,"Remarks",null,null,null,"Reserved for GIZ"]
["Remuneration item",null,"Accounting unit ","Rate","Quantity","Amount"]
["Fee (No. 5.4 General Conditions)",null,"Please select",null,null,{"$f":"SUM(E21*D21)","v":0}]
["Fee (No. 5.4 General Conditions)",null,"Please select",null,null,{"$f":"SUM(E22*D22)","v":0}]
[null,null,null,"Daily rate\nacc. to contract","Days"]
["Per diem (No. 5.6. General Conditions)",null,null,null,null,{"$f":"SUM(E24*D24)","v":0}]
["Accommodation (No. 5.7 General Conditions)",null,null,null,null,{"$f":"SUM(E25*D25)","v":0}]
[]
["Travel expenses"]
["Air travel (No. 5.8 General Conditions)"]
[null,"Type of flight",null,"Travel dates"]
["No.",null,null,"Destination","Start\n (dd/mm/yy)","End \n(dd/mm/yy)","Reimbursement type\n\nacc. to contract","Amount\n (per voucher or lump sum)","Currency","Exchange rate*","Amount ","Remarks",null,null,null,"Reserved for GIZ"]
[1,"Please select",null,null,null,null,"Please select",null,null,null,{"$f":"H31*J31","v":0}]
[2,null,null,null,null,null,null,null,null,null,{"$f":"H32*J32","v":0}]
[3,null,null,null,null,null,null,null,null,null,0]
[4,null,null,null,null,null,null,null,null,null,0]
[5,null,null,null,null,null,null,null,null,null,0]
[6,null,null,null,null,null,null,null,null,null,0]
[7,null,null,null,null,null,null,null,null,null,0]
[8,null,null,null,null,null,null,null,null,null,0]
[9,null,null,null,null,null,null,null,null,null,0]
[10,null,null,null,null,null,null,null,null,null,0]
["TOTAL",null,null,null,null,null,null,null,null,{"$f":"'Invoice overview'!F32","v":"EUR"},{"$f":"SUM(K31:K40)","v":0}]
[]
["Other travel expenses (No. 5.9 General Conditions)"]
["No.","Country of travel","Nature of travel expenses","Start\n(dd/mm/yy)","End \n(dd/mm/yy)","Reason for travel","Reimbursement type\nacc. to contract","Amount\n (per voucher or lump sum)","Quantity"," ","Currency","Exchange rate*","Amount ",null,"Remarks",null,null,"Reserved for GIZ"]
[1,null,"Please select",null,null,null,"Please select",null,null,null,null,null,{"$f":"IF(G45=\"Against evidence\",H45*L45,IF(G45=\"Lump sum\",H45*I45*L45,\"0,00\"))","v":"0,00"}]
[2,null,null,null,null,null,null,null,null,null,null,null,{"$f":"IF(G46=\"Against evidence\",H46*L46,IF(G46=\"Lump sum\",H46*I46*L46,\"0,00\"))","v":"0,00"}]
[3,null,null,null,null,null,null,null,null,null,null,null,"0,00"]
[4,null,null,null,null,null,null,null,null,null,null,null,"0,00"]
[5,null,null,null,null,null,null,null,null,null,null,null,"0,00"]
[6,null,null,null,null,null,null,null,null,null,null,null,"0,00"]
[7,null,null,null,null,null,null,null,null,null,null,null,"0,00"]
[8,null,null,null,null,null,null,null,null,null,null,null,"0,00"]
[9,null,null,null,null,null,null,null,null,null,null,null,"0,00"]
[10,null,null,null,null,null,null,null,null,null,null,null,"0,00"]
["TOTAL",null,null,null,null,null,null,null,null,null,null,{"$f":"'Invoice overview'!F32","v":"EUR"},{"$f":"SUM(M45:N54)","v":0}]
[]
[null,null,null,null,null,null,null,null,null,null,null,"Total for expert/contractor",null,null,null,{"$f":"SUM(M55,K41,F25,F24,F21,F22,)","v":0}]
[]
[]
[]
[]
[]
[]
[]
[]
[]
[]
[]
[]
[]
[]
[]
[]
[]
[]
[]
[]
[]
[]
[]
[]
[]
[]
[]
[]
[]
[]
[]
[]
[]
[]
[]
[]
[]
[]
[]
[]
[]
[]
[null,null,null,null,null,null,null,null,null,null,null,null,null,null,null,null,null,null,null,null,null,null,null,null,null,null,null,null,null,null,null,null,null,null,null,null,null,null,null,"Please select"]
[null,null,null,null,null,null,null,null,null,null,null,null,null,null,null,null,null,null,null,null,null,null,null,null,null,null,null,null,null,null,null,null,null,null,null,null,null,null,null,"Outward and homeward journeys"]
[null,null,null,null,null,null,null,null,null,null,null,null,null,null,null,null,null,null,null,null,null,null,null,null,null,null,null,null,null,null,null,null,null,null,null,null,null,null,null,"Regional and national flights"]
[null,null,null,null,null,null,null,null,null,null,null,null,null,null,null,null,null,null,null,null,null,null,null,null,null,null,null,null,null,null,null,null,null,null,null,null,null,null,null,"Other flights"]
[]
[null,null,null,null,null,null,null,null,null,null,null,null,null,null,null,null,null,null,null,null,null,null,null,null,null,null,null,null,null,null,null,null,null,null,null,null,null,null,null,"Please select"]
[null,null,null,null,null,null,null,null,null,null,null,null,null,null,null,null,null,null,null,null,null,null,null,null,null,null,null,null,null,null,null,null,null,null,null,null,null,null,null,"Hours"]
[null,null,null,null,null,null,null,null,null,null,null,null,null,null,null,null,null,null,null,null,null,null,null,null,null,null,null,null,null,null,null,null,null,null,null,null,null,null,null,"Standard lines"]
[null,null,null,null,null,null,null,null,null,null,null,null,null,null,null,null,null,null,null,null,null,null,null,null,null,null,null,null,null,null,null,null,null,null,null,null,null,null,null,"Days"]
[]
[]
[]
[null,null,null,null,null,null,null,null,null,null,null,null,null,null,null,null,null,null,null,null,null,null,null,null,null,null,null,null,null,null,null,null,null,null,null,null,null,null,null,"Please select"]
[null,null,null,null,null,null,null,null,null,null,null,null,null,null,null,null,null,null,null,null,null,null,null,null,null,null,null,null,null,null,null,null,null,null,null,null,null,null,null,"Expert (outward and homeward journeys)"]
[null,null,null,null,null,null,null,null,null,null,null,null,null,null,null,null,null,null,null,null,null,null,null,null,null,null,null,null,null,null,null,null,null,null,null,null,null,null,null,"Dependants (outward and homeward journeys) "]
[null,null,null,null,null,null,null,null,null,null,null,null,null,null,null,null,null,null,null,null,null,null,null,null,null,null,null,null,null,null,null,null,null,null,null,null,null,null,null,"Vacation flights"]
[null,null,null,null,null,null,null,null,null,null,null,null,null,null,null,null,null,null,null,null,null,null,null,null,null,null,null,null,null,null,null,null,null,null,null,null,null,null,null,"Regional and national flights"]
[null,null,null,null,null,null,null,null,null,null,null,null,null,null,null,null,null,null,null,null,null,null,null,null,null,null,null,null,null,null,null,null,null,null,null,null,null,null,null,"Other flights"]
[]
[null,null,null,null,null,null,null,null,null,null,null,null,null,null,null,null,null,null,null,null,null,null,null,null,null,null,null,null,null,null,null,null,null,null,null,null,null,null,null,"Please select"]
[null,null,null,null,null,null,null,null,null,null,null,null,null,null,null,null,null,null,null,null,null,null,null,null,null,null,null,null,null,null,null,null,null,null,null,null,null,null,null,"Lump sum"]
[null,null,null,null,null,null,null,null,null,null,null,null,null,null,null,null,null,null,null,null,null,null,null,null,null,null,null,null,null,null,null,null,null,null,null,null,null,null,null,"Against evidence"]
[]
[null,null,null,null,null,null,null,null,null,null,null,null,null,null,null,null,null,null,null,null,null,null,null,null,null,null,null,null,null,null,null,null,null,null,null,null,null,null,null,"Please select"]
[null,null,null,null,null,null,null,null,null,null,null,null,null,null,null,null,null,null,null,null,null,null,null,null,null,null,null,null,null,null,null,null,null,null,null,null,null,null,null,"International short-term expert"]
[null,null,null,null,null,null,null,null,null,null,null,null,null,null,null,null,null,null,null,null,null,null,null,null,null,null,null,null,null,null,null,null,null,null,null,null,null,null,null,"Regional short-term expert"]
[null,null,null,null,null,null,null,null,null,null,null,null,null,null,null,null,null,null,null,null,null,null,null,null,null,null,null,null,null,null,null,null,null,null,null,null,null,null,null,"National short-term expert"]
[null,null,null,null,null,null,null,null,null,null,null,null,null,null,null,null,null,null,null,null,null,null,null,null,null,null,null,null,null,null,null,null,null,null,null,null,null,null,null,"Other (please define)"]
[]
[]
[]
[]
[null,null,null,null,null,null,null,null,null,null,null,null,null,null,null,null,null,null,null,null,null,null,null,null,null,null,null,null,null,null,null,null,null,null,null,null,null,null,null,"Please select"]
[null,null,null,null,null,null,null,null,null,null,null,null,null,null,null,null,null,null,null,null,null,null,null,null,null,null,null,null,null,null,null,null,null,null,null,null,null,null,null,"Travel expenses outside the country"]
[null,null,null,null,null,null,null,null,null,null,null,null,null,null,null,null,null,null,null,null,null,null,null,null,null,null,null,null,null,null,null,null,null,null,null,null,null,null,null,"Travel expenses in the country"]

{"sheet":"5.17. Other costs","index":31,"n_rows":64,"n_cols":8,"rows_kept":64,"cut":false,"hidden":false,"merged":[[28,5,28,7],[17,5,17,7],[18,5,18,7],[19,5,19,7],[20,5,20,7],[21,5,21,7],[22,5,22,7],[23,5,23,7],[24,5,24,7],[25,5,25,7],[26,5,26,7],[27,5,27,7],[16,5,16,7],[0,0,0,7],[6,0,6,7],[7,5,7,7],[8,5,8,7],[9,5,9,7],[10,5,10,7],[11,5,11,7],[12,5,12,7],[13,5,13,7],[14,5,14,7],[15,5,15,7]]}
["5.17.  Other costs"]
[]
[null,"Contract number:",null,"Processing no./Cost centre:",null,"Accounting period:"]
[null,{"$f":"'Invoice overview'!A28","v":0},null,{"$f":"'Invoice overview'!C28","v":0},null,{"$f":"_xlfn.TEXTJOIN(\"   \",FALSE,IF('Invoice overview'!$G$28 > 0, TEXT('Invoice overview'!$G$28,\"TT.MM.JJJJ\"),\"\"),\"until\",IF('Invoice overview'!$I$28 > 0,TEXT('Invoice overview'!$I$28,\"TT.MM.JJJJ\"),\"\"))","v":"   until   "}]
[]
[]
["Lump sum"]
["No.","Nature of other costs","Lump sum amount","Quantity","Price","Remarks"]
[1,null,0,0,{"$f":"SUM(D9*C9)","v":0}]
[2,null,0,0,0]
[3,null,0,0,0]
[4,null,0,0,0]
[5,null,0,0,0]
[6,null,0,0,0]
[7,null,0,0,0]
[8,null,0,0,0]
[9,null,0,0,0]
[10,null,0,0,0]
[11,null,0,0,0]
[12,null,0,0,0]
[13,null,0,0,0]
[14,null,0,0,0]
[15,null,0,0,0]
[16,null,0,0,0]
[17,null,0,0,0]
[18,null,0,0,0]
[19,null,0,0,0]
[20,null,0,0,0]
["Subtotal:",null,null,{"$f":"'Invoice overview'!F32","v":"EUR"},{"$f":"SUM(E9:E28)","v":0}]
[]
[]
[]
[]
[]
[]
[]
[]
[]
[]
["Against evidence"]
["Voucher no.","Voucher content\n(in German or English)","Voucher date\ndd.mm.yyyy","Amount in foreign currency","Foreign currency","Exchange rate","Price (EUR)","Remarks"]
[1,null,null,null,null,null,{"$f":"D42*F42","v":0}]
[2,null,null,null,null,null,0]
[3,null,null,null,null,null,0]
[4,null,null,null,null,null,0]
[5,null,null,null,null,null,0]
[6,null,null,null,null,null,0]
[7,null,null,null,null,null,0]
[8,null,null,null,null,null,0]
[9,null,null,null,null,null,0]
[10,null,null,null,null,null,0]
[11,null,null,null,null,null,0]
[12,null,null,null,null,null,0]
[13,null,null,null,null,null,0]
[14,null,null,null,null,null,0]
[15,null,null,null,null,null,0]
[16,null,null,null,null,null,0]
[17,null,null,null,null,null,0]
[18,null,null,null,null,null,0]
[19,null,null,null,null,null,0]
[20,null,null,null,null,null,0]
["Subtotal:",null,null,{"$f":"SUM(D42:D61)","v":0},null,null,{"$f":"SUM(G42:G61)","v":0}]
[]
["Total other costs:",null,null,{"$f":"G62+E29","v":0}]

{"sheet":"5.18. Flex. remun. item","index":32,"n_rows":18,"n_cols":6,"rows_kept":18,"cut":false,"hidden":false,"merged":[[0,0,0,7],[6,2,6,3],[17,2,17,3],[18,2,18,3],[19,2,19,3],[7,2,7,3],[8,2,8,3],[9,2,9,3],[10,2,10,3],[11,2,11,3],[12,2,12,3],[13,2,13,3],[14,2,14,3],[15,2,15,3],[16,2,16,3]]}
["5.18.  Flexible remuneration item (subject to approval from officer responsible for the commission)"]
[]
[null,"Contract number:","Processing no./Cost centre:","Accounting period:"]
[null,{"$f":"'Invoice overview'!A28","v":0},{"$f":"'Invoice overview'!C28","v":0},{"$f":"_xlfn.TEXTJOIN(\"   \",FALSE,IF('Invoice overview'!$G$28 > 0, TEXT('Invoice overview'!$G$28,\"TT.MM.JJJJ\"),\"\"),\"until\",IF('Invoice overview'!$I$28 > 0, TEXT('Invoice overview'!$I$28,\"TT.MM.JJJJ\"),\"\"))","v":"   until   "}]
[]
[]
["No.","Remuneration item exceeded","Justification",null,"Total excess costs","Remarks"]
[1,null,null,null,0]
[2,null,null,null,0]
[3,null,null,null,0]
[4,null,null,null,0]
[5,null,null,null,0]
[6,null,null,null,0]
[7,null,null,null,0]
[8,null,null,null,0]
[9,null,null,null,0]
[10,null,null,null,0]
[null,null,"Flexible remuneration claimed",null,{"$f":"SUM(E8:E17)","v":0}]